﻿Body Name,Body,Service Area Categorisation,Service Division Categorisation,Responsible Unit,Expenses Type,Detailed Expenses Type,Payment Date,Transaction Number,Payment Amount,Supplier Type,Supplier Name,Supplier Id
Portsmouth City Council,PCC,Planning Services,Business support,Regeneration,Premises-Related Expenditure,"Repairs, alterations and maintenance of buildings",29/05/2019,6302231,1200,COMPANY,PRC ELECTRICAL SERVICES LTD,140375
Portsmouth City Council,PCC,Highways and Transport Services,Parking Services,Regeneration,Third Party Payments,Private contractors,03/05/2019,6297705,50,VENDOR,BOARHUNT GROUP LTD,103726
Portsmouth City Council,PCC,Highways and Transport Services,Parking Services,Regeneration,Third Party Payments,Private contractors,03/05/2019,6297705,50,VENDOR,BOARHUNT GROUP LTD,103726
Portsmouth City Council,PCC,Highways and Transport Services,Parking Services,Regeneration,Premises-Related Expenditure,Rents,03/05/2019,6297705,50,VENDOR,BOARHUNT GROUP LTD,103726
Portsmouth City Council,PCC,Highways and Transport Services,Parking Services,Regeneration,Third Party Payments,Private contractors,03/05/2019,6297705,50,VENDOR,BOARHUNT GROUP LTD,103726
Portsmouth City Council,PCC,Highways and Transport Services,Parking Services,Regeneration,Third Party Payments,Private contractors,03/05/2019,6297705,44,VENDOR,BOARHUNT GROUP LTD,103726
Portsmouth City Council,PCC,Highways and Transport Services,Parking Services,Regeneration,Third Party Payments,Private contractors,03/05/2019,6297705,50,VENDOR,BOARHUNT GROUP LTD,103726
Portsmouth City Council,PCC,Environmental and Regulatory Services,Waste Collection,"Housing, Neighbourhood and Building Services",Transport-Related Expenditure,Direct transport costs,03/05/2019,6297705,121.3,VENDOR,BOARHUNT GROUP LTD,103726
Portsmouth City Council,PCC,Highways and Transport Services,Parking Services,Regeneration,Third Party Payments,Private contractors,03/05/2019,6297705,65,VENDOR,BOARHUNT GROUP LTD,103726
Portsmouth City Council,PCC,Highways and Transport Services,Parking Services,Regeneration,Third Party Payments,Private contractors,14/05/2019,6299109,81.25,VENDOR,BOARHUNT GROUP LTD,103726
Portsmouth City Council,PCC,Highways and Transport Services,Parking Services,Regeneration,Third Party Payments,Private contractors,14/05/2019,6299109,25,VENDOR,BOARHUNT GROUP LTD,103726
Portsmouth City Council,PCC,Highways and Transport Services,Parking Services,Regeneration,Third Party Payments,Private contractors,14/05/2019,6299109,50,VENDOR,BOARHUNT GROUP LTD,103726
Portsmouth City Council,PCC,Highways and Transport Services,Parking Services,Regeneration,Third Party Payments,Private contractors,14/05/2019,6299109,25,VENDOR,BOARHUNT GROUP LTD,103726
Portsmouth City Council,PCC,Highways and Transport Services,Parking Services,Regeneration,Third Party Payments,Private contractors,14/05/2019,6299109,30,VENDOR,BOARHUNT GROUP LTD,103726
Portsmouth City Council,PCC,Highways and Transport Services,Parking Services,Regeneration,Premises-Related Expenditure,Rents,14/05/2019,6299109,1600,VENDOR,BOARHUNT GROUP LTD,103726
Portsmouth City Council,PCC,Highways and Transport Services,Parking Services,Regeneration,Third Party Payments,Private contractors,14/05/2019,6299109,50,VENDOR,BOARHUNT GROUP LTD,103726
Portsmouth City Council,PCC,Highways and Transport Services,Parking Services,Regeneration,Third Party Payments,Private contractors,22/05/2019,6300639,25,VENDOR,BOARHUNT GROUP LTD,103726
Portsmouth City Council,PCC,Highways and Transport Services,Parking Services,Regeneration,Third Party Payments,Private contractors,22/05/2019,6300639,180,VENDOR,BOARHUNT GROUP LTD,103726
Portsmouth City Council,PCC,Highways and Transport Services,Parking Services,Regeneration,Third Party Payments,Private contractors,22/05/2019,6300639,60,VENDOR,BOARHUNT GROUP LTD,103726
Portsmouth City Council,PCC,Highways and Transport Services,Parking Services,Regeneration,Third Party Payments,Private contractors,22/05/2019,6300639,44,VENDOR,BOARHUNT GROUP LTD,103726
Portsmouth City Council,PCC,Highways and Transport Services,Parking Services,Regeneration,Third Party Payments,Private contractors,22/05/2019,6300639,30,VENDOR,BOARHUNT GROUP LTD,103726
Portsmouth City Council,PCC,Highways and Transport Services,Parking Services,Regeneration,Third Party Payments,Private contractors,22/05/2019,6300639,25,VENDOR,BOARHUNT GROUP LTD,103726
Portsmouth City Council,PCC,Highways and Transport Services,Parking Services,Regeneration,Third Party Payments,Private contractors,22/05/2019,6300639,50,VENDOR,BOARHUNT GROUP LTD,103726
Portsmouth City Council,PCC,Highways and Transport Services,Parking Services,Regeneration,Third Party Payments,Private contractors,22/05/2019,6300639,50,VENDOR,BOARHUNT GROUP LTD,103726
Portsmouth City Council,PCC,Children's and Education Services,Children Looked After,Children's Services and Education,Third Party Payments,Other establishments,17/05/2019,6299845,5737.14,VENDOR,KEYS GROUP LIMITED,137236
Portsmouth City Council,PCC,Children's and Education Services,Children Looked After,Children's Services and Education,Third Party Payments,Other establishments,24/05/2019,6301461,19281.43,VENDOR,KEYS GROUP LIMITED,137236
Portsmouth City Council,PCC,Children's and Education Services,Special Schools,Children's Services and Education,Third Party Payments,Other establishments,08/05/2019,6298541,26224,VENDOR,ST EDWARDS SCHOOL,101262
Portsmouth City Council,PCC,Children's and Education Services,Special Schools,Children's Services and Education,Third Party Payments,Other establishments,08/05/2019,6298541,26634.5,VENDOR,ST EDWARDS SCHOOL,101262
Portsmouth City Council,PCC,Children's and Education Services,Special Schools,Children's Services and Education,Third Party Payments,Other establishments,08/05/2019,6298541,30886,VENDOR,ST EDWARDS SCHOOL,101262
Portsmouth City Council,PCC,Children's and Education Services,Special Schools,Children's Services and Education,Third Party Payments,Other establishments,08/05/2019,6298541,27798,VENDOR,ST EDWARDS SCHOOL,101262
Portsmouth City Council,PCC,Children's and Education Services,Special Schools,Children's Services and Education,Third Party Payments,Other establishments,08/05/2019,6298541,24241,VENDOR,ST EDWARDS SCHOOL,101262
Portsmouth City Council,PCC,Children's and Education Services,Special Schools,Children's Services and Education,Third Party Payments,Other establishments,08/05/2019,6298541,20434.5,VENDOR,ST EDWARDS SCHOOL,101262
Portsmouth City Council,PCC,Children's and Education Services,Family Support Services,Children's Services and Education,Transport-Related Expenditure,Public transport,23/05/2019,6301174,11.7,VENDOR,ATOC LTD,103839
Portsmouth City Council,PCC,Children's and Education Services,Safeguarding Children and Young Peoples Services,Children's Services and Education,Transport-Related Expenditure,Public transport,23/05/2019,6301174,41.1,VENDOR,ATOC LTD,103839
Portsmouth City Council,PCC,Children's and Education Services,Family Support Services,Children's Services and Education,Transport-Related Expenditure,Public transport,23/05/2019,6301174,85.4,VENDOR,ATOC LTD,103839
Portsmouth City Council,PCC,Children's and Education Services,Children Looked After,Children's Services and Education,Transport-Related Expenditure,Public transport,23/05/2019,6301174,139,VENDOR,ATOC LTD,103839
Portsmouth City Council,PCC,Children's and Education Services,Children Looked After,Children's Services and Education,Transport-Related Expenditure,Public transport,23/05/2019,6301174,58.2,VENDOR,ATOC LTD,103839
Portsmouth City Council,PCC,Children's and Education Services,Other Children and Family Services,Children's Services and Education,Transport-Related Expenditure,Public transport,23/05/2019,6301174,137,VENDOR,ATOC LTD,103839
Portsmouth City Council,PCC,Children's and Education Services,Asylum seekers,Children's Services and Education,Transport-Related Expenditure,Public transport,23/05/2019,6301174,429.6,VENDOR,ATOC LTD,103839
Portsmouth City Council,PCC,Children's and Education Services,Safeguarding Children and Young Peoples Services,Children's Services and Education,Transport-Related Expenditure,Public transport,23/05/2019,6301174,37.8,VENDOR,ATOC LTD,103839
Portsmouth City Council,PCC,Children's and Education Services,Youth Justice,Children's Services and Education,Transport-Related Expenditure,Public transport,23/05/2019,6301174,6.6,VENDOR,ATOC LTD,103839
Portsmouth City Council,PCC,Children's and Education Services,Children Looked After,Children's Services and Education,Third Party Payments,Other establishments,22/05/2019,6301064,18214.29,VENDOR,KEYS GROUP LIMITED,137236
Portsmouth City Council,PCC,Children's and Education Services,Children Looked After,Children's Services and Education,Third Party Payments,Other establishments,24/05/2019,6301510,18979.8,VENDOR,PRIORS COURT SCHOOL,126243
Portsmouth City Council,PCC,Children's and Education Services,Children Looked After,Children's Services and Education,Third Party Payments,Other establishments,24/05/2019,6301510,20159.36,VENDOR,PRIORS COURT SCHOOL,126243
Portsmouth City Council,PCC,Children's and Education Services,Children Looked After,Children's Services and Education,Third Party Payments,Other establishments,10/05/2019,6298837,3011.34,VENDOR,HORIZON CARE AND EDUCATION GROUP LTD,138450
Portsmouth City Council,PCC,Children's and Education Services,Children Looked After,Children's Services and Education,Third Party Payments,Other establishments,10/05/2019,6298837,3011.34,VENDOR,HORIZON CARE AND EDUCATION GROUP LTD,138450
Portsmouth City Council,PCC,Children's and Education Services,Asylum seekers,Children's Services and Education,Third Party Payments,Other establishments,10/05/2019,6298837,3011.34,VENDOR,HORIZON CARE AND EDUCATION GROUP LTD,138450
Portsmouth City Council,PCC,Children's and Education Services,Safeguarding Children and Young Peoples Services,Children's Services and Education,Transport-Related Expenditure,Public transport,21/05/2019,6300120,72.6,VENDOR,HOVERTRAVEL LTD,105535
Portsmouth City Council,PCC,Children's and Education Services,Other Children and Family Services,Children's Services and Education,Transport-Related Expenditure,Public transport,21/05/2019,6300120,24.2,VENDOR,HOVERTRAVEL LTD,105535
Portsmouth City Council,PCC,Cultural and Related Services,Recreation and Sport,Culture & City Development,Third Party Payments,Private contractors,30/05/2019,6302367,60184.6,VENDOR,NOVA INTERNATIONAL LIMITED,109265
Portsmouth City Council,PCC,Children's and Education Services,Youth Justice,Children's Services and Education,Supplies and Services,Communications and computing,01/05/2019,6297478,1643,VENDOR,SERVELEC YOUTH SERVICES LIMITED T/A SERVELEC,129120
Portsmouth City Council,PCC,Other,Suspense and Capital Schemes,Capital - Community Safety,Capital Charges,Capital Expenditure (WIP),30/05/2019,6302283,59545,VENDOR,360 VISION TECHNOLOGY LTD,138809
Portsmouth City Council,PCC,Other,Suspense and Capital Schemes,Capital - Community Safety,Capital Charges,Capital Expenditure (WIP),30/05/2019,6302283,14905,VENDOR,360 VISION TECHNOLOGY LTD,138809
Portsmouth City Council,PCC,Cultural and Related Services,Recreation and Sport,Culture & City Development,Supplies and Services,"Equipment, furniture and materials",14/05/2019,6299143,60.98,VENDOR,HAMPSHIRE FLAG COMPANY,100374
Portsmouth City Council,PCC,Cultural and Related Services,Recreation and Sport,Culture & City Development,Supplies and Services,"Equipment, furniture and materials",14/05/2019,6299143,39,VENDOR,HAMPSHIRE FLAG COMPANY,100374
Portsmouth City Council,PCC,Cultural and Related Services,Recreation and Sport,Culture & City Development,Supplies and Services,"Equipment, furniture and materials",14/05/2019,6299143,324.08,VENDOR,HAMPSHIRE FLAG COMPANY,100374
Portsmouth City Council,PCC,Cultural and Related Services,Recreation and Sport,Culture & City Development,Supplies and Services,"Printing, stationery and general office expenses",14/05/2019,6299143,17.99,VENDOR,HAMPSHIRE FLAG COMPANY,100374
Portsmouth City Council,PCC,Public Health,Public Health - Split Costing,Public Health,Employees,Indirect employee expenses,28/05/2019,6301702,445,VENDOR,PMG LTD,107775
Portsmouth City Council,PCC,Adult Social Care,Assistive Equipment & Technology,"Housing, Neighbourhood and Building Services",Supplies and Services,"Equipment, furniture and materials",14/05/2019,6299183,212.5,VENDOR,TYNETEC B/U OF LEGRAND ELECTRIC LTD,140439
Portsmouth City Council,PCC,Adult Social Care,Assistive Equipment & Technology,"Housing, Neighbourhood and Building Services",Supplies and Services,"Equipment, furniture and materials",14/05/2019,6299183,917.1,VENDOR,TYNETEC B/U OF LEGRAND ELECTRIC LTD,140439
Portsmouth City Council,PCC,Cultural and Related Services,Library Service,Culture & City Development,Supplies and Services,"Equipment, furniture and materials",02/05/2019,6297639,150,VENDOR,PORTSDOWN OFFICE LTD,100059
Portsmouth City Council,PCC,Cultural and Related Services,Library Service,Culture & City Development,Supplies and Services,"Equipment, furniture and materials",02/05/2019,6297639,121.43,VENDOR,PORTSDOWN OFFICE LTD,100059
Portsmouth City Council,PCC,Cultural and Related Services,Library Service,Culture & City Development,Supplies and Services,"Equipment, furniture and materials",02/05/2019,6297639,405.8,VENDOR,PORTSDOWN OFFICE LTD,100059
Portsmouth City Council,PCC,Support Service / Transparency Costs Unallocated,AMS,"Housing, Neighbourhood and Building Services",Supplies and Services,"Equipment, furniture and materials",02/05/2019,6297640,3733.2,VENDOR,PORTSDOWN OFFICE LTD,100059
Portsmouth City Council,PCC,Support Service / Transparency Costs Unallocated,AMS,"Housing, Neighbourhood and Building Services",Supplies and Services,"Equipment, furniture and materials",02/05/2019,6297640,1770.63,VENDOR,PORTSDOWN OFFICE LTD,100059
Portsmouth City Council,PCC,Support Service / Transparency Costs Unallocated,AMS,"Housing, Neighbourhood and Building Services",Supplies and Services,"Equipment, furniture and materials",14/05/2019,6299161,898,VENDOR,PORTSDOWN OFFICE LTD,100059
Portsmouth City Council,PCC,Cultural and Related Services,Library Service,Culture & City Development,Supplies and Services,"Equipment, furniture and materials",21/05/2019,6300149,552,VENDOR,PORTSDOWN OFFICE LTD,100059
Portsmouth City Council,PCC,Support Service / Transparency Costs Unallocated,AMS,"Housing, Neighbourhood and Building Services",Supplies and Services,"Equipment, furniture and materials",23/05/2019,6301273,1401.72,VENDOR,PORTSDOWN OFFICE LTD,100059
Portsmouth City Council,PCC,Support Service / Transparency Costs Unallocated,AMS,"Housing, Neighbourhood and Building Services",Supplies and Services,"Equipment, furniture and materials",23/05/2019,6301273,3450,VENDOR,PORTSDOWN OFFICE LTD,100059
Portsmouth City Council,PCC,Support Service / Transparency Costs Unallocated,AMS,"Housing, Neighbourhood and Building Services",Supplies and Services,"Equipment, furniture and materials",24/05/2019,6301501,469.56,VENDOR,PORTSDOWN OFFICE LTD,100059
Portsmouth City Council,PCC,Children's and Education Services,Other Children and Family Services,Children's Services and Education,Supplies and Services,Services,08/05/2019,6298067,641.21,VENDOR,ALERE TOXICOLOGY PLC,121708
Portsmouth City Council,PCC,Children's and Education Services,Other Children and Family Services,Children's Services and Education,Supplies and Services,Services,08/05/2019,6298067,446.79,VENDOR,ALERE TOXICOLOGY PLC,121708
Portsmouth City Council,PCC,Children's and Education Services,Other Children and Family Services,Children's Services and Education,Supplies and Services,Services,08/05/2019,6298067,1151,VENDOR,ALERE TOXICOLOGY PLC,121708
Portsmouth City Council,PCC,Support Service / Transparency Costs Unallocated,AMS,"Housing, Neighbourhood and Building Services",Supplies and Services,Communications and computing,10/05/2019,6298712,3284.37,VENDOR,AMTECH GROUP LIMITED,128734
Portsmouth City Council,PCC,Support Service / Transparency Costs Unallocated,AMS,"Housing, Neighbourhood and Building Services",Supplies and Services,Communications and computing,10/05/2019,6298712,656.87,VENDOR,AMTECH GROUP LIMITED,128734
Portsmouth City Council,PCC,Children's and Education Services,Children Looked After,Children's Services and Education,Third Party Payments,Private contractors,23/05/2019,6301178,350,VENDOR,BEANSTALK CHILDREN'S THERAPY,143228
Portsmouth City Council,PCC,Children's and Education Services,Children Looked After,Children's Services and Education,Third Party Payments,Private contractors,23/05/2019,6301178,105,VENDOR,BEANSTALK CHILDREN'S THERAPY,143228
Portsmouth City Council,PCC,Children's and Education Services,Children Looked After,Children's Services and Education,Third Party Payments,Private contractors,23/05/2019,6301178,80,VENDOR,BEANSTALK CHILDREN'S THERAPY,143228
Portsmouth City Council,PCC,Children's and Education Services,Children Looked After,Children's Services and Education,Third Party Payments,Private contractors,23/05/2019,6301178,105,VENDOR,BEANSTALK CHILDREN'S THERAPY,143228
Portsmouth City Council,PCC,Children's and Education Services,Children Looked After,Children's Services and Education,Third Party Payments,Private contractors,23/05/2019,6301178,160,VENDOR,BEANSTALK CHILDREN'S THERAPY,143228
Portsmouth City Council,PCC,Children's and Education Services,Children Looked After,Children's Services and Education,Third Party Payments,Private contractors,23/05/2019,6301178,80,VENDOR,BEANSTALK CHILDREN'S THERAPY,143228
Portsmouth City Council,PCC,Children's and Education Services,Children Looked After,Children's Services and Education,Third Party Payments,Private contractors,23/05/2019,6301178,60,VENDOR,BEANSTALK CHILDREN'S THERAPY,143228
Portsmouth City Council,PCC,Children's and Education Services,Children Looked After,Children's Services and Education,Third Party Payments,Private contractors,23/05/2019,6301178,105,VENDOR,BEANSTALK CHILDREN'S THERAPY,143228
Portsmouth City Council,PCC,Children's and Education Services,Children Looked After,Children's Services and Education,Third Party Payments,Private contractors,23/05/2019,6301178,80,VENDOR,BEANSTALK CHILDREN'S THERAPY,143228
Portsmouth City Council,PCC,Children's and Education Services,Children Looked After,Children's Services and Education,Third Party Payments,Private contractors,23/05/2019,6301178,80,VENDOR,BEANSTALK CHILDREN'S THERAPY,143228
Portsmouth City Council,PCC,Children's and Education Services,Children Looked After,Children's Services and Education,Third Party Payments,Private contractors,23/05/2019,6301178,80,VENDOR,BEANSTALK CHILDREN'S THERAPY,143228
Portsmouth City Council,PCC,Children's and Education Services,Children Looked After,Children's Services and Education,Third Party Payments,Private contractors,23/05/2019,6301178,80,VENDOR,BEANSTALK CHILDREN'S THERAPY,143228
Portsmouth City Council,PCC,Children's and Education Services,Children Looked After,Children's Services and Education,Third Party Payments,Private contractors,23/05/2019,6301178,56.33,VENDOR,BEANSTALK CHILDREN'S THERAPY,143228
Portsmouth City Council,PCC,Children's and Education Services,Children Looked After,Children's Services and Education,Third Party Payments,Private contractors,23/05/2019,6301178,105,VENDOR,BEANSTALK CHILDREN'S THERAPY,143228
Portsmouth City Council,PCC,Children's and Education Services,Children Looked After,Children's Services and Education,Third Party Payments,Private contractors,23/05/2019,6301178,80,VENDOR,BEANSTALK CHILDREN'S THERAPY,143228
Portsmouth City Council,PCC,Other,Suspense and Capital Schemes,Capital - Culture Leisure & Sport,Capital Charges,Capital Expenditure (WIP),24/05/2019,6301482,3793.26,COMPANY,MOUNTJOY LIMITED,129869
Portsmouth City Council,PCC,Other,Suspense and Capital Schemes,Capital - Resources,Capital Charges,Capital Expenditure (WIP),07/05/2019,6298017,-1851,COMPANY,MOUNTJOY LIMITED,129869
Portsmouth City Council,PCC,Other,Suspense and Capital Schemes,Capital - Resources,Capital Charges,Capital Expenditure (WIP),07/05/2019,6298017,108900.46,COMPANY,MOUNTJOY LIMITED,129869
Portsmouth City Council,PCC,Adult Social Care,Social Care Activities,Adult Services,Third Party Payments,Other establishments,01/05/2019,6297429,16.16,VENDOR,HELPING HANDS HOMECARE,141367
Portsmouth City Council,PCC,Adult Social Care,Social Care Activities,Adult Services,Third Party Payments,Other establishments,01/05/2019,6297429,5108.84,VENDOR,HELPING HANDS HOMECARE,141367
Portsmouth City Council,PCC,Adult Social Care,Social Care Activities,Adult Services,Third Party Payments,Other establishments,01/05/2019,6297429,177,VENDOR,HELPING HANDS HOMECARE,141367
Portsmouth City Council,PCC,Adult Social Care,Social Care Activities,Adult Services,Third Party Payments,Other establishments,01/05/2019,6297429,4636,VENDOR,HELPING HANDS HOMECARE,141367
Portsmouth City Council,PCC,Adult Social Care,Social Care Activities,Adult Services,Third Party Payments,Other establishments,09/05/2019,6298669,518,VENDOR,SISTERLY CARE LTD,126324
Portsmouth City Council,PCC,Adult Social Care,Social Care Activities,Adult Services,Third Party Payments,Other establishments,09/05/2019,6298669,518,VENDOR,SISTERLY CARE LTD,126324
Portsmouth City Council,PCC,Adult Social Care,Social Care Activities,Adult Services,Third Party Payments,Other establishments,09/05/2019,6298669,335.83,VENDOR,SISTERLY CARE LTD,126324
Portsmouth City Council,PCC,Adult Social Care,Social Care Activities,Adult Services,Third Party Payments,Other establishments,09/05/2019,6298669,529.76,VENDOR,SISTERLY CARE LTD,126324
Portsmouth City Council,PCC,Adult Social Care,Social Care Activities,Adult Services,Third Party Payments,Other establishments,09/05/2019,6298669,529.76,VENDOR,SISTERLY CARE LTD,126324
Portsmouth City Council,PCC,Adult Social Care,Social Care Activities,Adult Services,Third Party Payments,Other establishments,09/05/2019,6298669,264.88,VENDOR,SISTERLY CARE LTD,126324
Portsmouth City Council,PCC,Adult Social Care,Physical Support Adults (18 - 64),Adult Services,Third Party Payments,Other establishments,09/05/2019,6298669,194.32,VENDOR,SISTERLY CARE LTD,126324
Portsmouth City Council,PCC,Adult Social Care,Physical Support Adults (18 - 64),Adult Services,Third Party Payments,Other establishments,09/05/2019,6298669,198.66,VENDOR,SISTERLY CARE LTD,126324
Portsmouth City Council,PCC,Adult Social Care,Physical Support Older People (85+),Adult Services,Third Party Payments,Other establishments,09/05/2019,6298669,37.84,VENDOR,SISTERLY CARE LTD,126324
Portsmouth City Council,PCC,Adult Social Care,Physical Support Older People (85+),Adult Services,Third Party Payments,Other establishments,09/05/2019,6298669,203.5,VENDOR,SISTERLY CARE LTD,126324
Portsmouth City Council,PCC,Adult Social Care,Physical Support Older People (85+),Adult Services,Third Party Payments,Other establishments,09/05/2019,6298669,160.82,VENDOR,SISTERLY CARE LTD,126324
Portsmouth City Council,PCC,Adult Social Care,Physical Support Older People (85+),Adult Services,Third Party Payments,Other establishments,09/05/2019,6298669,129.5,VENDOR,SISTERLY CARE LTD,126324
Portsmouth City Council,PCC,Adult Social Care,Physical Support Older People (85+),Adult Services,Third Party Payments,Other establishments,09/05/2019,6298669,132.44,VENDOR,SISTERLY CARE LTD,126324
Portsmouth City Council,PCC,Adult Social Care,Physical Support Older People (85+),Adult Services,Third Party Payments,Other establishments,09/05/2019,6298669,444.62,VENDOR,SISTERLY CARE LTD,126324
Portsmouth City Council,PCC,Adult Social Care,Physical Support Older People (85+),Adult Services,Third Party Payments,Other establishments,09/05/2019,6298669,314.7,VENDOR,SISTERLY CARE LTD,126324
Portsmouth City Council,PCC,Adult Social Care,Physical Support Older People (85+),Adult Services,Third Party Payments,Other establishments,09/05/2019,6298669,323.82,VENDOR,SISTERLY CARE LTD,126324
Portsmouth City Council,PCC,Adult Social Care,Physical Support Older People (85+),Adult Services,Third Party Payments,Other establishments,09/05/2019,6298669,331.1,VENDOR,SISTERLY CARE LTD,126324
Portsmouth City Council,PCC,Adult Social Care,Physical Support Older People (85+),Adult Services,Third Party Payments,Other establishments,09/05/2019,6298669,340.56,VENDOR,SISTERLY CARE LTD,126324
Portsmouth City Council,PCC,Adult Social Care,Physical Support Older People (85+),Adult Services,Third Party Payments,Other establishments,09/05/2019,6298669,333.06,VENDOR,SISTERLY CARE LTD,126324
Portsmouth City Council,PCC,Adult Social Care,Physical Support Older People (85+),Adult Services,Third Party Payments,Other establishments,09/05/2019,6298669,595.98,VENDOR,SISTERLY CARE LTD,126324
Portsmouth City Council,PCC,Adult Social Care,Physical Support Older People (85+),Adult Services,Third Party Payments,Other establishments,09/05/2019,6298669,595.98,VENDOR,SISTERLY CARE LTD,126324
Portsmouth City Council,PCC,Adult Social Care,Physical Support Older People (85+),Adult Services,Third Party Payments,Other establishments,09/05/2019,6298669,582.82,VENDOR,SISTERLY CARE LTD,126324
Portsmouth City Council,PCC,Adult Social Care,Physical Support Older People (85+),Adult Services,Third Party Payments,Other establishments,09/05/2019,6298669,582.82,VENDOR,SISTERLY CARE LTD,126324
Portsmouth City Council,PCC,Adult Social Care,Physical Support Older People (85+),Adult Services,Third Party Payments,Other establishments,09/05/2019,6298669,104.06,VENDOR,SISTERLY CARE LTD,126324
Portsmouth City Council,PCC,Adult Social Care,Physical Support Older People (85+),Adult Services,Third Party Payments,Other establishments,09/05/2019,6298669,129.5,VENDOR,SISTERLY CARE LTD,126324
Portsmouth City Council,PCC,Adult Social Care,Physical Support Older People (85+),Adult Services,Third Party Payments,Other establishments,09/05/2019,6298669,529.76,VENDOR,SISTERLY CARE LTD,126324
Portsmouth City Council,PCC,Adult Social Care,Physical Support Older People (85+),Adult Services,Third Party Payments,Other establishments,09/05/2019,6298669,518,VENDOR,SISTERLY CARE LTD,126324
Portsmouth City Council,PCC,Adult Social Care,Physical Support Older People (85+),Adult Services,Third Party Payments,Other establishments,09/05/2019,6298669,595.98,VENDOR,SISTERLY CARE LTD,126324
Portsmouth City Council,PCC,Adult Social Care,Physical Support Older People (85+),Adult Services,Third Party Payments,Other establishments,09/05/2019,6298669,582.82,VENDOR,SISTERLY CARE LTD,126324
Portsmouth City Council,PCC,Cultural and Related Services,Culture and Heritage,Culture & City Development,Supplies and Services,Communications and computing,03/05/2019,6297893,2356,VENDOR,SURFACE IMPRESSION LIMITED,143365
Portsmouth City Council,PCC,Cultural and Related Services,Culture and Heritage,Culture & City Development,Third Party Payments,Private contractors,03/05/2019,6297893,540,VENDOR,SURFACE IMPRESSION LIMITED,143365
Portsmouth City Council,PCC,Housing Revenue Account,Special Services,"Housing, Neighbourhood and Building Services",Premises-Related Expenditure,Water Services,24/05/2019,6301504,109.72,VENDOR,PORTSMOUTH WATER LTD,100253
Portsmouth City Council,PCC,Housing Revenue Account,Special Services,"Housing, Neighbourhood and Building Services",Premises-Related Expenditure,Water Services,24/05/2019,6301504,380.93,VENDOR,PORTSMOUTH WATER LTD,100253
Portsmouth City Council,PCC,Housing Revenue Account,Special Services,"Housing, Neighbourhood and Building Services",Premises-Related Expenditure,Water Services,24/05/2019,6301504,304.8,VENDOR,PORTSMOUTH WATER LTD,100253
Portsmouth City Council,PCC,Children's and Education Services,Family Support Services,Children's Services and Education,Third Party Payments,Private contractors,22/05/2019,6301146,1312,COMPANY,YOUNG AND YOUNG BUILDING SERVICES LTD,104996
Portsmouth City Council,PCC,Housing Services,Housing Strategy,"Housing, Neighbourhood and Building Services",Third Party Payments,Private contractors,15/05/2019,6299697,560,COMPANY,YOUNG AND YOUNG BUILDING SERVICES LTD,104996
Portsmouth City Council,PCC,Other,Suspense and Capital Schemes,Capital - Housing GF,Capital Charges,REFCUS,29/05/2019,6302279,9695.69,COMPANY,YOUNG AND YOUNG BUILDING SERVICES LTD,104996
Portsmouth City Council,PCC,Housing Services,Private Sector Housing Renewal,"Housing, Neighbourhood and Building Services",Income,Other grants reimbursements and contributions,29/05/2019,6302279,-865.69,COMPANY,YOUNG AND YOUNG BUILDING SERVICES LTD,104996
Portsmouth City Council,PCC,Housing Services,Private Sector Housing Renewal,"Housing, Neighbourhood and Building Services",Supplies and Services,Grants and subscriptions,29/05/2019,6302279,202.5,COMPANY,YOUNG AND YOUNG BUILDING SERVICES LTD,104996
Portsmouth City Council,PCC,Other,Suspense and Capital Schemes,Capital - Housing GF,Capital Charges,REFCUS,29/05/2019,6302279,7999.95,COMPANY,YOUNG AND YOUNG BUILDING SERVICES LTD,104996
Portsmouth City Council,PCC,Housing Services,Private Sector Housing Renewal,"Housing, Neighbourhood and Building Services",Income,Other grants reimbursements and contributions,29/05/2019,6302279,-120,COMPANY,YOUNG AND YOUNG BUILDING SERVICES LTD,104996
Portsmouth City Council,PCC,Housing Services,Private Sector Housing Renewal,"Housing, Neighbourhood and Building Services",Income,Other grants reimbursements and contributions,29/05/2019,6302279,-610.49,COMPANY,YOUNG AND YOUNG BUILDING SERVICES LTD,104996
Portsmouth City Council,PCC,Central Services,Coroners' Court Services,Culture & City Development,Supplies and Services,Services,20/05/2019,322131,560,VENDOR,DIGNITY FUNERALS LTD,117178
Portsmouth City Council,PCC,Adult Social Care,Social Care Activities,Adult Services,Third Party Payments,Other establishments,03/05/2019,6297830,1157.3,VENDOR,NURSE PLUS & CARER PLUS (UK) LIMITED,129474
Portsmouth City Council,PCC,Adult Social Care,Social Care Activities,Adult Services,Third Party Payments,Other establishments,03/05/2019,6297830,1369.2,VENDOR,NURSE PLUS & CARER PLUS (UK) LIMITED,129474
Portsmouth City Council,PCC,Adult Social Care,Social Care Activities,Adult Services,Third Party Payments,Other establishments,03/05/2019,6297830,2722.1,VENDOR,NURSE PLUS & CARER PLUS (UK) LIMITED,129474
Portsmouth City Council,PCC,Planning Services,Business support,Regeneration,Supplies and Services,Services,28/05/2019,6301710,12111.25,VENDOR,PRITCHARD ARCHITECTURE LIMITED,144062
Portsmouth City Council,PCC,Children's and Education Services,Children Looked After,Children's Services and Education,Third Party Payments,Other establishments,28/05/2019,6301598,28000,VENDOR,ADVANCED ADOLESCENT CARE SOLUTIONS LTD,145305
Portsmouth City Council,PCC,Children's and Education Services,Children Looked After,Children's Services and Education,Third Party Payments,Other establishments,28/05/2019,6301598,1250,VENDOR,ADVANCED ADOLESCENT CARE SOLUTIONS LTD,145305
Portsmouth City Council,PCC,Highways and Transport Services,"Airports, Harbours and Toll Facilities",Portsmouth International Port,Premises-Related Expenditure,"Repairs, alterations and maintenance of buildings",16/05/2019,6299781,791.71,VENDOR,SWL ROPE LIFTING AND TESTING,133453
Portsmouth City Council,PCC,Highways and Transport Services,"Airports, Harbours and Toll Facilities",Portsmouth International Port,Premises-Related Expenditure,"Repairs, alterations and maintenance of buildings",30/05/2019,6302400,638.4,VENDOR,SWL ROPE LIFTING AND TESTING,133453
Portsmouth City Council,PCC,Adult Social Care,Learning Disability Support  Adults (18 - 64),Adult Services,Third Party Payments,Other establishments,14/05/2019,6299172,1318.4,VENDOR,SOUTHAMPTON SPECIAL PURPOSE WORKSHOP LTD,117819
Portsmouth City Council,PCC,Adult Social Care,Commissioning & service delivery,Adult Services,Third Party Payments,Other establishments,23/05/2019,6301151,189.65,VENDOR,AGINCARE UK,134367
Portsmouth City Council,PCC,Adult Social Care,Commissioning & service delivery,Adult Services,Third Party Payments,Other establishments,31/05/2019,6302416,355.9,VENDOR,AGINCARE UK,134367
Portsmouth City Council,PCC,Adult Social Care,Commissioning & service delivery,Adult Services,Third Party Payments,Other establishments,23/05/2019,6301151,23138.53,VENDOR,AGINCARE UK,134367
Portsmouth City Council,PCC,Adult Social Care,Commissioning & service delivery,Adult Services,Third Party Payments,Other establishments,31/05/2019,6302416,22976.94,VENDOR,AGINCARE UK,134367
Portsmouth City Council,PCC,Adult Social Care,Social Care Activities,Adult Services,Third Party Payments,Other establishments,10/05/2019,6298702,7298.64,VENDOR,AGINCARE UK,134367
Portsmouth City Council,PCC,Adult Social Care,Physical Support Older People (85+),Adult Services,Third Party Payments,Other establishments,10/05/2019,6298702,2839.91,VENDOR,AGINCARE UK,134367
Portsmouth City Council,PCC,Other,Suspense and Capital Schemes,Capital - Housing RA,Capital Charges,Capital Expenditure (WIP),03/05/2019,6297786,575,VENDOR,HAMPSHIRE LAND SURVEYS LTD,106504
Portsmouth City Council,PCC,Housing Services,Homelessness,"Housing, Neighbourhood and Building Services",Third Party Payments,Private contractors,30/05/2019,6302286,698.25,VENDOR,Classified as 'personal data' (under the Data Protection Act 2018),141332
Portsmouth City Council,PCC,Children's and Education Services,Other Children and Family Services,Children's Services and Education,Third Party Payments,Other establishments,10/05/2019,6298716,108.18,VENDOR,APPLETREE SUPPORT LTD,126285
Portsmouth City Council,PCC,Children's and Education Services,Other Children and Family Services,Children's Services and Education,Third Party Payments,Other establishments,10/05/2019,6298716,531.89,VENDOR,APPLETREE SUPPORT LTD,126285
Portsmouth City Council,PCC,Children's and Education Services,Other Children and Family Services,Children's Services and Education,Third Party Payments,Other establishments,10/05/2019,6298716,216.36,VENDOR,APPLETREE SUPPORT LTD,126285
Portsmouth City Council,PCC,Children's and Education Services,Other Children and Family Services,Children's Services and Education,Third Party Payments,Other establishments,10/05/2019,6298716,987.15,VENDOR,APPLETREE SUPPORT LTD,126285
Portsmouth City Council,PCC,Children's and Education Services,Other Children and Family Services,Children's Services and Education,Third Party Payments,Other establishments,10/05/2019,6298716,270.45,VENDOR,APPLETREE SUPPORT LTD,126285
Portsmouth City Council,PCC,Children's and Education Services,Other Children and Family Services,Children's Services and Education,Third Party Payments,Other establishments,10/05/2019,6298716,901.52,VENDOR,APPLETREE SUPPORT LTD,126285
Portsmouth City Council,PCC,Cultural and Related Services,Culture and Heritage,Community & Communication,Supplies and Services,Expenses,01/05/2019,6296988,1500,OTHER LOCAL AUTHORITY,BRECKLAND DISTRICT COUNCIL,144811
Portsmouth City Council,PCC,Cultural and Related Services,Culture and Heritage,Community & Communication,Third Party Payments,Private contractors,07/05/2019,6298028,14221.27,VENDOR,PORTSMOUTH DIOCESE,102084
Portsmouth City Council,PCC,Central Services,Coroners' Court Services,Culture & City Development,Supplies and Services,Services,29/05/2019,6302224,2325.1,SOLETRADER,Classified as 'personal data' (under the Data Protection Act 2018),140312
Portsmouth City Council,PCC,Central Services,Coroners' Court Services,Culture & City Development,Supplies and Services,Services,22/05/2019,6301114,83.5,VENDOR,SPINDRIFT PATHOLOGY LIMITED,144965
Portsmouth City Council,PCC,Support Service / Transparency Costs Unallocated,AMS,Regeneration,Employees,Indirect employee expenses,30/05/2019,6302380,520,VENDOR,ROYAL INSTITUTION OF CHARTERED SURVEYORS,100075
Portsmouth City Council,PCC,Children's and Education Services,Family Support Services,Children's Services and Education,Third Party Payments,Private contractors,01/05/2019,6296967,110,VENDOR,A VAN PORTSMOUTH LIMITED,138694
Portsmouth City Council,PCC,Children's and Education Services,Safeguarding Children and Young Peoples Services,Children's Services and Education,Third Party Payments,Other establishments,10/05/2019,6298801,1095.5,VENDOR,CUMBRIA COUNTY COUNCIL,142982
Portsmouth City Council,PCC,Central Services,Coroners' Court Services,Culture & City Development,Supplies and Services,Services,29/05/2019,6302224,1458.5,SOLETRADER,Classified as 'personal data' (under the Data Protection Act 2018),140312
Portsmouth City Council,PCC,Central Services,Coroners' Court Services,Culture & City Development,Supplies and Services,Services,29/05/2019,6302224,170.5,SOLETRADER,Classified as 'personal data' (under the Data Protection Act 2018),140312
Portsmouth City Council,PCC,Other,Suspense and Capital Schemes,Capital - Housing GF,Capital Charges,REFCUS,22/05/2019,6301145,5444.3,VENDOR,WICOR BUILDING SERVICES LIMITED,144144
Portsmouth City Council,PCC,Housing Services,Private Sector Housing Renewal,"Housing, Neighbourhood and Building Services",Income,Other grants reimbursements and contributions,22/05/2019,6301145,-571.08,VENDOR,WICOR BUILDING SERVICES LIMITED,144144
Portsmouth City Council,PCC,Housing Services,Homelessness,"Housing, Neighbourhood and Building Services",Third Party Payments,Private contractors,22/05/2019,6301074,120,VENDOR,M J H REMOVALS LTD,105441
Portsmouth City Council,PCC,Support Service / Transparency Costs Unallocated,AMS,Regeneration,Employees,Direct employee expenses,21/05/2019,6300125,8288.4,VENDOR,INTEGRATED & VERTICALLY ALIGNED SOLUTIONS LTD,144503
Portsmouth City Council,PCC,Housing Services,Homelessness,"Housing, Neighbourhood and Building Services",Third Party Payments,Private contractors,22/05/2019,6301074,340,VENDOR,M J H REMOVALS LTD,105441
Portsmouth City Council,PCC,Housing Services,Homelessness,"Housing, Neighbourhood and Building Services",Third Party Payments,Private contractors,22/05/2019,6301074,350,VENDOR,M J H REMOVALS LTD,105441
Portsmouth City Council,PCC,Housing Services,Homelessness,"Housing, Neighbourhood and Building Services",Third Party Payments,Private contractors,22/05/2019,6301074,390,VENDOR,M J H REMOVALS LTD,105441
Portsmouth City Council,PCC,Children's and Education Services,Children Looked After,Children's Services and Education,Third Party Payments,Other establishments,22/05/2019,6301056,5284.8,VENDOR,INTEGRATED SERVICES PROGRAMME,136360
Portsmouth City Council,PCC,Children's and Education Services,Children Looked After,Children's Services and Education,Third Party Payments,Other establishments,22/05/2019,6301056,5284.8,VENDOR,INTEGRATED SERVICES PROGRAMME,136360
Portsmouth City Council,PCC,Children's and Education Services,Children Looked After,Children's Services and Education,Third Party Payments,Other establishments,22/05/2019,6301056,5284.8,VENDOR,INTEGRATED SERVICES PROGRAMME,136360
Portsmouth City Council,PCC,Adult Social Care,Physical Support Older People (85+),Adult Services,Third Party Payments,Other establishments,10/05/2019,6298702,1796.26,VENDOR,AGINCARE UK,134367
Portsmouth City Council,PCC,Adult Social Care,Support with Memory and Cognition Older People (85+),Adult Services,Third Party Payments,Other establishments,10/05/2019,6298708,2672.82,VENDOR,ALTON HOUSE PARTNERSHIP,119112
Portsmouth City Council,PCC,Other,Suspense and Capital Schemes,Capital - Housing RA,Capital Charges,Capital Expenditure (WIP),22/05/2019,6301074,482,VENDOR,M J H REMOVALS LTD,105441
Portsmouth City Council,PCC,Support Service / Transparency Costs Unallocated,AMS,Regeneration,Supplies and Services,Communications and computing,29/05/2019,6301785,5000,VENDOR,CONCERTO SUPPORT SERVICES LTD,129010
Portsmouth City Council,PCC,Adult Social Care,Support with Memory and Cognition Older People (85+),Adult Services,Third Party Payments,Other establishments,10/05/2019,6298708,2672.82,VENDOR,ALTON HOUSE PARTNERSHIP,119112
Portsmouth City Council,PCC,Adult Social Care,Learning Disability Support  Adults (18 - 64),Adult Services,Third Party Payments,Other establishments,10/05/2019,6298719,10031.6,VENDOR,ASPENS CHARITIES,119343
Portsmouth City Council,PCC,Planning Services,Business support,Regeneration,Third Party Payments,Private contractors,02/05/2019,6297672,500,VENDOR,THE RIGHT TRAINING COMPANY,140621
Portsmouth City Council,PCC,Children's and Education Services,Other Education and Community Budget,Children's Services and Education,Transport-Related Expenditure,Car allowances,10/05/2019,6298757,770,VENDOR,CITY WIDE TAXIS,103408
Portsmouth City Council,PCC,Children's and Education Services,Other Education and Community Budget,Children's Services and Education,Transport-Related Expenditure,Car allowances,10/05/2019,6298757,320,VENDOR,CITY WIDE TAXIS,103408
Portsmouth City Council,PCC,Children's and Education Services,Other Education and Community Budget,Children's Services and Education,Transport-Related Expenditure,Car allowances,10/05/2019,6298757,550,VENDOR,CITY WIDE TAXIS,103408
Portsmouth City Council,PCC,Children's and Education Services,Other Education and Community Budget,Children's Services and Education,Transport-Related Expenditure,Car allowances,10/05/2019,6298757,550,VENDOR,CITY WIDE TAXIS,103408
Portsmouth City Council,PCC,Children's and Education Services,Other Education and Community Budget,Children's Services and Education,Transport-Related Expenditure,Car allowances,10/05/2019,6298757,682.5,VENDOR,CITY WIDE TAXIS,103408
Portsmouth City Council,PCC,Children's and Education Services,Other Education and Community Budget,Children's Services and Education,Transport-Related Expenditure,Car allowances,10/05/2019,6298757,280,VENDOR,CITY WIDE TAXIS,103408
Portsmouth City Council,PCC,Children's and Education Services,Other Education and Community Budget,Children's Services and Education,Transport-Related Expenditure,Car allowances,10/05/2019,6298757,558,VENDOR,CITY WIDE TAXIS,103408
Portsmouth City Council,PCC,Children's and Education Services,Other Education and Community Budget,Children's Services and Education,Transport-Related Expenditure,Car allowances,10/05/2019,6298757,1350,VENDOR,CITY WIDE TAXIS,103408
Portsmouth City Council,PCC,Adult Social Care,Learning Disability Support  Adults (18 - 64),Adult Services,Third Party Payments,Other establishments,10/05/2019,6298721,9297.21,VENDOR,ASSURE HEALTH CARE GROUP,140779
Portsmouth City Council,PCC,Other,Suspense and Capital Schemes,Capital - Education,Capital Charges,Capital Expenditure (WIP),07/05/2019,6298039,17640,VENDOR,SMALL ARCHITECTURE,140263
Portsmouth City Council,PCC,Housing Revenue Account,Repairs and Maintenance,"Housing, Neighbourhood and Building Services",Premises-Related Expenditure,Energy costs,03/05/2019,6297888,162.88,COMPANY,SSE PLC (SCOTTISH AND SOUTHERN ENERGY PLC),100303
Portsmouth City Council,PCC,Costs below Net Cost of Services,Trading,Finance & IT,Supplies and Services,Miscellaneous expenses,15/05/2019,322096,1680.91,VENDOR,UK INSURANCE LTD,144591
Portsmouth City Council,PCC,Cultural and Related Services,Open Spaces,Culture & City Development,Premises-Related Expenditure,Grounds maintenance costs,01/05/2019,6297421,2985.56,COMPANY,HAGS-SMP LIMITED,106205
Portsmouth City Council,PCC,Cultural and Related Services,Open Spaces,Culture & City Development,Premises-Related Expenditure,Grounds maintenance costs,01/05/2019,6297420,542.64,COMPANY,HAGS-SMP LIMITED,106205
Portsmouth City Council,PCC,Central Services,Elections,Community & Communication,Supplies and Services,"Printing, stationery and general office expenses",21/05/2019,6300157,2134.77,VENDOR,ROYAL MAIL,100182
Portsmouth City Council,PCC,Children's and Education Services,Children Looked After,Children's Services and Education,Supplies and Services,Services,09/05/2019,6298626,128,VENDOR,HOME SCHOOL TUTORING,140194
Portsmouth City Council,PCC,Children's and Education Services,Children Looked After,Children's Services and Education,Supplies and Services,Services,09/05/2019,6298626,128,VENDOR,HOME SCHOOL TUTORING,140194
Portsmouth City Council,PCC,Children's and Education Services,Children Looked After,Children's Services and Education,Supplies and Services,Services,09/05/2019,6298626,96,VENDOR,HOME SCHOOL TUTORING,140194
Portsmouth City Council,PCC,Housing Services,Housing Strategy,"Housing, Neighbourhood and Building Services",Supplies and Services,Grants and subscriptions,01/05/2019,6297475,300,VENDOR,ROYAL INSTITUTION OF CHARTERED SURVEYORS,100075
Portsmouth City Council,PCC,Support Service / Transparency Costs Unallocated,AMS,"Housing, Neighbourhood and Building Services",Supplies and Services,Grants and subscriptions,01/05/2019,6297475,300,VENDOR,ROYAL INSTITUTION OF CHARTERED SURVEYORS,100075
Portsmouth City Council,PCC,Children's and Education Services,Children Looked After,Children's Services and Education,Supplies and Services,Services,09/05/2019,6298626,1280,VENDOR,HOME SCHOOL TUTORING,140194
Portsmouth City Council,PCC,Children's and Education Services,Asylum seekers,Children's Services and Education,Third Party Payments,Other establishments,10/05/2019,6298817,-6600,VENDOR,FAMILYPLACEMENT.COM LIMITED,137231
Portsmouth City Council,PCC,Children's and Education Services,Children Looked After,Children's Services and Education,Supplies and Services,Services,09/05/2019,6298626,96,VENDOR,HOME SCHOOL TUTORING,140194
Portsmouth City Council,PCC,Housing Revenue Account,Repairs and Maintenance,"Housing, Neighbourhood and Building Services",Premises-Related Expenditure,"Repairs, alterations and maintenance of buildings",01/05/2019,6297000,1156376.71,COMPANY,COMSERV (UK) LIMITED,120542
Portsmouth City Council,PCC,Housing Revenue Account,Repairs and Maintenance,"Housing, Neighbourhood and Building Services",Premises-Related Expenditure,"Repairs, alterations and maintenance of buildings",28/05/2019,6301686,422118.02,COMPANY,LIBERTY GAS GROUP LIMITED,134977
Portsmouth City Council,PCC,Adult Social Care,Learning Disability Support  Adults (18 - 64),Adult Services,Third Party Payments,Other establishments,10/05/2019,6298721,7334.6,VENDOR,ASSURE HEALTH CARE GROUP,140779
Portsmouth City Council,PCC,Adult Social Care,Learning Disability Support  Adults (18 - 64),Adult Services,Third Party Payments,Other establishments,28/05/2019,6301614,603.66,VENDOR,AUTISM HAMPSHIRE,139112
Portsmouth City Council,PCC,Adult Social Care,Learning Disability Support  Adults (18 - 64),Adult Services,Third Party Payments,Other establishments,28/05/2019,6301614,1235.88,VENDOR,AUTISM HAMPSHIRE,139112
Portsmouth City Council,PCC,Adult Social Care,Social Care Activities,Adult Services,Third Party Payments,Other establishments,10/05/2019,6298724,15860.53,VENDOR,AUTISM HAMPSHIRE,139112
Portsmouth City Council,PCC,Adult Social Care,Learning Disability Support  Adults (18 - 64),Adult Services,Third Party Payments,Other establishments,10/05/2019,6298724,5964.71,VENDOR,AUTISM HAMPSHIRE,139112
Portsmouth City Council,PCC,Adult Social Care,Social Care Activities,Adult Services,Third Party Payments,Other establishments,03/05/2019,6297830,-16.3,VENDOR,NURSE PLUS & CARER PLUS (UK) LIMITED,129474
Portsmouth City Council,PCC,Adult Social Care,Social Care Activities,Adult Services,Third Party Payments,Other establishments,03/05/2019,6297830,-16.3,VENDOR,NURSE PLUS & CARER PLUS (UK) LIMITED,129474
Portsmouth City Council,PCC,Cultural and Related Services,Library Service,Culture & City Development,Supplies and Services,Communications and computing,24/05/2019,6301455,2843.76,VENDOR,INSIGHT MEDIA INTERNET LTD,104536
Portsmouth City Council,PCC,Cultural and Related Services,Culture and Heritage,Culture & City Development,Third Party Payments,Private contractors,24/05/2019,6301589,1200,VENDOR,WILD IN THE COUNTRY LTD,137857
Portsmouth City Council,PCC,Support Service / Transparency Costs Unallocated,AMS,"Housing, Neighbourhood and Building Services",Premises-Related Expenditure,"Repairs, alterations and maintenance of buildings",02/05/2019,6297597,4013,VENDOR,DETECT FIRE AND SECURITY LTD,126216
Portsmouth City Council,PCC,Cultural and Related Services,Tourism,Culture & City Development,Third Party Payments,Private contractors,07/05/2019,6298011,724.35,VENDOR,LIFESTYLE MEDIA GROUP LIMITED,131557
Portsmouth City Council,PCC,Adult Social Care,Social Support - Support for Carer,Adult Services,Third Party Payments,Other establishments,01/05/2019,6297480,35.2,VENDOR,SEVACARE (UK) LTD,136163
Portsmouth City Council,PCC,Adult Social Care,Social Support - Support for Carer,Adult Services,Third Party Payments,Other establishments,01/05/2019,6297480,28.16,VENDOR,SEVACARE (UK) LTD,136163
Portsmouth City Council,PCC,Adult Social Care,Information and Early Intervention,Adult Services,Third Party Payments,Other establishments,28/05/2019,6301603,20639,VENDOR,APETITO LTD,100127
Portsmouth City Council,PCC,Adult Social Care,Information and Early Intervention,Adult Services,Income,Customer and client receipts,28/05/2019,6301603,-20639,VENDOR,APETITO LTD,100127
Portsmouth City Council,PCC,Children's and Education Services,Children Looked After,Children's Services and Education,Supplies and Services,Services,09/05/2019,6298626,256,VENDOR,HOME SCHOOL TUTORING,140194
Portsmouth City Council,PCC,Costs below Net Cost of Services,Trading,Finance & IT,Supplies and Services,Miscellaneous expenses,14/05/2019,6299132,1620,VENDOR,DWF LLP,138783
Portsmouth City Council,PCC,Costs below Net Cost of Services,Trading,Finance & IT,Supplies and Services,Miscellaneous expenses,22/05/2019,6300664,1755,VENDOR,DWF LLP,138783
Portsmouth City Council,PCC,Cultural and Related Services,Culture and Heritage,Culture & City Development,Supplies and Services,"Equipment, furniture and materials",07/05/2019,6298045,-13.65,VENDOR,STAR EDITIONS LTD,138840
Portsmouth City Council,PCC,Children's and Education Services,Children Looked After,Children's Services and Education,Third Party Payments,Other establishments,03/05/2019,6297870,206.75,VENDOR,SAKURA CARE LIMITED,144940
Portsmouth City Council,PCC,Children's and Education Services,Children Looked After,Children's Services and Education,Third Party Payments,Other establishments,03/05/2019,6297870,7961.91,VENDOR,SAKURA CARE LIMITED,144940
Portsmouth City Council,PCC,Children's and Education Services,Asylum seekers,Children's Services and Education,Third Party Payments,Other establishments,03/05/2019,6297870,1581.93,VENDOR,SAKURA CARE LIMITED,144940
Portsmouth City Council,PCC,Children's and Education Services,Asylum seekers,Children's Services and Education,Third Party Payments,Other establishments,03/05/2019,6297870,3954.81,VENDOR,SAKURA CARE LIMITED,144940
Portsmouth City Council,PCC,Children's and Education Services,Children Looked After,Children's Services and Education,Third Party Payments,Other establishments,28/05/2019,6301717,8134.31,VENDOR,SAKURA CARE LIMITED,144940
Portsmouth City Council,PCC,Children's and Education Services,Safeguarding Children and Young Peoples Services,Children's Services and Education,Third Party Payments,Other establishments,24/05/2019,6301520,4086.64,VENDOR,SAKURA CARE LIMITED,144940
Portsmouth City Council,PCC,Cultural and Related Services,Open Spaces,Culture & City Development,Supplies and Services,"Equipment, furniture and materials",03/05/2019,6297881,875,VENDOR,SOLENT TURF SUPPLIES LTD,143646
Portsmouth City Council,PCC,Children's and Education Services,Children Looked After,Children's Services and Education,Third Party Payments,Other establishments,15/05/2019,6299224,3658.14,VENDOR,DIAGRAMA FOUNDATION,121858
Portsmouth City Council,PCC,Children's and Education Services,Children Looked After,Children's Services and Education,Supplies and Services,Services,09/05/2019,6298626,192,VENDOR,HOME SCHOOL TUTORING,140194
Portsmouth City Council,PCC,Cultural and Related Services,Recreation and Sport,Culture & City Development,Supplies and Services,Grants and subscriptions,01/05/2019,6297430,1625,VENDOR,HIGHBURY AREA COMMUNITY ASSOCIATION,104488
Portsmouth City Council,PCC,Support Service / Transparency Costs Unallocated,Personnel,"HR, Legal, Audit & Performance",Employees,Direct employee expenses,03/05/2019,6297717,51896.7,VENDOR,COMENSURA LTD,140265
Portsmouth City Council,PCC,Support Service / Transparency Costs Unallocated,Personnel,"HR, Legal, Audit & Performance",Employees,Direct employee expenses,10/05/2019,6298762,74986.08,VENDOR,COMENSURA LTD,140265
Portsmouth City Council,PCC,Support Service / Transparency Costs Unallocated,Personnel,"HR, Legal, Audit & Performance",Employees,Direct employee expenses,17/05/2019,6299804,76626.18,VENDOR,COMENSURA LTD,140265
Portsmouth City Council,PCC,Support Service / Transparency Costs Unallocated,Personnel,"HR, Legal, Audit & Performance",Employees,Direct employee expenses,24/05/2019,6301365,58130.43,VENDOR,COMENSURA LTD,140265
Portsmouth City Council,PCC,Support Service / Transparency Costs Unallocated,Personnel,"HR, Legal, Audit & Performance",Employees,Direct employee expenses,31/05/2019,6302441,59014.52,VENDOR,COMENSURA LTD,140265
Portsmouth City Council,PCC,Other,Suspense and Capital Schemes,Capital - Traffic & Transportation,Capital Charges,Capital Expenditure (WIP),03/05/2019,6297872,19494,COMPANY,SIEMENS PLC,106546
Portsmouth City Council,PCC,Cultural and Related Services,Culture and Heritage,Culture & City Development,Supplies and Services,"Equipment, furniture and materials",14/05/2019,6299168,810.86,VENDOR,SDL IMPORTS LTD,101235
Portsmouth City Council,PCC,Highways and Transport Services,"Airports, Harbours and Toll Facilities",Portsmouth International Port,Premises-Related Expenditure,"Repairs, alterations and maintenance of buildings",23/05/2019,6301289,464,VENDOR,SOUMAC ELECTRONICS LTD,140847
Portsmouth City Council,PCC,Support Service / Transparency Costs Unallocated,Information Services,Finance & IT,Supplies and Services,Communications and computing,01/05/2019,6297033,399,VENDOR,EXCEL POWER LTD,145031
Portsmouth City Council,PCC,Support Service / Transparency Costs Unallocated,Information Services,Finance & IT,Supplies and Services,Communications and computing,01/05/2019,6297033,399,VENDOR,EXCEL POWER LTD,145031
Portsmouth City Council,PCC,Children's and Education Services,Children Looked After,Children's Services and Education,Supplies and Services,Services,09/05/2019,6298626,224,VENDOR,HOME SCHOOL TUTORING,140194
Portsmouth City Council,PCC,Environmental and Regulatory Services,Regulatory Services,"Housing, Neighbourhood and Building Services",Premises-Related Expenditure,Water Services,10/05/2019,6298753,78.54,VENDOR,CASTLE WATER LIMITED,142798
Portsmouth City Council,PCC,Cultural and Related Services,Open Spaces,Culture & City Development,Premises-Related Expenditure,Water Services,24/05/2019,6301353,333.72,VENDOR,CASTLE WATER LIMITED,142798
Portsmouth City Council,PCC,Cultural and Related Services,Open Spaces,Culture & City Development,Premises-Related Expenditure,Water Services,10/05/2019,6298753,2.33,VENDOR,CASTLE WATER LIMITED,142798
Portsmouth City Council,PCC,Housing Revenue Account,Supervision and Management,"Housing, Neighbourhood and Building Services",Premises-Related Expenditure,Water Services,10/05/2019,6298753,2.33,VENDOR,CASTLE WATER LIMITED,142798
Portsmouth City Council,PCC,Housing Revenue Account,Supervision and Management,"Housing, Neighbourhood and Building Services",Premises-Related Expenditure,Water Services,10/05/2019,6298753,2.33,VENDOR,CASTLE WATER LIMITED,142798
Portsmouth City Council,PCC,Highways and Transport Services,"Airports, Harbours and Toll Facilities",Portsmouth International Port,Premises-Related Expenditure,"Repairs, alterations and maintenance of buildings",10/05/2019,6298729,634.45,COMPANY,BALMORAL FLOORING,121767
Portsmouth City Council,PCC,Cultural and Related Services,Open Spaces,Culture & City Development,Premises-Related Expenditure,Water Services,10/05/2019,6298753,94.52,VENDOR,CASTLE WATER LIMITED,142798
Portsmouth City Council,PCC,Environmental and Regulatory Services,Regulatory Services,"Housing, Neighbourhood and Building Services",Premises-Related Expenditure,Water Services,10/05/2019,6298753,140.19,VENDOR,CASTLE WATER LIMITED,142798
Portsmouth City Council,PCC,Housing Revenue Account,Special Services,"Housing, Neighbourhood and Building Services",Premises-Related Expenditure,Water Services,10/05/2019,6298753,8.48,VENDOR,CASTLE WATER LIMITED,142798
Portsmouth City Council,PCC,Cultural and Related Services,Open Spaces,Culture & City Development,Premises-Related Expenditure,Water Services,10/05/2019,6298753,122.87,VENDOR,CASTLE WATER LIMITED,142798
Portsmouth City Council,PCC,Cultural and Related Services,Open Spaces,Culture & City Development,Premises-Related Expenditure,Water Services,24/05/2019,6301353,122.87,VENDOR,CASTLE WATER LIMITED,142798
Portsmouth City Council,PCC,Environmental and Regulatory Services,"Cemetery, Cremation and Mortuary Services",Culture & City Development,Premises-Related Expenditure,Water Services,10/05/2019,6298753,35.99,VENDOR,CASTLE WATER LIMITED,142798
Portsmouth City Council,PCC,Cultural and Related Services,Open Spaces,Culture & City Development,Premises-Related Expenditure,Water Services,10/05/2019,6298753,260.48,VENDOR,CASTLE WATER LIMITED,142798
Portsmouth City Council,PCC,Highways and Transport Services,"Transport Planning, Policy and Strategy",Regeneration,Premises-Related Expenditure,Water Services,10/05/2019,6298753,2.32,VENDOR,CASTLE WATER LIMITED,142798
Portsmouth City Council,PCC,Housing Revenue Account,"Rents, Rates, Taxes and Other Charges","Housing, Neighbourhood and Building Services",Premises-Related Expenditure,Water Services,10/05/2019,6298753,135.89,VENDOR,CASTLE WATER LIMITED,142798
Portsmouth City Council,PCC,Cultural and Related Services,Open Spaces,Culture & City Development,Premises-Related Expenditure,Water Services,10/05/2019,6298753,503.77,VENDOR,CASTLE WATER LIMITED,142798
Portsmouth City Council,PCC,Cultural and Related Services,Open Spaces,Culture & City Development,Premises-Related Expenditure,Water Services,10/05/2019,6298753,2.33,VENDOR,CASTLE WATER LIMITED,142798
Portsmouth City Council,PCC,Cultural and Related Services,Open Spaces,Culture & City Development,Premises-Related Expenditure,Water Services,10/05/2019,6298753,184.53,VENDOR,CASTLE WATER LIMITED,142798
Portsmouth City Council,PCC,Cultural and Related Services,Open Spaces,Culture & City Development,Premises-Related Expenditure,Water Services,24/05/2019,6301353,137.27,VENDOR,CASTLE WATER LIMITED,142798
Portsmouth City Council,PCC,Cultural and Related Services,Open Spaces,Culture & City Development,Premises-Related Expenditure,Water Services,10/05/2019,6298753,19.78,VENDOR,CASTLE WATER LIMITED,142798
Portsmouth City Council,PCC,Cultural and Related Services,Open Spaces,Culture & City Development,Premises-Related Expenditure,Water Services,10/05/2019,6298753,14.1,VENDOR,CASTLE WATER LIMITED,142798
Portsmouth City Council,PCC,Planning Services,Business support,Regeneration,Premises-Related Expenditure,Water Services,10/05/2019,6298753,2.68,VENDOR,CASTLE WATER LIMITED,142798
Portsmouth City Council,PCC,Housing Revenue Account,Supervision and Management,"Housing, Neighbourhood and Building Services",Premises-Related Expenditure,Water Services,10/05/2019,6298753,267.15,VENDOR,CASTLE WATER LIMITED,142798
Portsmouth City Council,PCC,Cultural and Related Services,Open Spaces,Culture & City Development,Premises-Related Expenditure,Water Services,10/05/2019,6298753,9.77,VENDOR,CASTLE WATER LIMITED,142798
Portsmouth City Council,PCC,Cultural and Related Services,Open Spaces,Culture & City Development,Premises-Related Expenditure,Water Services,10/05/2019,6298753,7.4,VENDOR,CASTLE WATER LIMITED,142798
Portsmouth City Council,PCC,Cultural and Related Services,Open Spaces,Culture & City Development,Premises-Related Expenditure,Water Services,10/05/2019,6298753,110.49,VENDOR,CASTLE WATER LIMITED,142798
Portsmouth City Council,PCC,Costs below Net Cost of Services,Trading,"Housing, Neighbourhood and Building Services",Premises-Related Expenditure,Water Services,10/05/2019,6298753,1772.18,VENDOR,CASTLE WATER LIMITED,142798
Portsmouth City Council,PCC,Cultural and Related Services,Open Spaces,Culture & City Development,Premises-Related Expenditure,Water Services,10/05/2019,6298753,12,VENDOR,CASTLE WATER LIMITED,142798
Portsmouth City Council,PCC,Cultural and Related Services,Open Spaces,Culture & City Development,Premises-Related Expenditure,Water Services,10/05/2019,6298753,2.33,VENDOR,CASTLE WATER LIMITED,142798
Portsmouth City Council,PCC,Cultural and Related Services,Open Spaces,Culture & City Development,Premises-Related Expenditure,Water Services,10/05/2019,6298753,12.38,VENDOR,CASTLE WATER LIMITED,142798
Portsmouth City Council,PCC,Cultural and Related Services,Open Spaces,Culture & City Development,Premises-Related Expenditure,Water Services,10/05/2019,6298753,0.96,VENDOR,CASTLE WATER LIMITED,142798
Portsmouth City Council,PCC,Children's and Education Services,Other Education and Community Budget,Children's Services and Education,Premises-Related Expenditure,Water Services,10/05/2019,6298753,31.28,VENDOR,CASTLE WATER LIMITED,142798
Portsmouth City Council,PCC,Cultural and Related Services,Open Spaces,Culture & City Development,Premises-Related Expenditure,Water Services,10/05/2019,6298753,16.14,VENDOR,CASTLE WATER LIMITED,142798
Portsmouth City Council,PCC,Cultural and Related Services,Open Spaces,Culture & City Development,Premises-Related Expenditure,Water Services,10/05/2019,6298753,3.56,VENDOR,CASTLE WATER LIMITED,142798
Portsmouth City Council,PCC,Cultural and Related Services,Open Spaces,Culture & City Development,Premises-Related Expenditure,Water Services,24/05/2019,6301353,3.56,VENDOR,CASTLE WATER LIMITED,142798
Portsmouth City Council,PCC,Support Service / Transparency Costs Unallocated,AMS,Regeneration,Supplies and Services,Communications and computing,13/05/2019,6298990,114.2,VENDOR,CIVICA UK LTD,104001
Portsmouth City Council,PCC,Highways and Transport Services,"Transport Planning, Policy and Strategy",Regeneration,Supplies and Services,Communications and computing,13/05/2019,6298990,432.86,VENDOR,CIVICA UK LTD,104001
Portsmouth City Council,PCC,Support Service / Transparency Costs Unallocated,AMS,"Housing, Neighbourhood and Building Services",Supplies and Services,Communications and computing,14/05/2019,6299112,432.86,VENDOR,CIVICA UK LTD,104001
Portsmouth City Council,PCC,Support Service / Transparency Costs Unallocated,AMS,Regeneration,Supplies and Services,Communications and computing,14/05/2019,6299112,193.18,VENDOR,CIVICA UK LTD,104001
Portsmouth City Council,PCC,Support Service / Transparency Costs Unallocated,AMS,"Housing, Neighbourhood and Building Services",Supplies and Services,Communications and computing,14/05/2019,6299112,548.3,VENDOR,CIVICA UK LTD,104001
Portsmouth City Council,PCC,Support Service / Transparency Costs Unallocated,AMS,"Housing, Neighbourhood and Building Services",Supplies and Services,Communications and computing,14/05/2019,6299112,432.86,VENDOR,CIVICA UK LTD,104001
Portsmouth City Council,PCC,Other,Suspense and Capital Schemes,Capital - Traffic & Transportation,Capital Charges,Capital Expenditure (WIP),03/05/2019,6297785,4100,COMPANY,HAMPSHIRE ENVIRONMENTAL SERVICES LTD,136924
Portsmouth City Council,PCC,Children's and Education Services,Children Looked After,Children's Services and Education,Supplies and Services,Services,09/05/2019,6298626,160,VENDOR,HOME SCHOOL TUTORING,140194
Portsmouth City Council,PCC,Other,Suspense and Capital Schemes,Capital - Housing GF,Capital Charges,REFCUS,22/05/2019,6300663,784,COMPANY,DOLPHIN MOBILITY LTD,135682
Portsmouth City Council,PCC,Housing Services,Private Sector Housing Renewal,"Housing, Neighbourhood and Building Services",Income,Other grants reimbursements and contributions,22/05/2019,6300663,-70,COMPANY,DOLPHIN MOBILITY LTD,135682
Portsmouth City Council,PCC,Housing Revenue Account,Special Services,"Housing, Neighbourhood and Building Services",Supplies and Services,Miscellaneous expenses,22/05/2019,6300630,634.93,VENDOR,A & J LAWRENCE LTD,141283
Portsmouth City Council,PCC,Other,Suspense and Capital Schemes,Capital - Housing GF,Capital Charges,REFCUS,16/05/2019,6299745,1678.88,COMPANY,DOLPHIN MOBILITY LTD,135682
Portsmouth City Council,PCC,Housing Services,Private Sector Housing Renewal,"Housing, Neighbourhood and Building Services",Income,Other grants reimbursements and contributions,16/05/2019,6299745,-149.9,COMPANY,DOLPHIN MOBILITY LTD,135682
Portsmouth City Council,PCC,Other,Suspense and Capital Schemes,Capital - Housing GF,Capital Charges,REFCUS,22/05/2019,6300663,2234.4,COMPANY,DOLPHIN MOBILITY LTD,135682
Portsmouth City Council,PCC,Housing Services,Private Sector Housing Renewal,"Housing, Neighbourhood and Building Services",Income,Other grants reimbursements and contributions,22/05/2019,6300663,-199.5,COMPANY,DOLPHIN MOBILITY LTD,135682
Portsmouth City Council,PCC,Other,Suspense and Capital Schemes,Capital - Housing GF,Capital Charges,REFCUS,16/05/2019,6299745,784,COMPANY,DOLPHIN MOBILITY LTD,135682
Portsmouth City Council,PCC,Housing Services,Private Sector Housing Renewal,"Housing, Neighbourhood and Building Services",Income,Other grants reimbursements and contributions,16/05/2019,6299745,-70,COMPANY,DOLPHIN MOBILITY LTD,135682
Portsmouth City Council,PCC,Other,Suspense and Capital Schemes,Capital - Environment,Capital Charges,Capital Expenditure (WIP),20/05/2019,6299952,96603.02,VENDOR,HASKONINGDHV UK LIMITED,109400
Portsmouth City Council,PCC,Other,Suspense and Capital Schemes,Capital - Environment,Capital Charges,Capital Expenditure (WIP),20/05/2019,6299952,-96603.02,VENDOR,HASKONINGDHV UK LIMITED,109400
Portsmouth City Council,PCC,Other,Suspense and Capital Schemes,Capital - Environment,Capital Charges,Capital Expenditure (WIP),20/05/2019,6299952,95644.68,VENDOR,HASKONINGDHV UK LIMITED,109400
Portsmouth City Council,PCC,Children's and Education Services,Family Support Services,Children's Services and Education,Third Party Payments,Other establishments,14/05/2019,6299127,25,VENDOR,DAVID HOWARD LIMITED,141296
Portsmouth City Council,PCC,Adult Social Care,Physical Support Adults (18 - 64),Adult Services,Third Party Payments,Other establishments,14/05/2019,6299127,1399.99,VENDOR,DAVID HOWARD LIMITED,141296
Portsmouth City Council,PCC,Adult Social Care,Learning Disability Support  Adults (18 - 64),Adult Services,Third Party Payments,Other establishments,10/05/2019,6298724,5708.65,VENDOR,AUTISM HAMPSHIRE,139112
Portsmouth City Council,PCC,Adult Social Care,Learning Disability Support  Adults (18 - 64),Adult Services,Third Party Payments,Other establishments,10/05/2019,6298724,2367.78,VENDOR,AUTISM HAMPSHIRE,139112
Portsmouth City Council,PCC,Adult Social Care,Learning Disability Support  Adults (18 - 64),Adult Services,Third Party Payments,Other establishments,10/05/2019,6298724,10412.59,VENDOR,AUTISM HAMPSHIRE,139112
Portsmouth City Council,PCC,Adult Social Care,Learning Disability Support  Adults (18 - 64),Adult Services,Third Party Payments,Other establishments,28/05/2019,6301615,5544.1,VENDOR,AUTISM HAMPSHIRE,139112
Portsmouth City Council,PCC,Adult Social Care,Learning Disability Support  Adults (18 - 64),Adult Services,Third Party Payments,Other establishments,28/05/2019,6301615,6138.11,VENDOR,AUTISM HAMPSHIRE,139112
Portsmouth City Council,PCC,Adult Social Care,Learning Disability Support  Adults (18 - 64),Adult Services,Third Party Payments,Other establishments,28/05/2019,6301615,1683.44,VENDOR,AUTISM HAMPSHIRE,139112
Portsmouth City Council,PCC,Adult Social Care,Commissioning & service delivery,Adult Services,Employees,Indirect employee expenses,30/05/2019,6302302,625,VENDOR,BOURNEMOUTH UNIVERSITY,112290
Portsmouth City Council,PCC,Public Health,Sexual Health,Public Health,Third Party Payments,Other establishments,14/05/2019,6299110,2938.76,VENDOR,BRIGHTON & SUSSEX UNIVERSITY HOSPITALS NHS TRUST,145097
Portsmouth City Council,PCC,Children's and Education Services,Children Looked After,Children's Services and Education,Third Party Payments,Other establishments,16/05/2019,6299750,570.8,VENDOR,HILLCREST CHILDRENS SERVICES LIMITED,117913
Portsmouth City Council,PCC,Children's and Education Services,Children Looked After,Children's Services and Education,Third Party Payments,Other establishments,16/05/2019,6299750,15704.2,VENDOR,HILLCREST CHILDRENS SERVICES LIMITED,117913
Portsmouth City Council,PCC,Other,Suspense and Capital Schemes,Capital - PRED (Excl. Port & Solent LEP),Capital Charges,Capital Expenditure (WIP),10/05/2019,6298727,1338,VENDOR,AW CORROSION SOLUTIONS,140373
Portsmouth City Council,PCC,Housing Services,Homelessness,"Housing, Neighbourhood and Building Services",Third Party Payments,Private contractors,03/05/2019,6297692,465.5,VENDOR,Classified as 'personal data' (under the Data Protection Act 2018),141332
Portsmouth City Council,PCC,Housing Services,Homelessness,"Housing, Neighbourhood and Building Services",Third Party Payments,Private contractors,03/05/2019,6297692,417.08,VENDOR,Classified as 'personal data' (under the Data Protection Act 2018),141332
Portsmouth City Council,PCC,Housing Services,Homelessness,"Housing, Neighbourhood and Building Services",Third Party Payments,Private contractors,03/05/2019,6297692,48.42,VENDOR,Classified as 'personal data' (under the Data Protection Act 2018),141332
Portsmouth City Council,PCC,Housing Services,Homelessness,"Housing, Neighbourhood and Building Services",Third Party Payments,Private contractors,03/05/2019,6297692,465.5,VENDOR,Classified as 'personal data' (under the Data Protection Act 2018),141332
Portsmouth City Council,PCC,Housing Services,Homelessness,"Housing, Neighbourhood and Building Services",Third Party Payments,Private contractors,03/05/2019,6297692,465.5,VENDOR,Classified as 'personal data' (under the Data Protection Act 2018),141332
Portsmouth City Council,PCC,Housing Services,Homelessness,"Housing, Neighbourhood and Building Services",Third Party Payments,Private contractors,03/05/2019,6297692,465.5,VENDOR,Classified as 'personal data' (under the Data Protection Act 2018),141332
Portsmouth City Council,PCC,Housing Services,Homelessness,"Housing, Neighbourhood and Building Services",Third Party Payments,Private contractors,03/05/2019,6297692,465.5,VENDOR,Classified as 'personal data' (under the Data Protection Act 2018),141332
Portsmouth City Council,PCC,Housing Services,Homelessness,"Housing, Neighbourhood and Building Services",Third Party Payments,Private contractors,03/05/2019,6297692,465.5,VENDOR,Classified as 'personal data' (under the Data Protection Act 2018),141332
Portsmouth City Council,PCC,Housing Services,Homelessness,"Housing, Neighbourhood and Building Services",Third Party Payments,Private contractors,03/05/2019,6297692,700,VENDOR,Classified as 'personal data' (under the Data Protection Act 2018),141332
Portsmouth City Council,PCC,Housing Services,Homelessness,"Housing, Neighbourhood and Building Services",Third Party Payments,Private contractors,03/05/2019,6297692,1120,VENDOR,Classified as 'personal data' (under the Data Protection Act 2018),141332
Portsmouth City Council,PCC,Housing Services,Homelessness,"Housing, Neighbourhood and Building Services",Third Party Payments,Private contractors,03/05/2019,6297692,931,VENDOR,Classified as 'personal data' (under the Data Protection Act 2018),141332
Portsmouth City Council,PCC,Housing Services,Homelessness,"Housing, Neighbourhood and Building Services",Third Party Payments,Private contractors,03/05/2019,6297692,465.5,VENDOR,Classified as 'personal data' (under the Data Protection Act 2018),141332
Portsmouth City Council,PCC,Housing Services,Homelessness,"Housing, Neighbourhood and Building Services",Third Party Payments,Private contractors,03/05/2019,6297692,432.25,VENDOR,Classified as 'personal data' (under the Data Protection Act 2018),141332
Portsmouth City Council,PCC,Housing Services,Homelessness,"Housing, Neighbourhood and Building Services",Third Party Payments,Private contractors,03/05/2019,6297692,798,VENDOR,Classified as 'personal data' (under the Data Protection Act 2018),141332
Portsmouth City Council,PCC,Housing Services,Homelessness,"Housing, Neighbourhood and Building Services",Third Party Payments,Private contractors,03/05/2019,6297692,541.83,VENDOR,Classified as 'personal data' (under the Data Protection Act 2018),141332
Portsmouth City Council,PCC,Housing Services,Homelessness,"Housing, Neighbourhood and Building Services",Third Party Payments,Private contractors,03/05/2019,6297692,123.17,VENDOR,Classified as 'personal data' (under the Data Protection Act 2018),141332
Portsmouth City Council,PCC,Housing Services,Homelessness,"Housing, Neighbourhood and Building Services",Third Party Payments,Private contractors,03/05/2019,6297692,465.5,VENDOR,Classified as 'personal data' (under the Data Protection Act 2018),141332
Portsmouth City Council,PCC,Housing Services,Homelessness,"Housing, Neighbourhood and Building Services",Third Party Payments,Private contractors,03/05/2019,6297692,390,VENDOR,Classified as 'personal data' (under the Data Protection Act 2018),141332
Portsmouth City Council,PCC,Children's and Education Services,Children Looked After,Children's Services and Education,Third Party Payments,Other establishments,15/05/2019,6299224,-126.14,VENDOR,DIAGRAMA FOUNDATION,121858
Portsmouth City Council,PCC,Children's and Education Services,Children Looked After,Children's Services and Education,Third Party Payments,Other establishments,22/05/2019,6300637,4318.5,VENDOR,BLUE SKY FOSTERING,119870
Portsmouth City Council,PCC,Corporate and Democratic Core,Corporate Management,Community & Communication,Supplies and Services,"Printing, stationery and general office expenses",03/05/2019,6297768,143,VENDOR,EASTRIO 1 LTD,144641
Portsmouth City Council,PCC,Children's and Education Services,Other Children and Family Services,Children's Services and Education,Supplies and Services,Services,10/05/2019,6298809,328.5,VENDOR,E4LAW LTD T/A LEXTOX,143185
Portsmouth City Council,PCC,Planning Services,Business support,Regeneration,Premises-Related Expenditure,"Repairs, alterations and maintenance of buildings",14/05/2019,6299141,2100,COMPANY,HAMPSHIRE COMMERCIAL REFURBISHMENT LTD,139067
Portsmouth City Council,PCC,Planning Services,Business support,Regeneration,Premises-Related Expenditure,"Repairs, alterations and maintenance of buildings",14/05/2019,6299141,1195,COMPANY,HAMPSHIRE COMMERCIAL REFURBISHMENT LTD,139067
Portsmouth City Council,PCC,Adult Social Care,Social Care Activities,Adult Services,Third Party Payments,Other establishments,14/05/2019,6299181,2595.6,VENDOR,THE OUT OF TOWN CENTRE LIMITED,133198
Portsmouth City Council,PCC,Adult Social Care,Social Care Activities,Adult Services,Third Party Payments,Other establishments,14/05/2019,6299181,5253,VENDOR,THE OUT OF TOWN CENTRE LIMITED,133198
Portsmouth City Council,PCC,Children's and Education Services,Family Support Services,Children's Services and Education,Supplies and Services,Services,23/05/2019,6301232,1125,SOLETRADER,Classified as 'personal data' (under the Data Protection Act 2018),145210
Portsmouth City Council,PCC,Housing Services,Homelessness,"Housing, Neighbourhood and Building Services",Third Party Payments,Private contractors,30/05/2019,6302286,500,VENDOR,Classified as 'personal data' (under the Data Protection Act 2018),141332
Portsmouth City Council,PCC,Children's and Education Services,Children Looked After,Children's Services and Education,Third Party Payments,Other establishments,08/05/2019,6298474,3866.14,VENDOR,FUSION FOSTERING LIMITED,140473
Portsmouth City Council,PCC,Children's and Education Services,Children Looked After,Children's Services and Education,Third Party Payments,Other establishments,08/05/2019,6298474,3866.14,VENDOR,FUSION FOSTERING LIMITED,140473
Portsmouth City Council,PCC,Housing Revenue Account,Repairs and Maintenance,"Housing, Neighbourhood and Building Services",Premises-Related Expenditure,"Repairs, alterations and maintenance of buildings",30/05/2019,6302337,215.8,VENDOR,ECEAU LTD,142965
Portsmouth City Council,PCC,Housing Revenue Account,Repairs and Maintenance,"Housing, Neighbourhood and Building Services",Premises-Related Expenditure,"Repairs, alterations and maintenance of buildings",30/05/2019,6302337,215.8,VENDOR,ECEAU LTD,142965
Portsmouth City Council,PCC,Cultural and Related Services,Open Spaces,Culture & City Development,Supplies and Services,"Equipment, furniture and materials",20/05/2019,6299984,1559.33,VENDOR,PALMSTEAD NURSERIES LTD,135396
Portsmouth City Council,PCC,Cultural and Related Services,Open Spaces,Culture & City Development,Supplies and Services,"Equipment, furniture and materials",20/05/2019,6299984,658.02,VENDOR,PALMSTEAD NURSERIES LTD,135396
Portsmouth City Council,PCC,Cultural and Related Services,Open Spaces,Culture & City Development,Supplies and Services,"Equipment, furniture and materials",20/05/2019,6299984,93,VENDOR,PALMSTEAD NURSERIES LTD,135396
Portsmouth City Council,PCC,Central Services,Elections,Community & Communication,Supplies and Services,"Printing, stationery and general office expenses",14/05/2019,6299138,39495.78,VENDOR,FINANCIAL DATA MANANGEMENT PLC,102246
Portsmouth City Council,PCC,Adult Social Care,Support with Memory and Cognition Older People (65 - 74),Adult Services,Premises-Related Expenditure,Cleaning and domestic supplies,08/05/2019,6298082,517.7,VENDOR,CIRCOM LIMITED,144011
Portsmouth City Council,PCC,Central Services,Elections,Community & Communication,Supplies and Services,"Printing, stationery and general office expenses",21/05/2019,6300105,525.19,VENDOR,FINANCIAL DATA MANANGEMENT PLC,102246
Portsmouth City Council,PCC,Cultural and Related Services,Open Spaces,Culture & City Development,Supplies and Services,"Equipment, furniture and materials",20/05/2019,6299984,93.58,VENDOR,PALMSTEAD NURSERIES LTD,135396
Portsmouth City Council,PCC,Cultural and Related Services,Open Spaces,Culture & City Development,Supplies and Services,"Equipment, furniture and materials",20/05/2019,6299984,110.9,VENDOR,PALMSTEAD NURSERIES LTD,135396
Portsmouth City Council,PCC,Housing Services,Homelessness,"Housing, Neighbourhood and Building Services",Third Party Payments,Private contractors,30/05/2019,6302286,232.75,VENDOR,Classified as 'personal data' (under the Data Protection Act 2018),141332
Portsmouth City Council,PCC,Housing Services,Homelessness,"Housing, Neighbourhood and Building Services",Third Party Payments,Private contractors,30/05/2019,6302286,698.25,VENDOR,Classified as 'personal data' (under the Data Protection Act 2018),141332
Portsmouth City Council,PCC,Housing Services,Homelessness,"Housing, Neighbourhood and Building Services",Third Party Payments,Private contractors,30/05/2019,6302286,698.25,VENDOR,Classified as 'personal data' (under the Data Protection Act 2018),141332
Portsmouth City Council,PCC,Housing Services,Homelessness,"Housing, Neighbourhood and Building Services",Third Party Payments,Private contractors,30/05/2019,6302286,698.25,VENDOR,Classified as 'personal data' (under the Data Protection Act 2018),141332
Portsmouth City Council,PCC,Housing Services,Homelessness,"Housing, Neighbourhood and Building Services",Third Party Payments,Private contractors,30/05/2019,6302286,33.25,VENDOR,Classified as 'personal data' (under the Data Protection Act 2018),141332
Portsmouth City Council,PCC,Housing Services,Homelessness,"Housing, Neighbourhood and Building Services",Third Party Payments,Private contractors,30/05/2019,6302286,33.25,VENDOR,Classified as 'personal data' (under the Data Protection Act 2018),141332
Portsmouth City Council,PCC,Housing Services,Homelessness,"Housing, Neighbourhood and Building Services",Third Party Payments,Private contractors,30/05/2019,6302286,133,VENDOR,Classified as 'personal data' (under the Data Protection Act 2018),141332
Portsmouth City Council,PCC,Housing Services,Homelessness,"Housing, Neighbourhood and Building Services",Third Party Payments,Private contractors,30/05/2019,6302286,698.25,VENDOR,Classified as 'personal data' (under the Data Protection Act 2018),141332
Portsmouth City Council,PCC,Housing Services,Homelessness,"Housing, Neighbourhood and Building Services",Third Party Payments,Private contractors,30/05/2019,6302286,698.25,VENDOR,Classified as 'personal data' (under the Data Protection Act 2018),141332
Portsmouth City Council,PCC,Housing Services,Homelessness,"Housing, Neighbourhood and Building Services",Third Party Payments,Private contractors,30/05/2019,6302286,698.25,VENDOR,Classified as 'personal data' (under the Data Protection Act 2018),141332
Portsmouth City Council,PCC,Housing Services,Homelessness,"Housing, Neighbourhood and Building Services",Third Party Payments,Private contractors,30/05/2019,6302286,1365,VENDOR,Classified as 'personal data' (under the Data Protection Act 2018),141332
Portsmouth City Council,PCC,Housing Services,Homelessness,"Housing, Neighbourhood and Building Services",Third Party Payments,Private contractors,30/05/2019,6302286,200,VENDOR,Classified as 'personal data' (under the Data Protection Act 2018),141332
Portsmouth City Council,PCC,Housing Services,Homelessness,"Housing, Neighbourhood and Building Services",Third Party Payments,Private contractors,30/05/2019,6302286,1680,VENDOR,Classified as 'personal data' (under the Data Protection Act 2018),141332
Portsmouth City Council,PCC,Housing Services,Homelessness,"Housing, Neighbourhood and Building Services",Third Party Payments,Private contractors,30/05/2019,6302286,1396.5,VENDOR,Classified as 'personal data' (under the Data Protection Act 2018),141332
Portsmouth City Council,PCC,Planning Services,Business support,Regeneration,Premises-Related Expenditure,"Repairs, alterations and maintenance of buildings",03/05/2019,6297875,20.16,VENDOR,SIX DEGREES TECHNOLOGY GROUP LTD,137034
Portsmouth City Council,PCC,Planning Services,Business support,Regeneration,Premises-Related Expenditure,"Repairs, alterations and maintenance of buildings",03/05/2019,6297875,37.32,VENDOR,SIX DEGREES TECHNOLOGY GROUP LTD,137034
Portsmouth City Council,PCC,Cultural and Related Services,Recreation and Sport,Culture & City Development,Premises-Related Expenditure,"Repairs, alterations and maintenance of buildings",03/05/2019,6297875,37.32,VENDOR,SIX DEGREES TECHNOLOGY GROUP LTD,137034
Portsmouth City Council,PCC,Support Service / Transparency Costs Unallocated,LLM,"Housing, Neighbourhood and Building Services",Premises-Related Expenditure,"Repairs, alterations and maintenance of buildings",03/05/2019,6297875,57.48,VENDOR,SIX DEGREES TECHNOLOGY GROUP LTD,137034
Portsmouth City Council,PCC,Support Service / Transparency Costs Unallocated,LLM,"Housing, Neighbourhood and Building Services",Premises-Related Expenditure,"Repairs, alterations and maintenance of buildings",03/05/2019,6297875,18.66,VENDOR,SIX DEGREES TECHNOLOGY GROUP LTD,137034
Portsmouth City Council,PCC,Support Service / Transparency Costs Unallocated,LLM,"Housing, Neighbourhood and Building Services",Premises-Related Expenditure,"Repairs, alterations and maintenance of buildings",03/05/2019,6297875,18.66,VENDOR,SIX DEGREES TECHNOLOGY GROUP LTD,137034
Portsmouth City Council,PCC,Support Service / Transparency Costs Unallocated,LLM,"Housing, Neighbourhood and Building Services",Premises-Related Expenditure,"Repairs, alterations and maintenance of buildings",03/05/2019,6297875,18.66,VENDOR,SIX DEGREES TECHNOLOGY GROUP LTD,137034
Portsmouth City Council,PCC,Support Service / Transparency Costs Unallocated,LLM,"Housing, Neighbourhood and Building Services",Premises-Related Expenditure,"Repairs, alterations and maintenance of buildings",03/05/2019,6297875,40.32,VENDOR,SIX DEGREES TECHNOLOGY GROUP LTD,137034
Portsmouth City Council,PCC,Support Service / Transparency Costs Unallocated,LLM,"Housing, Neighbourhood and Building Services",Premises-Related Expenditure,"Repairs, alterations and maintenance of buildings",03/05/2019,6297875,40.32,VENDOR,SIX DEGREES TECHNOLOGY GROUP LTD,137034
Portsmouth City Council,PCC,Support Service / Transparency Costs Unallocated,LLM,"Housing, Neighbourhood and Building Services",Premises-Related Expenditure,"Repairs, alterations and maintenance of buildings",03/05/2019,6297875,20.16,VENDOR,SIX DEGREES TECHNOLOGY GROUP LTD,137034
Portsmouth City Council,PCC,Support Service / Transparency Costs Unallocated,LLM,"Housing, Neighbourhood and Building Services",Premises-Related Expenditure,"Repairs, alterations and maintenance of buildings",03/05/2019,6297875,20.16,VENDOR,SIX DEGREES TECHNOLOGY GROUP LTD,137034
Portsmouth City Council,PCC,Support Service / Transparency Costs Unallocated,LLM,"Housing, Neighbourhood and Building Services",Premises-Related Expenditure,"Repairs, alterations and maintenance of buildings",03/05/2019,6297875,20.16,VENDOR,SIX DEGREES TECHNOLOGY GROUP LTD,137034
Portsmouth City Council,PCC,Support Service / Transparency Costs Unallocated,LLM,"Housing, Neighbourhood and Building Services",Premises-Related Expenditure,"Repairs, alterations and maintenance of buildings",03/05/2019,6297875,18.66,VENDOR,SIX DEGREES TECHNOLOGY GROUP LTD,137034
Portsmouth City Council,PCC,Support Service / Transparency Costs Unallocated,LLM,"Housing, Neighbourhood and Building Services",Premises-Related Expenditure,"Repairs, alterations and maintenance of buildings",03/05/2019,6297875,18.66,VENDOR,SIX DEGREES TECHNOLOGY GROUP LTD,137034
Portsmouth City Council,PCC,Housing Revenue Account,Repairs and Maintenance,"Housing, Neighbourhood and Building Services",Premises-Related Expenditure,"Repairs, alterations and maintenance of buildings",03/05/2019,6297875,1526.29,VENDOR,SIX DEGREES TECHNOLOGY GROUP LTD,137034
Portsmouth City Council,PCC,Housing Services,Homelessness,"Housing, Neighbourhood and Building Services",Third Party Payments,Private contractors,30/05/2019,6302286,1396.5,VENDOR,Classified as 'personal data' (under the Data Protection Act 2018),141332
Portsmouth City Council,PCC,Housing Services,Homelessness,"Housing, Neighbourhood and Building Services",Third Party Payments,Private contractors,30/05/2019,6302286,232.75,VENDOR,Classified as 'personal data' (under the Data Protection Act 2018),141332
Portsmouth City Council,PCC,Housing Services,Homelessness,"Housing, Neighbourhood and Building Services",Third Party Payments,Private contractors,30/05/2019,6302286,99.75,VENDOR,Classified as 'personal data' (under the Data Protection Act 2018),141332
Portsmouth City Council,PCC,Cultural and Related Services,Culture and Heritage,Culture & City Development,Third Party Payments,Private contractors,28/05/2019,6301703,2593,VENDOR,PORTABLE TOILETS LTD,145255
Portsmouth City Council,PCC,Housing Revenue Account,Special Services,"Housing, Neighbourhood and Building Services",Supplies and Services,Services,22/05/2019,6301139,887.5,SOLETRADER,Classified as 'personal data' (under the Data Protection Act 2018),139889
Portsmouth City Council,PCC,Children's and Education Services,Other Children and Family Services,Children's Services and Education,Supplies and Services,Services,10/05/2019,6298809,118.25,VENDOR,E4LAW LTD T/A LEXTOX,143185
Portsmouth City Council,PCC,Housing Revenue Account,Supervision and Management,"Housing, Neighbourhood and Building Services",Supplies and Services,"Equipment, furniture and materials",24/05/2019,6301417,500,VENDOR,ET GREEN DEAL SERVICES LTD,143217
Portsmouth City Council,PCC,Environmental and Regulatory Services,Regulatory Services,Culture & City Development,Supplies and Services,Services,22/05/2019,6300660,500,SOLETRADER,Classified as 'personal data' (under the Data Protection Act 2018),116008
Portsmouth City Council,PCC,Other,Suspense and Capital Schemes,"Housing, Neighbourhood and Building Services",Third Party Payments,Private contractors,29/05/2019,6302201,450000,OTHER LOCAL AUTHORITY,HAMPSHIRE COUNTY COUNCIL,100030
Portsmouth City Council,PCC,Corporate and Democratic Core,Corporate Management,Finance & IT,Supplies and Services,Services,24/05/2019,6301505,250,SOLETRADER,Classified as 'personal data' (under the Data Protection Act 2018),145211
Portsmouth City Council,PCC,Children's and Education Services,Other Education and Community Budget,Children's Services and Education,Transport-Related Expenditure,Car allowances,08/05/2019,6298559,429,VENDOR,WHEEL DRIVE LIMITED,127213
Portsmouth City Council,PCC,Children's and Education Services,Other Education and Community Budget,Children's Services and Education,Transport-Related Expenditure,Car allowances,08/05/2019,6298559,-429,VENDOR,WHEEL DRIVE LIMITED,127213
Portsmouth City Council,PCC,Children's and Education Services,Other Education and Community Budget,Children's Services and Education,Transport-Related Expenditure,Car allowances,08/05/2019,6298559,649,VENDOR,WHEEL DRIVE LIMITED,127213
Portsmouth City Council,PCC,Children's and Education Services,Other Education and Community Budget,Children's Services and Education,Transport-Related Expenditure,Car allowances,08/05/2019,6298559,429,VENDOR,WHEEL DRIVE LIMITED,127213
Portsmouth City Council,PCC,Adult Social Care,Learning Disability Support  Adults (18 - 64),Adult Services,Supplies and Services,Services,24/05/2019,6301505,340,SOLETRADER,Classified as 'personal data' (under the Data Protection Act 2018),145211
Portsmouth City Council,PCC,Support Service / Transparency Costs Unallocated,Information Services,Finance & IT,Supplies and Services,"Printing, stationery and general office expenses",03/05/2019,6297797,228.5,VENDOR,HUNGRY RAPTOR LTD T/A SME SUPPLIES,143884
Portsmouth City Council,PCC,Support Service / Transparency Costs Unallocated,Information Services,Finance & IT,Supplies and Services,"Printing, stationery and general office expenses",03/05/2019,6297797,1580,VENDOR,HUNGRY RAPTOR LTD T/A SME SUPPLIES,143884
Portsmouth City Council,PCC,Housing Services,Homelessness,"Housing, Neighbourhood and Building Services",Transport-Related Expenditure,Direct transport costs,03/05/2019,6297694,5.2,VENDOR,AQUA CARS LIMITED,100011
Portsmouth City Council,PCC,Adult Social Care,Commissioning & service delivery,Adult Services,Supplies and Services,Communications and computing,10/05/2019,6298743,785.09,COMPANY,BRITISH TELECOMMUNICATIONS PLC,100132
Portsmouth City Council,PCC,Adult Social Care,Support with Memory and Cognition Older People (65 - 74),Adult Services,Supplies and Services,Communications and computing,03/05/2019,6297710,100.24,COMPANY,BRITISH TELECOMMUNICATIONS PLC,100132
Portsmouth City Council,PCC,Adult Social Care,Support with Memory and Cognition Older People (65 - 74),Adult Services,Supplies and Services,Communications and computing,31/05/2019,6302432,100.24,COMPANY,BRITISH TELECOMMUNICATIONS PLC,100132
Portsmouth City Council,PCC,Public Health,Public Health - Split Costing,Public Health,Premises-Related Expenditure,Rents,24/05/2019,6301348,315,VENDOR,BUCKLAND COMMUNITY CENTRE,100436
Portsmouth City Council,PCC,Adult Social Care,Physical Support Older People (85+),Adult Services,Third Party Payments,Other establishments,01/05/2019,6296990,190.55,VENDOR,CEDDAR HOUSE,102425
Portsmouth City Council,PCC,Central Services,Coroners' Court Services,Culture & City Development,Supplies and Services,Services,23/05/2019,6301277,451.9,SOLETRADER,Classified as 'personal data' (under the Data Protection Act 2018),140278
Portsmouth City Council,PCC,Adult Social Care,Physical Support Older People (85+),Adult Services,Third Party Payments,Other establishments,01/05/2019,6296990,38.11,VENDOR,CEDDAR HOUSE,102425
Portsmouth City Council,PCC,Adult Social Care,Physical Support Older People (85+),Adult Services,Third Party Payments,Other establishments,01/05/2019,6296990,309,VENDOR,CEDDAR HOUSE,102425
Portsmouth City Council,PCC,Adult Social Care,Physical Support Older People (85+),Adult Services,Third Party Payments,Other establishments,01/05/2019,6296990,32.88,VENDOR,CEDDAR HOUSE,102425
Portsmouth City Council,PCC,Public Health,Sexual Health,Public Health,Third Party Payments,Other establishments,01/05/2019,6296992,113.6,VENDOR,CHELSEA AND WESTMINSTER HOSPITAL NHS FOUNDATION TRUST,112323
Portsmouth City Council,PCC,Public Health,Sexual Health,Public Health,Third Party Payments,Other establishments,01/05/2019,6296992,678.04,VENDOR,CHELSEA AND WESTMINSTER HOSPITAL NHS FOUNDATION TRUST,112323
Portsmouth City Council,PCC,Adult Social Care,Social Care Activities,Adult Services,Third Party Payments,Other establishments,10/05/2019,6298755,10223.49,VENDOR,CHOICE CARE GROUP,134468
Portsmouth City Council,PCC,Planning Services,Business support,Regeneration,Third Party Payments,Private contractors,02/05/2019,6297672,250,VENDOR,THE RIGHT TRAINING COMPANY,140621
Portsmouth City Council,PCC,Other,Suspense and Capital Schemes,Capital - Housing RA,Capital Charges,Capital Expenditure (WIP),24/05/2019,6301321,655,VENDOR,A VAN PORTSMOUTH LIMITED,138694
Portsmouth City Council,PCC,Adult Social Care,Learning Disability Support  Adults (18 - 64),Adult Services,Transport-Related Expenditure,Public transport,03/05/2019,6297694,1884.9,VENDOR,AQUA CARS LIMITED,100011
Portsmouth City Council,PCC,Adult Social Care,Social Care Activities,Adult Services,Transport-Related Expenditure,Direct transport costs,03/05/2019,6297694,29.6,VENDOR,AQUA CARS LIMITED,100011
Portsmouth City Council,PCC,Adult Social Care,Learning Disability Support  Adults (18 - 64),Adult Services,Transport-Related Expenditure,Public transport,13/05/2019,6298979,1814.8,VENDOR,AQUA CARS LIMITED,100011
Portsmouth City Council,PCC,Adult Social Care,Social Care Activities,Adult Services,Transport-Related Expenditure,Direct transport costs,13/05/2019,6298979,30.9,VENDOR,AQUA CARS LIMITED,100011
Portsmouth City Council,PCC,Adult Social Care,Learning Disability Support  Adults (18 - 64),Adult Services,Transport-Related Expenditure,Public transport,21/05/2019,6300049,1544.2,VENDOR,AQUA CARS LIMITED,100011
Portsmouth City Council,PCC,Adult Social Care,Social Care Activities,Adult Services,Transport-Related Expenditure,Direct transport costs,21/05/2019,6300049,33.2,VENDOR,AQUA CARS LIMITED,100011
Portsmouth City Council,PCC,Adult Social Care,Learning Disability Support  Adults (18 - 64),Adult Services,Transport-Related Expenditure,Public transport,24/05/2019,6301328,1705.5,VENDOR,AQUA CARS LIMITED,100011
Portsmouth City Council,PCC,Adult Social Care,Social Care Activities,Adult Services,Transport-Related Expenditure,Direct transport costs,24/05/2019,6301328,64.3,VENDOR,AQUA CARS LIMITED,100011
Portsmouth City Council,PCC,Housing Revenue Account,Supervision and Management,"Housing, Neighbourhood and Building Services",Supplies and Services,"Printing, stationery and general office expenses",24/05/2019,6301475,340,VENDOR,MCAARP HOLDINGS T/A INTEGRITY PRINT LTD,144547
Portsmouth City Council,PCC,Highways and Transport Services,Parking Services,Regeneration,Supplies and Services,"Printing, stationery and general office expenses",24/05/2019,6301475,88.82,VENDOR,MCAARP HOLDINGS T/A INTEGRITY PRINT LTD,144547
Portsmouth City Council,PCC,Highways and Transport Services,Parking Services,Regeneration,Supplies and Services,"Printing, stationery and general office expenses",24/05/2019,6301475,222.04,VENDOR,MCAARP HOLDINGS T/A INTEGRITY PRINT LTD,144547
Portsmouth City Council,PCC,Highways and Transport Services,Parking Services,Regeneration,Supplies and Services,"Printing, stationery and general office expenses",24/05/2019,6301475,222.04,VENDOR,MCAARP HOLDINGS T/A INTEGRITY PRINT LTD,144547
Portsmouth City Council,PCC,Highways and Transport Services,Parking Services,Regeneration,Supplies and Services,"Printing, stationery and general office expenses",24/05/2019,6301475,177.63,VENDOR,MCAARP HOLDINGS T/A INTEGRITY PRINT LTD,144547
Portsmouth City Council,PCC,Highways and Transport Services,Parking Services,Regeneration,Supplies and Services,"Printing, stationery and general office expenses",24/05/2019,6301475,177.63,VENDOR,MCAARP HOLDINGS T/A INTEGRITY PRINT LTD,144547
Portsmouth City Council,PCC,Highways and Transport Services,Parking Services,Regeneration,Supplies and Services,"Printing, stationery and general office expenses",24/05/2019,6301475,444.09,VENDOR,MCAARP HOLDINGS T/A INTEGRITY PRINT LTD,144547
Portsmouth City Council,PCC,Highways and Transport Services,Parking Services,Regeneration,Supplies and Services,"Printing, stationery and general office expenses",24/05/2019,6301475,266.45,VENDOR,MCAARP HOLDINGS T/A INTEGRITY PRINT LTD,144547
Portsmouth City Council,PCC,Highways and Transport Services,Parking Services,Regeneration,Supplies and Services,"Printing, stationery and general office expenses",24/05/2019,6301475,44.4,VENDOR,MCAARP HOLDINGS T/A INTEGRITY PRINT LTD,144547
Portsmouth City Council,PCC,Highways and Transport Services,Parking Services,Regeneration,Supplies and Services,"Printing, stationery and general office expenses",24/05/2019,6301475,133.25,VENDOR,MCAARP HOLDINGS T/A INTEGRITY PRINT LTD,144547
Portsmouth City Council,PCC,Highways and Transport Services,Parking Services,Regeneration,Supplies and Services,"Printing, stationery and general office expenses",24/05/2019,6301475,177.63,VENDOR,MCAARP HOLDINGS T/A INTEGRITY PRINT LTD,144547
Portsmouth City Council,PCC,Highways and Transport Services,Parking Services,Regeneration,Supplies and Services,"Printing, stationery and general office expenses",24/05/2019,6301475,355.27,VENDOR,MCAARP HOLDINGS T/A INTEGRITY PRINT LTD,144547
Portsmouth City Council,PCC,Highways and Transport Services,Parking Services,Regeneration,Supplies and Services,"Printing, stationery and general office expenses",24/05/2019,6301475,44.4,VENDOR,MCAARP HOLDINGS T/A INTEGRITY PRINT LTD,144547
Portsmouth City Council,PCC,Highways and Transport Services,Parking Services,Regeneration,Supplies and Services,"Printing, stationery and general office expenses",24/05/2019,6301475,44.4,VENDOR,MCAARP HOLDINGS T/A INTEGRITY PRINT LTD,144547
Portsmouth City Council,PCC,Highways and Transport Services,Parking Services,Regeneration,Supplies and Services,"Printing, stationery and general office expenses",24/05/2019,6301475,44.4,VENDOR,MCAARP HOLDINGS T/A INTEGRITY PRINT LTD,144547
Portsmouth City Council,PCC,Highways and Transport Services,Parking Services,Regeneration,Supplies and Services,"Printing, stationery and general office expenses",24/05/2019,6301475,133.26,VENDOR,MCAARP HOLDINGS T/A INTEGRITY PRINT LTD,144547
Portsmouth City Council,PCC,Highways and Transport Services,Parking Services,Regeneration,Supplies and Services,"Printing, stationery and general office expenses",24/05/2019,6301475,355.27,VENDOR,MCAARP HOLDINGS T/A INTEGRITY PRINT LTD,144547
Portsmouth City Council,PCC,Highways and Transport Services,Parking Services,Regeneration,Supplies and Services,"Printing, stationery and general office expenses",24/05/2019,6301475,44.4,VENDOR,MCAARP HOLDINGS T/A INTEGRITY PRINT LTD,144547
Portsmouth City Council,PCC,Highways and Transport Services,Parking Services,Regeneration,Supplies and Services,"Printing, stationery and general office expenses",24/05/2019,6301475,666.12,VENDOR,MCAARP HOLDINGS T/A INTEGRITY PRINT LTD,144547
Portsmouth City Council,PCC,Highways and Transport Services,Parking Services,Regeneration,Supplies and Services,"Printing, stationery and general office expenses",24/05/2019,6301475,888.17,VENDOR,MCAARP HOLDINGS T/A INTEGRITY PRINT LTD,144547
Portsmouth City Council,PCC,Highways and Transport Services,Parking Services,Regeneration,Supplies and Services,"Printing, stationery and general office expenses",24/05/2019,6301475,133.25,VENDOR,MCAARP HOLDINGS T/A INTEGRITY PRINT LTD,144547
Portsmouth City Council,PCC,Highways and Transport Services,Parking Services,Regeneration,Supplies and Services,"Printing, stationery and general office expenses",24/05/2019,6301475,133.25,VENDOR,MCAARP HOLDINGS T/A INTEGRITY PRINT LTD,144547
Portsmouth City Council,PCC,Highways and Transport Services,Parking Services,Regeneration,Supplies and Services,"Printing, stationery and general office expenses",24/05/2019,6301475,222.04,VENDOR,MCAARP HOLDINGS T/A INTEGRITY PRINT LTD,144547
Portsmouth City Council,PCC,Highways and Transport Services,Parking Services,Regeneration,Supplies and Services,"Printing, stationery and general office expenses",24/05/2019,6301475,310.85,VENDOR,MCAARP HOLDINGS T/A INTEGRITY PRINT LTD,144547
Portsmouth City Council,PCC,Highways and Transport Services,Parking Services,Regeneration,Supplies and Services,"Printing, stationery and general office expenses",24/05/2019,6301475,266.45,VENDOR,MCAARP HOLDINGS T/A INTEGRITY PRINT LTD,144547
Portsmouth City Council,PCC,Highways and Transport Services,Parking Services,Regeneration,Supplies and Services,"Printing, stationery and general office expenses",24/05/2019,6301475,310.85,VENDOR,MCAARP HOLDINGS T/A INTEGRITY PRINT LTD,144547
Portsmouth City Council,PCC,Highways and Transport Services,Parking Services,Regeneration,Supplies and Services,"Printing, stationery and general office expenses",24/05/2019,6301475,266.45,VENDOR,MCAARP HOLDINGS T/A INTEGRITY PRINT LTD,144547
Portsmouth City Council,PCC,Highways and Transport Services,Parking Services,Regeneration,Supplies and Services,"Printing, stationery and general office expenses",24/05/2019,6301475,532.9,VENDOR,MCAARP HOLDINGS T/A INTEGRITY PRINT LTD,144547
Portsmouth City Council,PCC,Highways and Transport Services,Parking Services,Regeneration,Supplies and Services,"Printing, stationery and general office expenses",24/05/2019,6301475,666.12,VENDOR,MCAARP HOLDINGS T/A INTEGRITY PRINT LTD,144547
Portsmouth City Council,PCC,Highways and Transport Services,Parking Services,Regeneration,Supplies and Services,"Printing, stationery and general office expenses",24/05/2019,6301475,888.17,VENDOR,MCAARP HOLDINGS T/A INTEGRITY PRINT LTD,144547
Portsmouth City Council,PCC,Highways and Transport Services,"Airports, Harbours and Toll Facilities",Portsmouth International Port,Supplies and Services,"Equipment, furniture and materials",23/05/2019,6301279,28680,VENDOR,RAPISCAN SYSTEMS LIMITED,108247
Portsmouth City Council,PCC,Children's and Education Services,Other Children and Family Services,Children's Services and Education,Employees,Indirect employee expenses,28/05/2019,6301715,64,VENDOR,RMC EMEA LIMITED,122070
Portsmouth City Council,PCC,Children's and Education Services,Other Children and Family Services,Children's Services and Education,Employees,Indirect employee expenses,28/05/2019,6301715,192,VENDOR,RMC EMEA LIMITED,122070
Portsmouth City Council,PCC,Children's and Education Services,Other Children and Family Services,Children's Services and Education,Employees,Indirect employee expenses,28/05/2019,6301715,42.66,VENDOR,RMC EMEA LIMITED,122070
Portsmouth City Council,PCC,Planning Services,Business support,Regeneration,Employees,Indirect employee expenses,28/05/2019,6301715,64,VENDOR,RMC EMEA LIMITED,122070
Portsmouth City Council,PCC,Corporate and Democratic Core,Corporate Management,"HR, Legal, Audit & Performance",Employees,Indirect employee expenses,28/05/2019,6301715,64,VENDOR,RMC EMEA LIMITED,122070
Portsmouth City Council,PCC,Support Service / Transparency Costs Unallocated,Personnel,"HR, Legal, Audit & Performance",Employees,Indirect employee expenses,28/05/2019,6301715,127.98,VENDOR,RMC EMEA LIMITED,122070
Portsmouth City Council,PCC,Adult Social Care,Commissioning & service delivery,Adult Services,Employees,Indirect employee expenses,28/05/2019,6301715,128,VENDOR,RMC EMEA LIMITED,122070
Portsmouth City Council,PCC,Housing Revenue Account,Supervision and Management,"Housing, Neighbourhood and Building Services",Employees,Indirect employee expenses,28/05/2019,6301715,85.32,VENDOR,RMC EMEA LIMITED,122070
Portsmouth City Council,PCC,Housing Revenue Account,Supervision and Management,"Housing, Neighbourhood and Building Services",Employees,Indirect employee expenses,28/05/2019,6301715,64,VENDOR,RMC EMEA LIMITED,122070
Portsmouth City Council,PCC,Highways and Transport Services,"Airports, Harbours and Toll Facilities",Portsmouth International Port,Premises-Related Expenditure,Cleaning and domestic supplies,23/05/2019,6301260,1124.8,VENDOR,NVIRO LTD,124507
Portsmouth City Council,PCC,Highways and Transport Services,"Transport Planning, Policy and Strategy",Regeneration,Supplies and Services,"Equipment, furniture and materials",24/05/2019,6301553,50,VENDOR,THE ALARMING CO LTD,101350
Portsmouth City Council,PCC,Highways and Transport Services,"Transport Planning, Policy and Strategy",Regeneration,Supplies and Services,"Equipment, furniture and materials",24/05/2019,6301553,1700,VENDOR,THE ALARMING CO LTD,101350
Portsmouth City Council,PCC,Housing Revenue Account,Special Services,"Housing, Neighbourhood and Building Services",Third Party Payments,Private contractors,24/05/2019,6301553,92.99,VENDOR,THE ALARMING CO LTD,101350
Portsmouth City Council,PCC,Highways and Transport Services,"Transport Planning, Policy and Strategy",Regeneration,Supplies and Services,"Equipment, furniture and materials",24/05/2019,6301553,1703,VENDOR,THE ALARMING CO LTD,101350
Portsmouth City Council,PCC,Highways and Transport Services,"Transport Planning, Policy and Strategy",Regeneration,Supplies and Services,"Equipment, furniture and materials",24/05/2019,6301553,1703,VENDOR,THE ALARMING CO LTD,101350
Portsmouth City Council,PCC,Highways and Transport Services,"Transport Planning, Policy and Strategy",Regeneration,Supplies and Services,"Equipment, furniture and materials",24/05/2019,6301553,4255.03,VENDOR,THE ALARMING CO LTD,101350
Portsmouth City Council,PCC,Planning Services,Business support,Regeneration,Supplies and Services,"Equipment, furniture and materials",20/05/2019,6300013,294,VENDOR,SPANDEX LIMITED,100163
Portsmouth City Council,PCC,Planning Services,Business support,Regeneration,Supplies and Services,"Equipment, furniture and materials",20/05/2019,6300013,108.5,VENDOR,SPANDEX LIMITED,100163
Portsmouth City Council,PCC,Planning Services,Business support,Regeneration,Supplies and Services,"Equipment, furniture and materials",20/05/2019,6300013,190.63,VENDOR,SPANDEX LIMITED,100163
Portsmouth City Council,PCC,Planning Services,Business support,Regeneration,Supplies and Services,"Equipment, furniture and materials",20/05/2019,6300013,190.63,VENDOR,SPANDEX LIMITED,100163
Portsmouth City Council,PCC,Planning Services,Business support,Regeneration,Supplies and Services,"Equipment, furniture and materials",20/05/2019,6300013,159.37,VENDOR,SPANDEX LIMITED,100163
Portsmouth City Council,PCC,Planning Services,Business support,Regeneration,Supplies and Services,"Equipment, furniture and materials",20/05/2019,6300013,159.37,VENDOR,SPANDEX LIMITED,100163
Portsmouth City Council,PCC,Planning Services,Business support,Regeneration,Supplies and Services,"Equipment, furniture and materials",20/05/2019,6300013,159.37,VENDOR,SPANDEX LIMITED,100163
Portsmouth City Council,PCC,Planning Services,Business support,Regeneration,Supplies and Services,"Equipment, furniture and materials",20/05/2019,6300013,159.37,VENDOR,SPANDEX LIMITED,100163
Portsmouth City Council,PCC,Adult Social Care,Physical Support Adults (18 - 64),Adult Services,Third Party Payments,Other establishments,10/05/2019,6298755,8237.94,VENDOR,CHOICE CARE GROUP,134468
Portsmouth City Council,PCC,Adult Social Care,Physical Support Adults (18 - 64),Adult Services,Third Party Payments,Other establishments,10/05/2019,6298755,2490.23,VENDOR,CHOICE CARE GROUP,134468
Portsmouth City Council,PCC,Adult Social Care,Learning Disability Support  Adults (18 - 64),Adult Services,Third Party Payments,Other establishments,10/05/2019,6298755,8844.92,VENDOR,CHOICE CARE GROUP,134468
Portsmouth City Council,PCC,Adult Social Care,Learning Disability Support  Adults (18 - 64),Adult Services,Third Party Payments,Other establishments,10/05/2019,6298755,4279.55,VENDOR,CHOICE CARE GROUP,134468
Portsmouth City Council,PCC,Adult Social Care,Learning Disability Support  Adults (18 - 64),Adult Services,Third Party Payments,Other establishments,10/05/2019,6298755,2683.05,VENDOR,CHOICE CARE GROUP,134468
Portsmouth City Council,PCC,Adult Social Care,Mental Health Support Adults (18 - 64),Adult Services,Third Party Payments,Other establishments,10/05/2019,6298755,2870.91,VENDOR,CHOICE CARE GROUP,134468
Portsmouth City Council,PCC,Adult Social Care,Mental Health Support Adults (18 - 64),Adult Services,Third Party Payments,Other establishments,10/05/2019,6298755,3166.65,VENDOR,CHOICE CARE GROUP,134468
Portsmouth City Council,PCC,Environmental and Regulatory Services,Flood Defence and Land Drainage,Regeneration,Third Party Payments,Private contractors,14/05/2019,6299184,8716,VENDOR,UNIVERSITY OF GLASGOW,116291
Portsmouth City Council,PCC,Adult Social Care,Mental Health Support Older People (65 - 74),Adult Services,Third Party Payments,Other establishments,24/05/2019,6301389,472.64,VENDOR,CRESCENT COMMUNITY CARE SERVICES LTD,100118
Portsmouth City Council,PCC,Adult Social Care,Social Care Activities,Adult Services,Third Party Payments,Other establishments,24/05/2019,6301389,987.48,VENDOR,CRESCENT COMMUNITY CARE SERVICES LTD,100118
Portsmouth City Council,PCC,Adult Social Care,Social Care Activities,Adult Services,Third Party Payments,Other establishments,24/05/2019,6301389,151.92,VENDOR,CRESCENT COMMUNITY CARE SERVICES LTD,100118
Portsmouth City Council,PCC,Adult Social Care,Social Care Activities,Adult Services,Third Party Payments,Other establishments,24/05/2019,6301389,58.08,VENDOR,CRESCENT COMMUNITY CARE SERVICES LTD,100118
Portsmouth City Council,PCC,Adult Social Care,Social Care Activities,Adult Services,Third Party Payments,Other establishments,24/05/2019,6301389,5064,VENDOR,CRESCENT COMMUNITY CARE SERVICES LTD,100118
Portsmouth City Council,PCC,Adult Social Care,Social Care Activities,Adult Services,Third Party Payments,Other establishments,24/05/2019,6301389,4253.76,VENDOR,CRESCENT COMMUNITY CARE SERVICES LTD,100118
Portsmouth City Council,PCC,Adult Social Care,Physical Support Adults (18 - 64),Adult Services,Third Party Payments,Other establishments,24/05/2019,6301389,202.56,VENDOR,CRESCENT COMMUNITY CARE SERVICES LTD,100118
Portsmouth City Council,PCC,Adult Social Care,Physical Support Adults (18 - 64),Adult Services,Third Party Payments,Other establishments,24/05/2019,6301389,1299.76,VENDOR,CRESCENT COMMUNITY CARE SERVICES LTD,100118
Portsmouth City Council,PCC,Adult Social Care,Physical Support Adults (18 - 64),Adult Services,Third Party Payments,Other establishments,24/05/2019,6301389,236.32,VENDOR,CRESCENT COMMUNITY CARE SERVICES LTD,100118
Portsmouth City Council,PCC,Adult Social Care,Physical Support Adults (18 - 64),Adult Services,Third Party Payments,Other establishments,24/05/2019,6301389,763.82,VENDOR,CRESCENT COMMUNITY CARE SERVICES LTD,100118
Portsmouth City Council,PCC,Adult Social Care,Physical Support Adults (18 - 64),Adult Services,Third Party Payments,Other establishments,24/05/2019,6301389,101.28,VENDOR,CRESCENT COMMUNITY CARE SERVICES LTD,100118
Portsmouth City Council,PCC,Adult Social Care,Physical Support Adults (18 - 64),Adult Services,Third Party Payments,Other establishments,24/05/2019,6301389,1671.12,VENDOR,CRESCENT COMMUNITY CARE SERVICES LTD,100118
Portsmouth City Council,PCC,Adult Social Care,Physical Support Adults (18 - 64),Adult Services,Third Party Payments,Other establishments,24/05/2019,6301389,227.88,VENDOR,CRESCENT COMMUNITY CARE SERVICES LTD,100118
Portsmouth City Council,PCC,Adult Social Care,Physical Support Adults (18 - 64),Adult Services,Third Party Payments,Other establishments,24/05/2019,6301389,464.2,VENDOR,CRESCENT COMMUNITY CARE SERVICES LTD,100118
Portsmouth City Council,PCC,Adult Social Care,Physical Support Adults (18 - 64),Adult Services,Third Party Payments,Other establishments,24/05/2019,6301389,464.2,VENDOR,CRESCENT COMMUNITY CARE SERVICES LTD,100118
Portsmouth City Council,PCC,Adult Social Care,Physical Support Adults (18 - 64),Adult Services,Third Party Payments,Other establishments,24/05/2019,6301389,354.48,VENDOR,CRESCENT COMMUNITY CARE SERVICES LTD,100118
Portsmouth City Council,PCC,Adult Social Care,Physical Support Adults (18 - 64),Adult Services,Third Party Payments,Other establishments,24/05/2019,6301389,1181.6,VENDOR,CRESCENT COMMUNITY CARE SERVICES LTD,100118
Portsmouth City Council,PCC,Adult Social Care,Physical Support Adults (18 - 64),Adult Services,Third Party Payments,Other establishments,24/05/2019,6301389,1299.76,VENDOR,CRESCENT COMMUNITY CARE SERVICES LTD,100118
Portsmouth City Council,PCC,Adult Social Care,Physical Support Adults (18 - 64),Adult Services,Third Party Payments,Other establishments,24/05/2019,6301389,607.68,VENDOR,CRESCENT COMMUNITY CARE SERVICES LTD,100118
Portsmouth City Council,PCC,Adult Social Care,Physical Support Adults (18 - 64),Adult Services,Third Party Payments,Other establishments,24/05/2019,6301389,911.52,VENDOR,CRESCENT COMMUNITY CARE SERVICES LTD,100118
Portsmouth City Council,PCC,Adult Social Care,Physical Support Adults (18 - 64),Adult Services,Third Party Payments,Other establishments,24/05/2019,6301389,472.64,VENDOR,CRESCENT COMMUNITY CARE SERVICES LTD,100118
Portsmouth City Council,PCC,Adult Social Care,Physical Support Adults (18 - 64),Adult Services,Third Party Payments,Other establishments,24/05/2019,6301389,291.18,VENDOR,CRESCENT COMMUNITY CARE SERVICES LTD,100118
Portsmouth City Council,PCC,Adult Social Care,Physical Support Adults (18 - 64),Adult Services,Third Party Payments,Other establishments,24/05/2019,6301389,936.84,VENDOR,CRESCENT COMMUNITY CARE SERVICES LTD,100118
Portsmouth City Council,PCC,Adult Social Care,Physical Support Older People (85+),Adult Services,Third Party Payments,Other establishments,24/05/2019,6301389,236.32,VENDOR,CRESCENT COMMUNITY CARE SERVICES LTD,100118
Portsmouth City Council,PCC,Adult Social Care,Physical Support Older People (85+),Adult Services,Third Party Payments,Other establishments,24/05/2019,6301389,827.12,VENDOR,CRESCENT COMMUNITY CARE SERVICES LTD,100118
Portsmouth City Council,PCC,Adult Social Care,Physical Support Older People (85+),Adult Services,Third Party Payments,Other establishments,24/05/2019,6301389,101.28,VENDOR,CRESCENT COMMUNITY CARE SERVICES LTD,100118
Portsmouth City Council,PCC,Adult Social Care,Physical Support Older People (85+),Adult Services,Third Party Payments,Other establishments,24/05/2019,6301389,236.32,VENDOR,CRESCENT COMMUNITY CARE SERVICES LTD,100118
Portsmouth City Council,PCC,Adult Social Care,Physical Support Older People (85+),Adult Services,Third Party Payments,Other establishments,24/05/2019,6301389,523.28,VENDOR,CRESCENT COMMUNITY CARE SERVICES LTD,100118
Portsmouth City Council,PCC,Adult Social Care,Physical Support Older People (85+),Adult Services,Third Party Payments,Other establishments,24/05/2019,6301389,396.68,VENDOR,CRESCENT COMMUNITY CARE SERVICES LTD,100118
Portsmouth City Council,PCC,Adult Social Care,Physical Support Older People (85+),Adult Services,Third Party Payments,Other establishments,24/05/2019,6301389,827.12,VENDOR,CRESCENT COMMUNITY CARE SERVICES LTD,100118
Portsmouth City Council,PCC,Adult Social Care,Physical Support Older People (85+),Adult Services,Third Party Payments,Other establishments,24/05/2019,6301389,236.32,VENDOR,CRESCENT COMMUNITY CARE SERVICES LTD,100118
Portsmouth City Council,PCC,Adult Social Care,Physical Support Older People (85+),Adult Services,Third Party Payments,Other establishments,24/05/2019,6301389,776.48,VENDOR,CRESCENT COMMUNITY CARE SERVICES LTD,100118
Portsmouth City Council,PCC,Adult Social Care,Physical Support Older People (85+),Adult Services,Third Party Payments,Other establishments,24/05/2019,6301389,135.04,VENDOR,CRESCENT COMMUNITY CARE SERVICES LTD,100118
Portsmouth City Council,PCC,Adult Social Care,Physical Support Older People (85+),Adult Services,Third Party Payments,Other establishments,24/05/2019,6301389,354.48,VENDOR,CRESCENT COMMUNITY CARE SERVICES LTD,100118
Portsmouth City Council,PCC,Adult Social Care,Physical Support Older People (85+),Adult Services,Third Party Payments,Other establishments,24/05/2019,6301389,21.1,VENDOR,CRESCENT COMMUNITY CARE SERVICES LTD,100118
Portsmouth City Council,PCC,Adult Social Care,Physical Support Older People (85+),Adult Services,Third Party Payments,Other establishments,24/05/2019,6301389,489.52,VENDOR,CRESCENT COMMUNITY CARE SERVICES LTD,100118
Portsmouth City Council,PCC,Adult Social Care,Physical Support Older People (85+),Adult Services,Third Party Payments,Other establishments,24/05/2019,6301389,472.64,VENDOR,CRESCENT COMMUNITY CARE SERVICES LTD,100118
Portsmouth City Council,PCC,Adult Social Care,Physical Support Older People (85+),Adult Services,Third Party Payments,Other establishments,24/05/2019,6301389,33.76,VENDOR,CRESCENT COMMUNITY CARE SERVICES LTD,100118
Portsmouth City Council,PCC,Adult Social Care,Physical Support Older People (85+),Adult Services,Third Party Payments,Other establishments,24/05/2019,6301389,236.32,VENDOR,CRESCENT COMMUNITY CARE SERVICES LTD,100118
Portsmouth City Council,PCC,Adult Social Care,Physical Support Older People (85+),Adult Services,Third Party Payments,Other establishments,24/05/2019,6301389,1063.44,VENDOR,CRESCENT COMMUNITY CARE SERVICES LTD,100118
Portsmouth City Council,PCC,Adult Social Care,Physical Support Older People (85+),Adult Services,Third Party Payments,Other establishments,24/05/2019,6301389,316.5,VENDOR,CRESCENT COMMUNITY CARE SERVICES LTD,100118
Portsmouth City Council,PCC,Adult Social Care,Physical Support Older People (85+),Adult Services,Third Party Payments,Other establishments,24/05/2019,6301389,185.68,VENDOR,CRESCENT COMMUNITY CARE SERVICES LTD,100118
Portsmouth City Council,PCC,Adult Social Care,Physical Support Older People (85+),Adult Services,Third Party Payments,Other establishments,24/05/2019,6301389,464.2,VENDOR,CRESCENT COMMUNITY CARE SERVICES LTD,100118
Portsmouth City Council,PCC,Adult Social Care,Physical Support Older People (85+),Adult Services,Third Party Payments,Other establishments,24/05/2019,6301389,405.12,VENDOR,CRESCENT COMMUNITY CARE SERVICES LTD,100118
Portsmouth City Council,PCC,Adult Social Care,Physical Support Older People (85+),Adult Services,Third Party Payments,Other establishments,24/05/2019,6301389,827.12,VENDOR,CRESCENT COMMUNITY CARE SERVICES LTD,100118
Portsmouth City Council,PCC,Adult Social Care,Physical Support Older People (85+),Adult Services,Third Party Payments,Other establishments,24/05/2019,6301389,371.36,VENDOR,CRESCENT COMMUNITY CARE SERVICES LTD,100118
Portsmouth City Council,PCC,Adult Social Care,Physical Support Older People (85+),Adult Services,Third Party Payments,Other establishments,24/05/2019,6301389,624.56,VENDOR,CRESCENT COMMUNITY CARE SERVICES LTD,100118
Portsmouth City Council,PCC,Adult Social Care,Physical Support Older People (85+),Adult Services,Third Party Payments,Other establishments,24/05/2019,6301389,464.2,VENDOR,CRESCENT COMMUNITY CARE SERVICES LTD,100118
Portsmouth City Council,PCC,Adult Social Care,Physical Support Older People (85+),Adult Services,Third Party Payments,Other establishments,24/05/2019,6301389,506.4,VENDOR,CRESCENT COMMUNITY CARE SERVICES LTD,100118
Portsmouth City Council,PCC,Adult Social Care,Physical Support Older People (85+),Adult Services,Third Party Payments,Other establishments,24/05/2019,6301389,852.44,VENDOR,CRESCENT COMMUNITY CARE SERVICES LTD,100118
Portsmouth City Council,PCC,Adult Social Care,Physical Support Older People (85+),Adult Services,Third Party Payments,Other establishments,24/05/2019,6301389,438.88,VENDOR,CRESCENT COMMUNITY CARE SERVICES LTD,100118
Portsmouth City Council,PCC,Adult Social Care,Physical Support Older People (85+),Adult Services,Third Party Payments,Other establishments,24/05/2019,6301389,173.02,VENDOR,CRESCENT COMMUNITY CARE SERVICES LTD,100118
Portsmouth City Council,PCC,Adult Social Care,Physical Support Older People (85+),Adult Services,Third Party Payments,Other establishments,24/05/2019,6301389,962.16,VENDOR,CRESCENT COMMUNITY CARE SERVICES LTD,100118
Portsmouth City Council,PCC,Adult Social Care,Physical Support Older People (85+),Adult Services,Third Party Payments,Other establishments,24/05/2019,6301389,135.04,VENDOR,CRESCENT COMMUNITY CARE SERVICES LTD,100118
Portsmouth City Council,PCC,Adult Social Care,Physical Support Older People (85+),Adult Services,Third Party Payments,Other establishments,24/05/2019,6301389,118.16,VENDOR,CRESCENT COMMUNITY CARE SERVICES LTD,100118
Portsmouth City Council,PCC,Adult Social Care,Physical Support Older People (85+),Adult Services,Third Party Payments,Other establishments,24/05/2019,6301389,430.44,VENDOR,CRESCENT COMMUNITY CARE SERVICES LTD,100118
Portsmouth City Council,PCC,Adult Social Care,Physical Support Older People (85+),Adult Services,Third Party Payments,Other establishments,24/05/2019,6301389,430.44,VENDOR,CRESCENT COMMUNITY CARE SERVICES LTD,100118
Portsmouth City Council,PCC,Adult Social Care,Physical Support Older People (85+),Adult Services,Third Party Payments,Other establishments,24/05/2019,6301389,945.28,VENDOR,CRESCENT COMMUNITY CARE SERVICES LTD,100118
Portsmouth City Council,PCC,Adult Social Care,Physical Support Older People (85+),Adult Services,Third Party Payments,Other establishments,24/05/2019,6301389,692.08,VENDOR,CRESCENT COMMUNITY CARE SERVICES LTD,100118
Portsmouth City Council,PCC,Adult Social Care,Physical Support Older People (85+),Adult Services,Third Party Payments,Other establishments,24/05/2019,6301389,692.08,VENDOR,CRESCENT COMMUNITY CARE SERVICES LTD,100118
Portsmouth City Council,PCC,Adult Social Care,Physical Support Older People (85+),Adult Services,Third Party Payments,Other establishments,24/05/2019,6301389,236.32,VENDOR,CRESCENT COMMUNITY CARE SERVICES LTD,100118
Portsmouth City Council,PCC,Adult Social Care,Physical Support Older People (85+),Adult Services,Third Party Payments,Other establishments,24/05/2019,6301389,742.72,VENDOR,CRESCENT COMMUNITY CARE SERVICES LTD,100118
Portsmouth City Council,PCC,Adult Social Care,Physical Support Older People (85+),Adult Services,Third Party Payments,Other establishments,24/05/2019,6301389,33.76,VENDOR,CRESCENT COMMUNITY CARE SERVICES LTD,100118
Portsmouth City Council,PCC,Adult Social Care,Physical Support Older People (85+),Adult Services,Third Party Payments,Other establishments,24/05/2019,6301389,75.96,VENDOR,CRESCENT COMMUNITY CARE SERVICES LTD,100118
Portsmouth City Council,PCC,Adult Social Care,Physical Support Older People (85+),Adult Services,Third Party Payments,Other establishments,24/05/2019,6301389,50.64,VENDOR,CRESCENT COMMUNITY CARE SERVICES LTD,100118
Portsmouth City Council,PCC,Adult Social Care,Physical Support Older People (85+),Adult Services,Third Party Payments,Other establishments,24/05/2019,6301389,514.84,VENDOR,CRESCENT COMMUNITY CARE SERVICES LTD,100118
Portsmouth City Council,PCC,Adult Social Care,Physical Support Older People (85+),Adult Services,Third Party Payments,Other establishments,24/05/2019,6301389,202.56,VENDOR,CRESCENT COMMUNITY CARE SERVICES LTD,100118
Portsmouth City Council,PCC,Adult Social Care,Physical Support Older People (85+),Adult Services,Third Party Payments,Other establishments,24/05/2019,6301389,202.56,VENDOR,CRESCENT COMMUNITY CARE SERVICES LTD,100118
Portsmouth City Council,PCC,Adult Social Care,Physical Support Older People (85+),Adult Services,Third Party Payments,Other establishments,24/05/2019,6301389,472.64,VENDOR,CRESCENT COMMUNITY CARE SERVICES LTD,100118
Portsmouth City Council,PCC,Adult Social Care,Physical Support Older People (85+),Adult Services,Third Party Payments,Other establishments,24/05/2019,6301389,472.64,VENDOR,CRESCENT COMMUNITY CARE SERVICES LTD,100118
Portsmouth City Council,PCC,Adult Social Care,Physical Support Older People (85+),Adult Services,Third Party Payments,Other establishments,24/05/2019,6301389,1063.44,VENDOR,CRESCENT COMMUNITY CARE SERVICES LTD,100118
Portsmouth City Council,PCC,Adult Social Care,Physical Support Older People (85+),Adult Services,Third Party Payments,Other establishments,24/05/2019,6301389,1063.44,VENDOR,CRESCENT COMMUNITY CARE SERVICES LTD,100118
Portsmouth City Council,PCC,Adult Social Care,Physical Support Older People (85+),Adult Services,Third Party Payments,Other establishments,24/05/2019,6301389,84.4,VENDOR,CRESCENT COMMUNITY CARE SERVICES LTD,100118
Portsmouth City Council,PCC,Adult Social Care,Physical Support Older People (85+),Adult Services,Third Party Payments,Other establishments,24/05/2019,6301389,1012.8,VENDOR,CRESCENT COMMUNITY CARE SERVICES LTD,100118
Portsmouth City Council,PCC,Adult Social Care,Physical Support Older People (85+),Adult Services,Third Party Payments,Other establishments,24/05/2019,6301389,236.32,VENDOR,CRESCENT COMMUNITY CARE SERVICES LTD,100118
Portsmouth City Council,PCC,Adult Social Care,Physical Support Older People (85+),Adult Services,Third Party Payments,Other establishments,24/05/2019,6301389,354.48,VENDOR,CRESCENT COMMUNITY CARE SERVICES LTD,100118
Portsmouth City Council,PCC,Adult Social Care,Physical Support Older People (85+),Adult Services,Third Party Payments,Other establishments,24/05/2019,6301389,472.64,VENDOR,CRESCENT COMMUNITY CARE SERVICES LTD,100118
Portsmouth City Council,PCC,Adult Social Care,Physical Support Older People (85+),Adult Services,Third Party Payments,Other establishments,24/05/2019,6301389,818.68,VENDOR,CRESCENT COMMUNITY CARE SERVICES LTD,100118
Portsmouth City Council,PCC,Adult Social Care,Physical Support Older People (85+),Adult Services,Third Party Payments,Other establishments,24/05/2019,6301389,236.32,VENDOR,CRESCENT COMMUNITY CARE SERVICES LTD,100118
Portsmouth City Council,PCC,Adult Social Care,Physical Support Older People (85+),Adult Services,Third Party Payments,Other establishments,24/05/2019,6301389,734.28,VENDOR,CRESCENT COMMUNITY CARE SERVICES LTD,100118
Portsmouth City Council,PCC,Adult Social Care,Physical Support Older People (85+),Adult Services,Third Party Payments,Other establishments,24/05/2019,6301389,472.64,VENDOR,CRESCENT COMMUNITY CARE SERVICES LTD,100118
Portsmouth City Council,PCC,Adult Social Care,Physical Support Older People (85+),Adult Services,Third Party Payments,Other establishments,24/05/2019,6301389,236.32,VENDOR,CRESCENT COMMUNITY CARE SERVICES LTD,100118
Portsmouth City Council,PCC,Adult Social Care,Physical Support Older People (85+),Adult Services,Third Party Payments,Other establishments,24/05/2019,6301389,1012.8,VENDOR,CRESCENT COMMUNITY CARE SERVICES LTD,100118
Portsmouth City Council,PCC,Adult Social Care,Physical Support Older People (85+),Adult Services,Third Party Payments,Other establishments,24/05/2019,6301389,168.8,VENDOR,CRESCENT COMMUNITY CARE SERVICES LTD,100118
Portsmouth City Council,PCC,Adult Social Care,Physical Support Older People (85+),Adult Services,Third Party Payments,Other establishments,24/05/2019,6301389,101.28,VENDOR,CRESCENT COMMUNITY CARE SERVICES LTD,100118
Portsmouth City Council,PCC,Adult Social Care,Physical Support Older People (85+),Adult Services,Third Party Payments,Other establishments,24/05/2019,6301389,236.32,VENDOR,CRESCENT COMMUNITY CARE SERVICES LTD,100118
Portsmouth City Council,PCC,Adult Social Care,Physical Support Older People (85+),Adult Services,Third Party Payments,Other establishments,24/05/2019,6301389,101.28,VENDOR,CRESCENT COMMUNITY CARE SERVICES LTD,100118
Portsmouth City Council,PCC,Adult Social Care,Physical Support Older People (85+),Adult Services,Third Party Payments,Other establishments,24/05/2019,6301389,354.48,VENDOR,CRESCENT COMMUNITY CARE SERVICES LTD,100118
Portsmouth City Council,PCC,Adult Social Care,Physical Support Older People (85+),Adult Services,Third Party Payments,Other establishments,24/05/2019,6301389,590.8,VENDOR,CRESCENT COMMUNITY CARE SERVICES LTD,100118
Portsmouth City Council,PCC,Adult Social Care,Physical Support Older People (85+),Adult Services,Third Party Payments,Other establishments,24/05/2019,6301389,700.52,VENDOR,CRESCENT COMMUNITY CARE SERVICES LTD,100118
Portsmouth City Council,PCC,Adult Social Care,Physical Support Older People (85+),Adult Services,Third Party Payments,Other establishments,24/05/2019,6301389,455.76,VENDOR,CRESCENT COMMUNITY CARE SERVICES LTD,100118
Portsmouth City Council,PCC,Adult Social Care,Physical Support Older People (85+),Adult Services,Third Party Payments,Other establishments,24/05/2019,6301389,396.68,VENDOR,CRESCENT COMMUNITY CARE SERVICES LTD,100118
Portsmouth City Council,PCC,Adult Social Care,Physical Support Older People (85+),Adult Services,Third Party Payments,Other establishments,24/05/2019,6301389,590.8,VENDOR,CRESCENT COMMUNITY CARE SERVICES LTD,100118
Portsmouth City Council,PCC,Adult Social Care,Physical Support Older People (85+),Adult Services,Third Party Payments,Other establishments,24/05/2019,6301389,692.08,VENDOR,CRESCENT COMMUNITY CARE SERVICES LTD,100118
Portsmouth City Council,PCC,Adult Social Care,Physical Support Older People (85+),Adult Services,Third Party Payments,Other establishments,24/05/2019,6301389,236.32,VENDOR,CRESCENT COMMUNITY CARE SERVICES LTD,100118
Portsmouth City Council,PCC,Adult Social Care,Physical Support Older People (85+),Adult Services,Third Party Payments,Other establishments,24/05/2019,6301389,236.32,VENDOR,CRESCENT COMMUNITY CARE SERVICES LTD,100118
Portsmouth City Council,PCC,Adult Social Care,Physical Support Older People (85+),Adult Services,Third Party Payments,Other establishments,24/05/2019,6301389,236.32,VENDOR,CRESCENT COMMUNITY CARE SERVICES LTD,100118
Portsmouth City Council,PCC,Adult Social Care,Physical Support Older People (85+),Adult Services,Third Party Payments,Other establishments,24/05/2019,6301389,227.88,VENDOR,CRESCENT COMMUNITY CARE SERVICES LTD,100118
Portsmouth City Council,PCC,Adult Social Care,Physical Support Older People (85+),Adult Services,Third Party Payments,Other establishments,24/05/2019,6301389,438.88,VENDOR,CRESCENT COMMUNITY CARE SERVICES LTD,100118
Portsmouth City Council,PCC,Adult Social Care,Physical Support Older People (85+),Adult Services,Third Party Payments,Other establishments,24/05/2019,6301389,683.64,VENDOR,CRESCENT COMMUNITY CARE SERVICES LTD,100118
Portsmouth City Council,PCC,Adult Social Care,Physical Support Older People (85+),Adult Services,Third Party Payments,Other establishments,24/05/2019,6301389,641.44,VENDOR,CRESCENT COMMUNITY CARE SERVICES LTD,100118
Portsmouth City Council,PCC,Adult Social Care,Physical Support Older People (85+),Adult Services,Third Party Payments,Other establishments,24/05/2019,6301389,641.44,VENDOR,CRESCENT COMMUNITY CARE SERVICES LTD,100118
Portsmouth City Council,PCC,Adult Social Care,Physical Support Older People (85+),Adult Services,Third Party Payments,Other establishments,24/05/2019,6301389,261.36,VENDOR,CRESCENT COMMUNITY CARE SERVICES LTD,100118
Portsmouth City Council,PCC,Adult Social Care,Physical Support Older People (85+),Adult Services,Third Party Payments,Other establishments,24/05/2019,6301389,164.58,VENDOR,CRESCENT COMMUNITY CARE SERVICES LTD,100118
Portsmouth City Council,PCC,Adult Social Care,Physical Support Older People (85+),Adult Services,Third Party Payments,Other establishments,24/05/2019,6301389,118.16,VENDOR,CRESCENT COMMUNITY CARE SERVICES LTD,100118
Portsmouth City Council,PCC,Adult Social Care,Physical Support Older People (85+),Adult Services,Third Party Payments,Other establishments,24/05/2019,6301389,50.64,VENDOR,CRESCENT COMMUNITY CARE SERVICES LTD,100118
Portsmouth City Council,PCC,Adult Social Care,Physical Support Older People (85+),Adult Services,Third Party Payments,Other establishments,24/05/2019,6301389,936.84,VENDOR,CRESCENT COMMUNITY CARE SERVICES LTD,100118
Portsmouth City Council,PCC,Adult Social Care,Physical Support Older People (85+),Adult Services,Third Party Payments,Other establishments,24/05/2019,6301389,759.6,VENDOR,CRESCENT COMMUNITY CARE SERVICES LTD,100118
Portsmouth City Council,PCC,Adult Social Care,Physical Support Older People (85+),Adult Services,Third Party Payments,Other establishments,24/05/2019,6301389,557.04,VENDOR,CRESCENT COMMUNITY CARE SERVICES LTD,100118
Portsmouth City Council,PCC,Adult Social Care,Physical Support Older People (85+),Adult Services,Third Party Payments,Other establishments,24/05/2019,6301389,548.6,VENDOR,CRESCENT COMMUNITY CARE SERVICES LTD,100118
Portsmouth City Council,PCC,Adult Social Care,Physical Support Older People (85+),Adult Services,Third Party Payments,Other establishments,24/05/2019,6301389,151.92,VENDOR,CRESCENT COMMUNITY CARE SERVICES LTD,100118
Portsmouth City Council,PCC,Adult Social Care,Physical Support Older People (85+),Adult Services,Third Party Payments,Other establishments,24/05/2019,6301389,844,VENDOR,CRESCENT COMMUNITY CARE SERVICES LTD,100118
Portsmouth City Council,PCC,Adult Social Care,Physical Support Older People (85+),Adult Services,Third Party Payments,Other establishments,24/05/2019,6301389,844,VENDOR,CRESCENT COMMUNITY CARE SERVICES LTD,100118
Portsmouth City Council,PCC,Adult Social Care,Physical Support Older People (85+),Adult Services,Third Party Payments,Other establishments,24/05/2019,6301389,472.64,VENDOR,CRESCENT COMMUNITY CARE SERVICES LTD,100118
Portsmouth City Council,PCC,Adult Social Care,Physical Support Older People (85+),Adult Services,Third Party Payments,Other establishments,24/05/2019,6301389,590.8,VENDOR,CRESCENT COMMUNITY CARE SERVICES LTD,100118
Portsmouth City Council,PCC,Adult Social Care,Physical Support Older People (85+),Adult Services,Third Party Payments,Other establishments,24/05/2019,6301389,194.12,VENDOR,CRESCENT COMMUNITY CARE SERVICES LTD,100118
Portsmouth City Council,PCC,Adult Social Care,Physical Support Older People (85+),Adult Services,Third Party Payments,Other establishments,24/05/2019,6301389,135.04,VENDOR,CRESCENT COMMUNITY CARE SERVICES LTD,100118
Portsmouth City Council,PCC,Adult Social Care,Physical Support Older People (85+),Adult Services,Third Party Payments,Other establishments,24/05/2019,6301389,278.52,VENDOR,CRESCENT COMMUNITY CARE SERVICES LTD,100118
Portsmouth City Council,PCC,Adult Social Care,Physical Support Older People (85+),Adult Services,Third Party Payments,Other establishments,24/05/2019,6301389,1536.08,VENDOR,CRESCENT COMMUNITY CARE SERVICES LTD,100118
Portsmouth City Council,PCC,Adult Social Care,Physical Support Older People (85+),Adult Services,Third Party Payments,Other establishments,24/05/2019,6301389,236.32,VENDOR,CRESCENT COMMUNITY CARE SERVICES LTD,100118
Portsmouth City Council,PCC,Adult Social Care,Physical Support Older People (85+),Adult Services,Third Party Payments,Other establishments,24/05/2019,6301389,97.06,VENDOR,CRESCENT COMMUNITY CARE SERVICES LTD,100118
Portsmouth City Council,PCC,Adult Social Care,Physical Support Older People (85+),Adult Services,Third Party Payments,Other establishments,24/05/2019,6301389,527.5,VENDOR,CRESCENT COMMUNITY CARE SERVICES LTD,100118
Portsmouth City Council,PCC,Adult Social Care,Physical Support Older People (85+),Adult Services,Third Party Payments,Other establishments,24/05/2019,6301389,177.24,VENDOR,CRESCENT COMMUNITY CARE SERVICES LTD,100118
Portsmouth City Council,PCC,Adult Social Care,Physical Support Older People (85+),Adult Services,Third Party Payments,Other establishments,24/05/2019,6301389,354.48,VENDOR,CRESCENT COMMUNITY CARE SERVICES LTD,100118
Portsmouth City Council,PCC,Adult Social Care,Physical Support Older People (85+),Adult Services,Third Party Payments,Other establishments,24/05/2019,6301389,1236.46,VENDOR,CRESCENT COMMUNITY CARE SERVICES LTD,100118
Portsmouth City Council,PCC,Adult Social Care,Physical Support Older People (85+),Adult Services,Third Party Payments,Other establishments,24/05/2019,6301389,1299.76,VENDOR,CRESCENT COMMUNITY CARE SERVICES LTD,100118
Portsmouth City Council,PCC,Adult Social Care,Physical Support Older People (85+),Adult Services,Third Party Payments,Other establishments,24/05/2019,6301389,1299.76,VENDOR,CRESCENT COMMUNITY CARE SERVICES LTD,100118
Portsmouth City Council,PCC,Adult Social Care,Physical Support Older People (85+),Adult Services,Third Party Payments,Other establishments,24/05/2019,6301389,1130.96,VENDOR,CRESCENT COMMUNITY CARE SERVICES LTD,100118
Portsmouth City Council,PCC,Adult Social Care,Physical Support Older People (85+),Adult Services,Third Party Payments,Other establishments,24/05/2019,6301389,1130.96,VENDOR,CRESCENT COMMUNITY CARE SERVICES LTD,100118
Portsmouth City Council,PCC,Adult Social Care,Physical Support Older People (85+),Adult Services,Third Party Payments,Other establishments,24/05/2019,6301389,67.52,VENDOR,CRESCENT COMMUNITY CARE SERVICES LTD,100118
Portsmouth City Council,PCC,Adult Social Care,Physical Support Older People (85+),Adult Services,Third Party Payments,Other establishments,24/05/2019,6301389,945.28,VENDOR,CRESCENT COMMUNITY CARE SERVICES LTD,100118
Portsmouth City Council,PCC,Adult Social Care,Physical Support Older People (85+),Adult Services,Third Party Payments,Other establishments,24/05/2019,6301389,506.4,VENDOR,CRESCENT COMMUNITY CARE SERVICES LTD,100118
Portsmouth City Council,PCC,Adult Social Care,Physical Support Older People (85+),Adult Services,Third Party Payments,Other establishments,24/05/2019,6301389,202.56,VENDOR,CRESCENT COMMUNITY CARE SERVICES LTD,100118
Portsmouth City Council,PCC,Adult Social Care,Physical Support Older People (85+),Adult Services,Third Party Payments,Other establishments,24/05/2019,6301389,1063.44,VENDOR,CRESCENT COMMUNITY CARE SERVICES LTD,100118
Portsmouth City Council,PCC,Adult Social Care,Physical Support Older People (85+),Adult Services,Third Party Payments,Other establishments,24/05/2019,6301389,168.8,VENDOR,CRESCENT COMMUNITY CARE SERVICES LTD,100118
Portsmouth City Council,PCC,Adult Social Care,Learning Disability Support  Adults (18 - 64),Adult Services,Third Party Payments,Other establishments,24/05/2019,6301389,50.64,VENDOR,CRESCENT COMMUNITY CARE SERVICES LTD,100118
Portsmouth City Council,PCC,Adult Social Care,Learning Disability Support  Adults (18 - 64),Adult Services,Third Party Payments,Other establishments,24/05/2019,6301389,67.52,VENDOR,CRESCENT COMMUNITY CARE SERVICES LTD,100118
Portsmouth City Council,PCC,Adult Social Care,Learning Disability Support  Adults (18 - 64),Adult Services,Third Party Payments,Other establishments,24/05/2019,6301389,337.6,VENDOR,CRESCENT COMMUNITY CARE SERVICES LTD,100118
Portsmouth City Council,PCC,Adult Social Care,Learning Disability Support  Adults (18 - 64),Adult Services,Third Party Payments,Other establishments,24/05/2019,6301389,337.6,VENDOR,CRESCENT COMMUNITY CARE SERVICES LTD,100118
Portsmouth City Council,PCC,Adult Social Care,Learning Disability Support  Adults (18 - 64),Adult Services,Third Party Payments,Other establishments,24/05/2019,6301389,101.28,VENDOR,CRESCENT COMMUNITY CARE SERVICES LTD,100118
Portsmouth City Council,PCC,Adult Social Care,Social Support - Support for Carer,Adult Services,Third Party Payments,Other establishments,24/05/2019,6301389,464.64,VENDOR,CRESCENT COMMUNITY CARE SERVICES LTD,100118
Portsmouth City Council,PCC,Adult Social Care,Social Support - Support for Carer,Adult Services,Third Party Payments,Other establishments,24/05/2019,6301389,174.24,VENDOR,CRESCENT COMMUNITY CARE SERVICES LTD,100118
Portsmouth City Council,PCC,Adult Social Care,Social Support - Support for Carer,Adult Services,Third Party Payments,Other establishments,24/05/2019,6301389,116.16,VENDOR,CRESCENT COMMUNITY CARE SERVICES LTD,100118
Portsmouth City Council,PCC,Adult Social Care,Social Support - Support for Carer,Adult Services,Third Party Payments,Other establishments,24/05/2019,6301389,29.04,VENDOR,CRESCENT COMMUNITY CARE SERVICES LTD,100118
Portsmouth City Council,PCC,Adult Social Care,Social Support - Support for Carer,Adult Services,Third Party Payments,Other establishments,24/05/2019,6301389,348.48,VENDOR,CRESCENT COMMUNITY CARE SERVICES LTD,100118
Portsmouth City Council,PCC,Adult Social Care,Social Support - Support for Carer,Adult Services,Third Party Payments,Other establishments,24/05/2019,6301389,108.9,VENDOR,CRESCENT COMMUNITY CARE SERVICES LTD,100118
Portsmouth City Council,PCC,Adult Social Care,Social Support - Support for Carer,Adult Services,Third Party Payments,Other establishments,24/05/2019,6301389,145.2,VENDOR,CRESCENT COMMUNITY CARE SERVICES LTD,100118
Portsmouth City Council,PCC,Adult Social Care,Social Support - Support for Carer,Adult Services,Third Party Payments,Other establishments,24/05/2019,6301389,116.16,VENDOR,CRESCENT COMMUNITY CARE SERVICES LTD,100118
Portsmouth City Council,PCC,Adult Social Care,Social Support - Support for Carer,Adult Services,Third Party Payments,Other establishments,24/05/2019,6301389,174.24,VENDOR,CRESCENT COMMUNITY CARE SERVICES LTD,100118
Portsmouth City Council,PCC,Adult Social Care,Social Support - Support for Carer,Adult Services,Third Party Payments,Other establishments,24/05/2019,6301389,348.48,VENDOR,CRESCENT COMMUNITY CARE SERVICES LTD,100118
Portsmouth City Council,PCC,Adult Social Care,Social Support - Support for Carer,Adult Services,Third Party Payments,Other establishments,24/05/2019,6301389,261.36,VENDOR,CRESCENT COMMUNITY CARE SERVICES LTD,100118
Portsmouth City Council,PCC,Adult Social Care,Social Support - Support for Carer,Adult Services,Third Party Payments,Other establishments,24/05/2019,6301389,348.48,VENDOR,CRESCENT COMMUNITY CARE SERVICES LTD,100118
Portsmouth City Council,PCC,Adult Social Care,Social Support - Support for Carer,Adult Services,Third Party Payments,Other establishments,24/05/2019,6301389,348.48,VENDOR,CRESCENT COMMUNITY CARE SERVICES LTD,100118
Portsmouth City Council,PCC,Adult Social Care,Social Support - Support for Carer,Adult Services,Third Party Payments,Other establishments,24/05/2019,6301389,377.52,VENDOR,CRESCENT COMMUNITY CARE SERVICES LTD,100118
Portsmouth City Council,PCC,Adult Social Care,Social Support - Support for Carer,Adult Services,Third Party Payments,Other establishments,24/05/2019,6301389,145.2,VENDOR,CRESCENT COMMUNITY CARE SERVICES LTD,100118
Portsmouth City Council,PCC,Adult Social Care,Social Support - Support for Carer,Adult Services,Third Party Payments,Other establishments,24/05/2019,6301389,36.3,VENDOR,CRESCENT COMMUNITY CARE SERVICES LTD,100118
Portsmouth City Council,PCC,Adult Social Care,Social Support - Support for Carer,Adult Services,Third Party Payments,Other establishments,24/05/2019,6301389,261.36,VENDOR,CRESCENT COMMUNITY CARE SERVICES LTD,100118
Portsmouth City Council,PCC,Adult Social Care,Social Support - Support for Carer,Adult Services,Third Party Payments,Other establishments,24/05/2019,6301389,79.86,VENDOR,CRESCENT COMMUNITY CARE SERVICES LTD,100118
Portsmouth City Council,PCC,Adult Social Care,Social Support - Support for Carer,Adult Services,Third Party Payments,Other establishments,24/05/2019,6301389,348.48,VENDOR,CRESCENT COMMUNITY CARE SERVICES LTD,100118
Portsmouth City Council,PCC,Adult Social Care,Social Support - Support for Carer,Adult Services,Third Party Payments,Other establishments,24/05/2019,6301389,348.48,VENDOR,CRESCENT COMMUNITY CARE SERVICES LTD,100118
Portsmouth City Council,PCC,Adult Social Care,Social Support - Support for Carer,Adult Services,Third Party Payments,Other establishments,24/05/2019,6301389,290.4,VENDOR,CRESCENT COMMUNITY CARE SERVICES LTD,100118
Portsmouth City Council,PCC,Corporate and Democratic Core,Corporate Management,Community & Communication,Supplies and Services,"Printing, stationery and general office expenses",03/05/2019,6297768,286,VENDOR,EASTRIO 1 LTD,144641
Portsmouth City Council,PCC,Corporate and Democratic Core,Corporate Management,Community & Communication,Supplies and Services,"Printing, stationery and general office expenses",03/05/2019,6297768,185.9,VENDOR,EASTRIO 1 LTD,144641
Portsmouth City Council,PCC,Highways and Transport Services,"Transport Planning, Policy and Strategy",Regeneration,Supplies and Services,Communications and computing,30/05/2019,322242,7004.46,VENDOR,KAPPA LAMBDA SQUARED,131634
Portsmouth City Council,PCC,Support Service / Transparency Costs Unallocated,AMS,Regeneration,Supplies and Services,Services,02/05/2019,6297601,850,VENDOR,ECOSUPPORT LTD,139549
Portsmouth City Council,PCC,Children's and Education Services,Other Children and Family Services,Children's Services and Education,Supplies and Services,Services,17/05/2019,6299843,400,SOLETRADER,Classified as 'personal data' (under the Data Protection Act 2018),134578
Portsmouth City Council,PCC,Children's and Education Services,Other Children and Family Services,Children's Services and Education,Supplies and Services,Services,17/05/2019,6299843,400,SOLETRADER,Classified as 'personal data' (under the Data Protection Act 2018),134578
Portsmouth City Council,PCC,Environmental and Regulatory Services,Regulatory Services,Culture & City Development,Third Party Payments,Private contractors,02/05/2019,6297529,772.5,VENDOR,ADAMS MOREY LTD,100446
Portsmouth City Council,PCC,Environmental and Regulatory Services,Regulatory Services,Culture & City Development,Third Party Payments,Private contractors,02/05/2019,6297529,1642.5,VENDOR,ADAMS MOREY LTD,100446
Portsmouth City Council,PCC,Environmental and Regulatory Services,Regulatory Services,Culture & City Development,Third Party Payments,Private contractors,02/05/2019,6297529,537.5,VENDOR,ADAMS MOREY LTD,100446
Portsmouth City Council,PCC,Environmental and Regulatory Services,Regulatory Services,Culture & City Development,Third Party Payments,Private contractors,02/05/2019,6297529,1395,VENDOR,ADAMS MOREY LTD,100446
Portsmouth City Council,PCC,Environmental and Regulatory Services,Regulatory Services,Culture & City Development,Third Party Payments,Private contractors,02/05/2019,6297529,444,VENDOR,ADAMS MOREY LTD,100446
Portsmouth City Council,PCC,Environmental and Regulatory Services,Regulatory Services,Culture & City Development,Third Party Payments,Private contractors,02/05/2019,6297529,171.75,VENDOR,ADAMS MOREY LTD,100446
Portsmouth City Council,PCC,Environmental and Regulatory Services,Regulatory Services,Culture & City Development,Third Party Payments,Private contractors,02/05/2019,6297529,1335.75,VENDOR,ADAMS MOREY LTD,100446
Portsmouth City Council,PCC,Environmental and Regulatory Services,Regulatory Services,Culture & City Development,Third Party Payments,Private contractors,08/05/2019,6298066,434.5,VENDOR,ADAMS MOREY LTD,100446
Portsmouth City Council,PCC,Environmental and Regulatory Services,Regulatory Services,Culture & City Development,Third Party Payments,Private contractors,08/05/2019,6298066,1372.5,VENDOR,ADAMS MOREY LTD,100446
Portsmouth City Council,PCC,Environmental and Regulatory Services,Regulatory Services,Culture & City Development,Third Party Payments,Private contractors,10/05/2019,6298700,772.5,VENDOR,ADAMS MOREY LTD,100446
Portsmouth City Council,PCC,Environmental and Regulatory Services,Regulatory Services,Culture & City Development,Third Party Payments,Private contractors,10/05/2019,6298700,1125,VENDOR,ADAMS MOREY LTD,100446
Portsmouth City Council,PCC,Environmental and Regulatory Services,Regulatory Services,Culture & City Development,Third Party Payments,Private contractors,29/05/2019,6301768,531,VENDOR,ADAMS MOREY LTD,100446
Portsmouth City Council,PCC,Environmental and Regulatory Services,Regulatory Services,Culture & City Development,Third Party Payments,Private contractors,29/05/2019,6301768,1035,VENDOR,ADAMS MOREY LTD,100446
Portsmouth City Council,PCC,Environmental and Regulatory Services,Regulatory Services,Culture & City Development,Third Party Payments,Private contractors,29/05/2019,6301768,51.5,VENDOR,ADAMS MOREY LTD,100446
Portsmouth City Council,PCC,Environmental and Regulatory Services,Regulatory Services,Culture & City Development,Third Party Payments,Private contractors,29/05/2019,6301768,90,VENDOR,ADAMS MOREY LTD,100446
Portsmouth City Council,PCC,Environmental and Regulatory Services,Regulatory Services,Culture & City Development,Third Party Payments,Private contractors,29/05/2019,6301768,907,VENDOR,ADAMS MOREY LTD,100446
Portsmouth City Council,PCC,Environmental and Regulatory Services,Regulatory Services,Culture & City Development,Third Party Payments,Private contractors,29/05/2019,6301768,1260.5,VENDOR,ADAMS MOREY LTD,100446
Portsmouth City Council,PCC,Cultural and Related Services,Culture and Heritage,Culture & City Development,Third Party Payments,Private contractors,24/05/2019,6301322,7020,COMPANY,ACORN SCAFFOLDING YORKSHIRE LTD,142870
Portsmouth City Council,PCC,Children's and Education Services,Other Children and Family Services,Children's Services and Education,Supplies and Services,Services,02/05/2019,6297544,500,SOLETRADER,Classified as 'personal data' (under the Data Protection Act 2018),132145
Portsmouth City Council,PCC,Solent LEP,Business support,OTHER,Premises-Related Expenditure,Rents,07/05/2019,6297975,1260.38,VENDOR,DANIEL THWAITES PLC,139047
Portsmouth City Council,PCC,Children's and Education Services,Other Children and Family Services,Children's Services and Education,Supplies and Services,Services,20/05/2019,6299951,600,SOLETRADER,Classified as 'personal data' (under the Data Protection Act 2018),107906
Portsmouth City Council,PCC,Children's and Education Services,Other Children and Family Services,Children's Services and Education,Supplies and Services,Services,23/05/2019,6301235,350,SOLETRADER,Classified as 'personal data' (under the Data Protection Act 2018),123858
Portsmouth City Council,PCC,Children's and Education Services,Other Children and Family Services,Children's Services and Education,Supplies and Services,Services,23/05/2019,6301235,350,SOLETRADER,Classified as 'personal data' (under the Data Protection Act 2018),123858
Portsmouth City Council,PCC,Children's and Education Services,Other Children and Family Services,Children's Services and Education,Supplies and Services,Services,23/05/2019,6301231,425,SOLETRADER,Classified as 'personal data' (under the Data Protection Act 2018),109317
Portsmouth City Council,PCC,Other,Suspense and Capital Schemes,Portsmouth International Port,Supplies and Services,Miscellaneous expenses,30/05/2019,6302361,9315,COMPANY,ML (UK) LTD,101018
Portsmouth City Council,PCC,Adult Social Care,Mental Health Support Adults (18 - 64),Adult Services,Third Party Payments,Other establishments,10/05/2019,6298755,2484.34,VENDOR,CHOICE CARE GROUP,134468
Portsmouth City Council,PCC,Support Service / Transparency Costs Unallocated,Information Services,Finance & IT,Supplies and Services,"Printing, stationery and general office expenses",15/05/2019,6299635,479,VENDOR,PCF HOLDINGS LIMITED,131766
Portsmouth City Council,PCC,Support Service / Transparency Costs Unallocated,Information Services,Finance & IT,Supplies and Services,"Printing, stationery and general office expenses",15/05/2019,6299635,10,VENDOR,PCF HOLDINGS LIMITED,131766
Portsmouth City Council,PCC,Highways and Transport Services,"Airports, Harbours and Toll Facilities",Portsmouth International Port,Third Party Payments,Private contractors,23/05/2019,6301291,1119.2,VENDOR,SOUTHERN MARITIME SERVICES LIMITED,120765
Portsmouth City Council,PCC,Highways and Transport Services,"Airports, Harbours and Toll Facilities",Portsmouth International Port,Third Party Payments,Private contractors,23/05/2019,6301291,757.9,VENDOR,SOUTHERN MARITIME SERVICES LIMITED,120765
Portsmouth City Council,PCC,Corporate and Democratic Core,Corporate Management,Community & Communication,Supplies and Services,"Printing, stationery and general office expenses",15/05/2019,6299229,114.4,VENDOR,EASTRIO 1 LTD,144641
Portsmouth City Council,PCC,Corporate and Democratic Core,Corporate Management,Community & Communication,Supplies and Services,"Printing, stationery and general office expenses",15/05/2019,6299229,100.1,VENDOR,EASTRIO 1 LTD,144641
Portsmouth City Council,PCC,Corporate and Democratic Core,Corporate Management,Community & Communication,Supplies and Services,"Printing, stationery and general office expenses",15/05/2019,6299229,114.4,VENDOR,EASTRIO 1 LTD,144641
Portsmouth City Council,PCC,Children's and Education Services,Children Looked After,Children's Services and Education,Third Party Payments,Other establishments,22/05/2019,6300637,4462.45,VENDOR,BLUE SKY FOSTERING,119870
Portsmouth City Council,PCC,Children's and Education Services,Children Looked After,Children's Services and Education,Third Party Payments,Other establishments,02/05/2019,6297541,3484.36,VENDOR,BARNARDO SERVICES LTD,107155
Portsmouth City Council,PCC,Children's and Education Services,Children Looked After,Children's Services and Education,Third Party Payments,Other establishments,16/05/2019,6299704,3371.96,VENDOR,BARNARDO SERVICES LTD,107155
Portsmouth City Council,PCC,Housing Revenue Account,Special Services,"Housing, Neighbourhood and Building Services",Employees,Direct employee expenses,20/05/2019,6300025,3704.7,VENDOR,THE PORTSMOUTH SITTING SERVICE AND COMMUNITY CARE SERVICES LTD T/A ASSURED CARE,100201
Portsmouth City Council,PCC,Cultural and Related Services,Open Spaces,Culture & City Development,Income,Customer and client receipts,24/05/2019,6301493,800,VENDOR,PETER GWILLIAM LTD,145228
Portsmouth City Council,PCC,Adult Social Care,Mental Health Support Adults (18 - 64),Adult Services,Third Party Payments,Other establishments,10/05/2019,6298755,3782.62,VENDOR,CHOICE CARE GROUP,134468
Portsmouth City Council,PCC,Adult Social Care,Mental Health Support Older People (65 - 74),Adult Services,Third Party Payments,Other establishments,01/05/2019,6297015,188.14,VENDOR,CRESCENT COMMUNITY CARE SERVICES LTD,100118
Portsmouth City Council,PCC,Adult Social Care,Mental Health Support Older People (65 - 74),Adult Services,Third Party Payments,Other establishments,01/05/2019,6297015,236.32,VENDOR,CRESCENT COMMUNITY CARE SERVICES LTD,100118
Portsmouth City Council,PCC,Adult Social Care,Mental Health Support Older People (65 - 74),Adult Services,Third Party Payments,Other establishments,01/05/2019,6297015,114.52,VENDOR,CRESCENT COMMUNITY CARE SERVICES LTD,100118
Portsmouth City Council,PCC,Adult Social Care,Mental Health Support Older People (65 - 74),Adult Services,Third Party Payments,Other establishments,01/05/2019,6297015,75.96,VENDOR,CRESCENT COMMUNITY CARE SERVICES LTD,100118
Portsmouth City Council,PCC,Adult Social Care,Social Care Activities,Adult Services,Third Party Payments,Other establishments,01/05/2019,6297015,81.8,VENDOR,CRESCENT COMMUNITY CARE SERVICES LTD,100118
Portsmouth City Council,PCC,Adult Social Care,Social Care Activities,Adult Services,Third Party Payments,Other establishments,01/05/2019,6297015,81.8,VENDOR,CRESCENT COMMUNITY CARE SERVICES LTD,100118
Portsmouth City Council,PCC,Adult Social Care,Social Care Activities,Adult Services,Third Party Payments,Other establishments,01/05/2019,6297015,12.66,VENDOR,CRESCENT COMMUNITY CARE SERVICES LTD,100118
Portsmouth City Council,PCC,Adult Social Care,Social Care Activities,Adult Services,Third Party Payments,Other establishments,01/05/2019,6297015,12.66,VENDOR,CRESCENT COMMUNITY CARE SERVICES LTD,100118
Portsmouth City Council,PCC,Adult Social Care,Social Care Activities,Adult Services,Third Party Payments,Other establishments,01/05/2019,6297015,400.82,VENDOR,CRESCENT COMMUNITY CARE SERVICES LTD,100118
Portsmouth City Council,PCC,Adult Social Care,Social Care Activities,Adult Services,Third Party Payments,Other establishments,01/05/2019,6297015,413.56,VENDOR,CRESCENT COMMUNITY CARE SERVICES LTD,100118
Portsmouth City Council,PCC,Adult Social Care,Social Care Activities,Adult Services,Third Party Payments,Other establishments,01/05/2019,6297015,58.08,VENDOR,CRESCENT COMMUNITY CARE SERVICES LTD,100118
Portsmouth City Council,PCC,Adult Social Care,Social Care Activities,Adult Services,Third Party Payments,Other establishments,01/05/2019,6297015,2454,VENDOR,CRESCENT COMMUNITY CARE SERVICES LTD,100118
Portsmouth City Council,PCC,Adult Social Care,Social Care Activities,Adult Services,Third Party Payments,Other establishments,01/05/2019,6297015,2061.36,VENDOR,CRESCENT COMMUNITY CARE SERVICES LTD,100118
Portsmouth City Council,PCC,Adult Social Care,Social Care Activities,Adult Services,Third Party Payments,Other establishments,01/05/2019,6297015,2532,VENDOR,CRESCENT COMMUNITY CARE SERVICES LTD,100118
Portsmouth City Council,PCC,Adult Social Care,Social Care Activities,Adult Services,Third Party Payments,Other establishments,01/05/2019,6297015,2126.88,VENDOR,CRESCENT COMMUNITY CARE SERVICES LTD,100118
Portsmouth City Council,PCC,Adult Social Care,Physical Support Adults (18 - 64),Adult Services,Third Party Payments,Other establishments,01/05/2019,6297015,49.08,VENDOR,CRESCENT COMMUNITY CARE SERVICES LTD,100118
Portsmouth City Council,PCC,Adult Social Care,Physical Support Adults (18 - 64),Adult Services,Third Party Payments,Other establishments,01/05/2019,6297015,101.28,VENDOR,CRESCENT COMMUNITY CARE SERVICES LTD,100118
Portsmouth City Council,PCC,Adult Social Care,Physical Support Adults (18 - 64),Adult Services,Third Party Payments,Other establishments,01/05/2019,6297015,101.28,VENDOR,CRESCENT COMMUNITY CARE SERVICES LTD,100118
Portsmouth City Council,PCC,Adult Social Care,Physical Support Adults (18 - 64),Adult Services,Third Party Payments,Other establishments,01/05/2019,6297015,379.8,VENDOR,CRESCENT COMMUNITY CARE SERVICES LTD,100118
Portsmouth City Council,PCC,Adult Social Care,Physical Support Adults (18 - 64),Adult Services,Third Party Payments,Other establishments,01/05/2019,6297015,67.52,VENDOR,CRESCENT COMMUNITY CARE SERVICES LTD,100118
Portsmouth City Council,PCC,Adult Social Care,Physical Support Adults (18 - 64),Adult Services,Third Party Payments,Other establishments,01/05/2019,6297015,314.93,VENDOR,CRESCENT COMMUNITY CARE SERVICES LTD,100118
Portsmouth City Council,PCC,Adult Social Care,Physical Support Adults (18 - 64),Adult Services,Third Party Payments,Other establishments,01/05/2019,6297015,65.44,VENDOR,CRESCENT COMMUNITY CARE SERVICES LTD,100118
Portsmouth City Council,PCC,Adult Social Care,Physical Support Adults (18 - 64),Adult Services,Third Party Payments,Other establishments,01/05/2019,6297015,229.04,VENDOR,CRESCENT COMMUNITY CARE SERVICES LTD,100118
Portsmouth City Council,PCC,Adult Social Care,Physical Support Adults (18 - 64),Adult Services,Third Party Payments,Other establishments,01/05/2019,6297015,229.04,VENDOR,CRESCENT COMMUNITY CARE SERVICES LTD,100118
Portsmouth City Council,PCC,Adult Social Care,Physical Support Adults (18 - 64),Adult Services,Third Party Payments,Other establishments,01/05/2019,6297015,236.32,VENDOR,CRESCENT COMMUNITY CARE SERVICES LTD,100118
Portsmouth City Council,PCC,Adult Social Care,Physical Support Adults (18 - 64),Adult Services,Third Party Payments,Other establishments,01/05/2019,6297015,236.32,VENDOR,CRESCENT COMMUNITY CARE SERVICES LTD,100118
Portsmouth City Council,PCC,Adult Social Care,Physical Support Adults (18 - 64),Adult Services,Third Party Payments,Other establishments,01/05/2019,6297015,130.88,VENDOR,CRESCENT COMMUNITY CARE SERVICES LTD,100118
Portsmouth City Council,PCC,Adult Social Care,Physical Support Adults (18 - 64),Adult Services,Third Party Payments,Other establishments,01/05/2019,6297015,177.24,VENDOR,CRESCENT COMMUNITY CARE SERVICES LTD,100118
Portsmouth City Council,PCC,Adult Social Care,Physical Support Adults (18 - 64),Adult Services,Third Party Payments,Other establishments,01/05/2019,6297015,572.6,VENDOR,CRESCENT COMMUNITY CARE SERVICES LTD,100118
Portsmouth City Council,PCC,Adult Social Care,Physical Support Adults (18 - 64),Adult Services,Third Party Payments,Other establishments,01/05/2019,6297015,629.86,VENDOR,CRESCENT COMMUNITY CARE SERVICES LTD,100118
Portsmouth City Council,PCC,Adult Social Care,Physical Support Adults (18 - 64),Adult Services,Third Party Payments,Other establishments,01/05/2019,6297015,163.6,VENDOR,CRESCENT COMMUNITY CARE SERVICES LTD,100118
Portsmouth City Council,PCC,Adult Social Care,Physical Support Adults (18 - 64),Adult Services,Third Party Payments,Other establishments,01/05/2019,6297015,590.8,VENDOR,CRESCENT COMMUNITY CARE SERVICES LTD,100118
Portsmouth City Council,PCC,Adult Social Care,Physical Support Adults (18 - 64),Adult Services,Third Party Payments,Other establishments,01/05/2019,6297015,649.88,VENDOR,CRESCENT COMMUNITY CARE SERVICES LTD,100118
Portsmouth City Council,PCC,Adult Social Care,Physical Support Adults (18 - 64),Adult Services,Third Party Payments,Other establishments,01/05/2019,6297015,202.56,VENDOR,CRESCENT COMMUNITY CARE SERVICES LTD,100118
Portsmouth City Council,PCC,Adult Social Care,Physical Support Adults (18 - 64),Adult Services,Third Party Payments,Other establishments,01/05/2019,6297015,441.72,VENDOR,CRESCENT COMMUNITY CARE SERVICES LTD,100118
Portsmouth City Council,PCC,Adult Social Care,Physical Support Adults (18 - 64),Adult Services,Third Party Payments,Other establishments,01/05/2019,6297015,455.76,VENDOR,CRESCENT COMMUNITY CARE SERVICES LTD,100118
Portsmouth City Council,PCC,Adult Social Care,Physical Support Adults (18 - 64),Adult Services,Third Party Payments,Other establishments,01/05/2019,6297015,229.04,VENDOR,CRESCENT COMMUNITY CARE SERVICES LTD,100118
Portsmouth City Council,PCC,Adult Social Care,Physical Support Adults (18 - 64),Adult Services,Third Party Payments,Other establishments,01/05/2019,6297015,236.32,VENDOR,CRESCENT COMMUNITY CARE SERVICES LTD,100118
Portsmouth City Council,PCC,Adult Social Care,Physical Support Adults (18 - 64),Adult Services,Third Party Payments,Other establishments,01/05/2019,6297015,171.78,VENDOR,CRESCENT COMMUNITY CARE SERVICES LTD,100118
Portsmouth City Council,PCC,Adult Social Care,Physical Support Adults (18 - 64),Adult Services,Third Party Payments,Other establishments,01/05/2019,6297015,177.24,VENDOR,CRESCENT COMMUNITY CARE SERVICES LTD,100118
Portsmouth City Council,PCC,Adult Social Care,Physical Support Adults (18 - 64),Adult Services,Third Party Payments,Other establishments,01/05/2019,6297015,458.08,VENDOR,CRESCENT COMMUNITY CARE SERVICES LTD,100118
Portsmouth City Council,PCC,Adult Social Care,Physical Support Adults (18 - 64),Adult Services,Third Party Payments,Other establishments,01/05/2019,6297015,472.64,VENDOR,CRESCENT COMMUNITY CARE SERVICES LTD,100118
Portsmouth City Council,PCC,Adult Social Care,Physical Support Older People (85+),Adult Services,Third Party Payments,Other establishments,01/05/2019,6297015,114.52,VENDOR,CRESCENT COMMUNITY CARE SERVICES LTD,100118
Portsmouth City Council,PCC,Adult Social Care,Physical Support Older People (85+),Adult Services,Third Party Payments,Other establishments,01/05/2019,6297015,118.16,VENDOR,CRESCENT COMMUNITY CARE SERVICES LTD,100118
Portsmouth City Council,PCC,Adult Social Care,Physical Support Older People (85+),Adult Services,Third Party Payments,Other establishments,01/05/2019,6297015,413.56,VENDOR,CRESCENT COMMUNITY CARE SERVICES LTD,100118
Portsmouth City Council,PCC,Adult Social Care,Physical Support Older People (85+),Adult Services,Third Party Payments,Other establishments,01/05/2019,6297015,50.64,VENDOR,CRESCENT COMMUNITY CARE SERVICES LTD,100118
Portsmouth City Council,PCC,Adult Social Care,Physical Support Older People (85+),Adult Services,Third Party Payments,Other establishments,01/05/2019,6297015,400.82,VENDOR,CRESCENT COMMUNITY CARE SERVICES LTD,100118
Portsmouth City Council,PCC,Adult Social Care,Physical Support Older People (85+),Adult Services,Third Party Payments,Other establishments,01/05/2019,6297015,49.08,VENDOR,CRESCENT COMMUNITY CARE SERVICES LTD,100118
Portsmouth City Council,PCC,Adult Social Care,Physical Support Older People (85+),Adult Services,Third Party Payments,Other establishments,01/05/2019,6297015,114.52,VENDOR,CRESCENT COMMUNITY CARE SERVICES LTD,100118
Portsmouth City Council,PCC,Adult Social Care,Physical Support Older People (85+),Adult Services,Third Party Payments,Other establishments,01/05/2019,6297015,253.58,VENDOR,CRESCENT COMMUNITY CARE SERVICES LTD,100118
Portsmouth City Council,PCC,Adult Social Care,Physical Support Older People (85+),Adult Services,Third Party Payments,Other establishments,01/05/2019,6297015,118.16,VENDOR,CRESCENT COMMUNITY CARE SERVICES LTD,100118
Portsmouth City Council,PCC,Adult Social Care,Physical Support Older People (85+),Adult Services,Third Party Payments,Other establishments,01/05/2019,6297015,261.64,VENDOR,CRESCENT COMMUNITY CARE SERVICES LTD,100118
Portsmouth City Council,PCC,Adult Social Care,Physical Support Older People (85+),Adult Services,Third Party Payments,Other establishments,01/05/2019,6297015,400.82,VENDOR,CRESCENT COMMUNITY CARE SERVICES LTD,100118
Portsmouth City Council,PCC,Adult Social Care,Physical Support Older People (85+),Adult Services,Third Party Payments,Other establishments,01/05/2019,6297015,396.68,VENDOR,CRESCENT COMMUNITY CARE SERVICES LTD,100118
Portsmouth City Council,PCC,Adult Social Care,Physical Support Older People (85+),Adult Services,Third Party Payments,Other establishments,01/05/2019,6297015,114.52,VENDOR,CRESCENT COMMUNITY CARE SERVICES LTD,100118
Portsmouth City Council,PCC,Adult Social Care,Physical Support Older People (85+),Adult Services,Third Party Payments,Other establishments,01/05/2019,6297015,118.16,VENDOR,CRESCENT COMMUNITY CARE SERVICES LTD,100118
Portsmouth City Council,PCC,Adult Social Care,Physical Support Older People (85+),Adult Services,Third Party Payments,Other establishments,01/05/2019,6297015,194.12,VENDOR,CRESCENT COMMUNITY CARE SERVICES LTD,100118
Portsmouth City Council,PCC,Adult Social Care,Physical Support Older People (85+),Adult Services,Third Party Payments,Other establishments,01/05/2019,6297015,126.6,VENDOR,CRESCENT COMMUNITY CARE SERVICES LTD,100118
Portsmouth City Council,PCC,Adult Social Care,Physical Support Older People (85+),Adult Services,Third Party Payments,Other establishments,01/05/2019,6297015,171.78,VENDOR,CRESCENT COMMUNITY CARE SERVICES LTD,100118
Portsmouth City Council,PCC,Adult Social Care,Physical Support Older People (85+),Adult Services,Third Party Payments,Other establishments,01/05/2019,6297015,177.24,VENDOR,CRESCENT COMMUNITY CARE SERVICES LTD,100118
Portsmouth City Council,PCC,Adult Social Care,Physical Support Older People (85+),Adult Services,Third Party Payments,Other establishments,01/05/2019,6297015,286.3,VENDOR,CRESCENT COMMUNITY CARE SERVICES LTD,100118
Portsmouth City Council,PCC,Adult Social Care,Physical Support Older People (85+),Adult Services,Third Party Payments,Other establishments,01/05/2019,6297015,295.4,VENDOR,CRESCENT COMMUNITY CARE SERVICES LTD,100118
Portsmouth City Council,PCC,Adult Social Care,Physical Support Older People (85+),Adult Services,Third Party Payments,Other establishments,01/05/2019,6297015,151.33,VENDOR,CRESCENT COMMUNITY CARE SERVICES LTD,100118
Portsmouth City Council,PCC,Adult Social Care,Physical Support Older People (85+),Adult Services,Third Party Payments,Other establishments,01/05/2019,6297015,244.76,VENDOR,CRESCENT COMMUNITY CARE SERVICES LTD,100118
Portsmouth City Council,PCC,Adult Social Care,Physical Support Older People (85+),Adult Services,Third Party Payments,Other establishments,01/05/2019,6297015,229.04,VENDOR,CRESCENT COMMUNITY CARE SERVICES LTD,100118
Portsmouth City Council,PCC,Adult Social Care,Physical Support Older People (85+),Adult Services,Third Party Payments,Other establishments,01/05/2019,6297015,236.32,VENDOR,CRESCENT COMMUNITY CARE SERVICES LTD,100118
Portsmouth City Council,PCC,Adult Social Care,Physical Support Older People (85+),Adult Services,Third Party Payments,Other establishments,01/05/2019,6297015,16.88,VENDOR,CRESCENT COMMUNITY CARE SERVICES LTD,100118
Portsmouth City Council,PCC,Adult Social Care,Physical Support Older People (85+),Adult Services,Third Party Payments,Other establishments,01/05/2019,6297015,8.18,VENDOR,CRESCENT COMMUNITY CARE SERVICES LTD,100118
Portsmouth City Council,PCC,Adult Social Care,Physical Support Older People (85+),Adult Services,Third Party Payments,Other establishments,01/05/2019,6297015,114.52,VENDOR,CRESCENT COMMUNITY CARE SERVICES LTD,100118
Portsmouth City Council,PCC,Adult Social Care,Physical Support Older People (85+),Adult Services,Third Party Payments,Other establishments,01/05/2019,6297015,515.34,VENDOR,CRESCENT COMMUNITY CARE SERVICES LTD,100118
Portsmouth City Council,PCC,Adult Social Care,Physical Support Older People (85+),Adult Services,Third Party Payments,Other establishments,01/05/2019,6297015,118.16,VENDOR,CRESCENT COMMUNITY CARE SERVICES LTD,100118
Portsmouth City Council,PCC,Adult Social Care,Physical Support Older People (85+),Adult Services,Third Party Payments,Other establishments,01/05/2019,6297015,531.72,VENDOR,CRESCENT COMMUNITY CARE SERVICES LTD,100118
Portsmouth City Council,PCC,Adult Social Care,Physical Support Older People (85+),Adult Services,Third Party Payments,Other establishments,01/05/2019,6297015,449.9,VENDOR,CRESCENT COMMUNITY CARE SERVICES LTD,100118
Portsmouth City Council,PCC,Adult Social Care,Physical Support Older People (85+),Adult Services,Third Party Payments,Other establishments,01/05/2019,6297015,468.42,VENDOR,CRESCENT COMMUNITY CARE SERVICES LTD,100118
Portsmouth City Council,PCC,Adult Social Care,Physical Support Older People (85+),Adult Services,Third Party Payments,Other establishments,01/05/2019,6297015,114.52,VENDOR,CRESCENT COMMUNITY CARE SERVICES LTD,100118
Portsmouth City Council,PCC,Adult Social Care,Physical Support Older People (85+),Adult Services,Third Party Payments,Other establishments,01/05/2019,6297015,118.16,VENDOR,CRESCENT COMMUNITY CARE SERVICES LTD,100118
Portsmouth City Council,PCC,Adult Social Care,Physical Support Older People (85+),Adult Services,Third Party Payments,Other establishments,01/05/2019,6297015,229.04,VENDOR,CRESCENT COMMUNITY CARE SERVICES LTD,100118
Portsmouth City Council,PCC,Adult Social Care,Physical Support Older People (85+),Adult Services,Third Party Payments,Other establishments,01/05/2019,6297015,236.32,VENDOR,CRESCENT COMMUNITY CARE SERVICES LTD,100118
Portsmouth City Council,PCC,Adult Social Care,Physical Support Older People (85+),Adult Services,Third Party Payments,Other establishments,01/05/2019,6297015,43.56,VENDOR,CRESCENT COMMUNITY CARE SERVICES LTD,100118
Portsmouth City Council,PCC,Adult Social Care,Physical Support Older People (85+),Adult Services,Third Party Payments,Other establishments,01/05/2019,6297015,196.32,VENDOR,CRESCENT COMMUNITY CARE SERVICES LTD,100118
Portsmouth City Council,PCC,Adult Social Care,Physical Support Older People (85+),Adult Services,Third Party Payments,Other establishments,01/05/2019,6297015,202.56,VENDOR,CRESCENT COMMUNITY CARE SERVICES LTD,100118
Portsmouth City Council,PCC,Adult Social Care,Physical Support Older People (85+),Adult Services,Third Party Payments,Other establishments,01/05/2019,6297015,413.56,VENDOR,CRESCENT COMMUNITY CARE SERVICES LTD,100118
Portsmouth City Council,PCC,Adult Social Care,Physical Support Older People (85+),Adult Services,Third Party Payments,Other establishments,01/05/2019,6297015,368.1,VENDOR,CRESCENT COMMUNITY CARE SERVICES LTD,100118
Portsmouth City Council,PCC,Adult Social Care,Physical Support Older People (85+),Adult Services,Third Party Payments,Other establishments,01/05/2019,6297015,179.96,VENDOR,CRESCENT COMMUNITY CARE SERVICES LTD,100118
Portsmouth City Council,PCC,Adult Social Care,Physical Support Older People (85+),Adult Services,Third Party Payments,Other establishments,01/05/2019,6297015,177.24,VENDOR,CRESCENT COMMUNITY CARE SERVICES LTD,100118
Portsmouth City Council,PCC,Adult Social Care,Physical Support Older People (85+),Adult Services,Third Party Payments,Other establishments,01/05/2019,6297015,294.48,VENDOR,CRESCENT COMMUNITY CARE SERVICES LTD,100118
Portsmouth City Council,PCC,Adult Social Care,Physical Support Older People (85+),Adult Services,Third Party Payments,Other establishments,01/05/2019,6297015,320.72,VENDOR,CRESCENT COMMUNITY CARE SERVICES LTD,100118
Portsmouth City Council,PCC,Adult Social Care,Physical Support Older People (85+),Adult Services,Third Party Payments,Other establishments,01/05/2019,6297015,245.4,VENDOR,CRESCENT COMMUNITY CARE SERVICES LTD,100118
Portsmouth City Council,PCC,Adult Social Care,Physical Support Older People (85+),Adult Services,Third Party Payments,Other establishments,01/05/2019,6297015,253.2,VENDOR,CRESCENT COMMUNITY CARE SERVICES LTD,100118
Portsmouth City Council,PCC,Adult Social Care,Physical Support Older People (85+),Adult Services,Third Party Payments,Other establishments,01/05/2019,6297015,343.56,VENDOR,CRESCENT COMMUNITY CARE SERVICES LTD,100118
Portsmouth City Council,PCC,Adult Social Care,Physical Support Older People (85+),Adult Services,Third Party Payments,Other establishments,01/05/2019,6297015,388.24,VENDOR,CRESCENT COMMUNITY CARE SERVICES LTD,100118
Portsmouth City Council,PCC,Adult Social Care,Physical Support Older People (85+),Adult Services,Third Party Payments,Other establishments,01/05/2019,6297015,409,VENDOR,CRESCENT COMMUNITY CARE SERVICES LTD,100118
Portsmouth City Council,PCC,Adult Social Care,Physical Support Older People (85+),Adult Services,Third Party Payments,Other establishments,01/05/2019,6297015,430.44,VENDOR,CRESCENT COMMUNITY CARE SERVICES LTD,100118
Portsmouth City Council,PCC,Adult Social Care,Physical Support Older People (85+),Adult Services,Third Party Payments,Other establishments,01/05/2019,6297015,212.68,VENDOR,CRESCENT COMMUNITY CARE SERVICES LTD,100118
Portsmouth City Council,PCC,Adult Social Care,Physical Support Older People (85+),Adult Services,Third Party Payments,Other establishments,01/05/2019,6297015,219.44,VENDOR,CRESCENT COMMUNITY CARE SERVICES LTD,100118
Portsmouth City Council,PCC,Adult Social Care,Physical Support Older People (85+),Adult Services,Third Party Payments,Other establishments,01/05/2019,6297015,466.26,VENDOR,CRESCENT COMMUNITY CARE SERVICES LTD,100118
Portsmouth City Council,PCC,Adult Social Care,Physical Support Older People (85+),Adult Services,Third Party Payments,Other establishments,01/05/2019,6297015,481.08,VENDOR,CRESCENT COMMUNITY CARE SERVICES LTD,100118
Portsmouth City Council,PCC,Adult Social Care,Physical Support Older People (85+),Adult Services,Third Party Payments,Other establishments,01/05/2019,6297015,67.52,VENDOR,CRESCENT COMMUNITY CARE SERVICES LTD,100118
Portsmouth City Council,PCC,Adult Social Care,Physical Support Older People (85+),Adult Services,Third Party Payments,Other establishments,01/05/2019,6297015,65.44,VENDOR,CRESCENT COMMUNITY CARE SERVICES LTD,100118
Portsmouth City Council,PCC,Adult Social Care,Physical Support Older People (85+),Adult Services,Third Party Payments,Other establishments,01/05/2019,6297015,302.66,VENDOR,CRESCENT COMMUNITY CARE SERVICES LTD,100118
Portsmouth City Council,PCC,Adult Social Care,Physical Support Older People (85+),Adult Services,Third Party Payments,Other establishments,01/05/2019,6297015,341.82,VENDOR,CRESCENT COMMUNITY CARE SERVICES LTD,100118
Portsmouth City Council,PCC,Adult Social Care,Physical Support Older People (85+),Adult Services,Third Party Payments,Other establishments,01/05/2019,6297015,286.3,VENDOR,CRESCENT COMMUNITY CARE SERVICES LTD,100118
Portsmouth City Council,PCC,Adult Social Care,Physical Support Older People (85+),Adult Services,Third Party Payments,Other establishments,01/05/2019,6297015,286.3,VENDOR,CRESCENT COMMUNITY CARE SERVICES LTD,100118
Portsmouth City Council,PCC,Adult Social Care,Physical Support Older People (85+),Adult Services,Third Party Payments,Other establishments,01/05/2019,6297015,295.4,VENDOR,CRESCENT COMMUNITY CARE SERVICES LTD,100118
Portsmouth City Council,PCC,Adult Social Care,Physical Support Older People (85+),Adult Services,Third Party Payments,Other establishments,01/05/2019,6297015,295.4,VENDOR,CRESCENT COMMUNITY CARE SERVICES LTD,100118
Portsmouth City Council,PCC,Adult Social Care,Physical Support Older People (85+),Adult Services,Third Party Payments,Other establishments,01/05/2019,6297015,49.08,VENDOR,CRESCENT COMMUNITY CARE SERVICES LTD,100118
Portsmouth City Council,PCC,Adult Social Care,Physical Support Older People (85+),Adult Services,Third Party Payments,Other establishments,01/05/2019,6297015,458.08,VENDOR,CRESCENT COMMUNITY CARE SERVICES LTD,100118
Portsmouth City Council,PCC,Adult Social Care,Physical Support Older People (85+),Adult Services,Third Party Payments,Other establishments,01/05/2019,6297015,472.64,VENDOR,CRESCENT COMMUNITY CARE SERVICES LTD,100118
Portsmouth City Council,PCC,Adult Social Care,Physical Support Older People (85+),Adult Services,Third Party Payments,Other establishments,01/05/2019,6297015,319.02,VENDOR,CRESCENT COMMUNITY CARE SERVICES LTD,100118
Portsmouth City Council,PCC,Adult Social Care,Physical Support Older People (85+),Adult Services,Third Party Payments,Other establishments,01/05/2019,6297015,346.04,VENDOR,CRESCENT COMMUNITY CARE SERVICES LTD,100118
Portsmouth City Council,PCC,Adult Social Care,Physical Support Older People (85+),Adult Services,Third Party Payments,Other establishments,01/05/2019,6297015,343.56,VENDOR,CRESCENT COMMUNITY CARE SERVICES LTD,100118
Portsmouth City Council,PCC,Adult Social Care,Physical Support Older People (85+),Adult Services,Third Party Payments,Other establishments,01/05/2019,6297015,337.6,VENDOR,CRESCENT COMMUNITY CARE SERVICES LTD,100118
Portsmouth City Council,PCC,Adult Social Care,Physical Support Older People (85+),Adult Services,Third Party Payments,Other establishments,01/05/2019,6297015,114.52,VENDOR,CRESCENT COMMUNITY CARE SERVICES LTD,100118
Portsmouth City Council,PCC,Adult Social Care,Physical Support Older People (85+),Adult Services,Third Party Payments,Other establishments,01/05/2019,6297015,118.16,VENDOR,CRESCENT COMMUNITY CARE SERVICES LTD,100118
Portsmouth City Council,PCC,Adult Social Care,Physical Support Older People (85+),Adult Services,Third Party Payments,Other establishments,01/05/2019,6297015,359.92,VENDOR,CRESCENT COMMUNITY CARE SERVICES LTD,100118
Portsmouth City Council,PCC,Adult Social Care,Physical Support Older People (85+),Adult Services,Third Party Payments,Other establishments,01/05/2019,6297015,371.36,VENDOR,CRESCENT COMMUNITY CARE SERVICES LTD,100118
Portsmouth City Council,PCC,Adult Social Care,Physical Support Older People (85+),Adult Services,Third Party Payments,Other establishments,01/05/2019,6297015,286.3,VENDOR,CRESCENT COMMUNITY CARE SERVICES LTD,100118
Portsmouth City Council,PCC,Adult Social Care,Physical Support Older People (85+),Adult Services,Third Party Payments,Other establishments,01/05/2019,6297015,189.9,VENDOR,CRESCENT COMMUNITY CARE SERVICES LTD,100118
Portsmouth City Council,PCC,Adult Social Care,Physical Support Older People (85+),Adult Services,Third Party Payments,Other establishments,01/05/2019,6297015,16.88,VENDOR,CRESCENT COMMUNITY CARE SERVICES LTD,100118
Portsmouth City Council,PCC,Adult Social Care,Physical Support Older People (85+),Adult Services,Third Party Payments,Other establishments,01/05/2019,6297015,32.72,VENDOR,CRESCENT COMMUNITY CARE SERVICES LTD,100118
Portsmouth City Council,PCC,Adult Social Care,Physical Support Older People (85+),Adult Services,Third Party Payments,Other establishments,01/05/2019,6297015,286.3,VENDOR,CRESCENT COMMUNITY CARE SERVICES LTD,100118
Portsmouth City Council,PCC,Adult Social Care,Physical Support Older People (85+),Adult Services,Third Party Payments,Other establishments,01/05/2019,6297015,202.56,VENDOR,CRESCENT COMMUNITY CARE SERVICES LTD,100118
Portsmouth City Council,PCC,Adult Social Care,Physical Support Older People (85+),Adult Services,Third Party Payments,Other establishments,01/05/2019,6297015,147.24,VENDOR,CRESCENT COMMUNITY CARE SERVICES LTD,100118
Portsmouth City Council,PCC,Adult Social Care,Physical Support Older People (85+),Adult Services,Third Party Payments,Other establishments,01/05/2019,6297015,147.24,VENDOR,CRESCENT COMMUNITY CARE SERVICES LTD,100118
Portsmouth City Council,PCC,Adult Social Care,Physical Support Older People (85+),Adult Services,Third Party Payments,Other establishments,01/05/2019,6297015,143.48,VENDOR,CRESCENT COMMUNITY CARE SERVICES LTD,100118
Portsmouth City Council,PCC,Adult Social Care,Physical Support Older People (85+),Adult Services,Third Party Payments,Other establishments,01/05/2019,6297015,143.48,VENDOR,CRESCENT COMMUNITY CARE SERVICES LTD,100118
Portsmouth City Council,PCC,Adult Social Care,Physical Support Older People (85+),Adult Services,Third Party Payments,Other establishments,01/05/2019,6297015,229.04,VENDOR,CRESCENT COMMUNITY CARE SERVICES LTD,100118
Portsmouth City Council,PCC,Adult Social Care,Physical Support Older People (85+),Adult Services,Third Party Payments,Other establishments,01/05/2019,6297015,229.04,VENDOR,CRESCENT COMMUNITY CARE SERVICES LTD,100118
Portsmouth City Council,PCC,Adult Social Care,Physical Support Older People (85+),Adult Services,Third Party Payments,Other establishments,01/05/2019,6297015,236.32,VENDOR,CRESCENT COMMUNITY CARE SERVICES LTD,100118
Portsmouth City Council,PCC,Adult Social Care,Physical Support Older People (85+),Adult Services,Third Party Payments,Other establishments,01/05/2019,6297015,236.32,VENDOR,CRESCENT COMMUNITY CARE SERVICES LTD,100118
Portsmouth City Council,PCC,Adult Social Care,Physical Support Older People (85+),Adult Services,Third Party Payments,Other establishments,01/05/2019,6297015,515.34,VENDOR,CRESCENT COMMUNITY CARE SERVICES LTD,100118
Portsmouth City Council,PCC,Adult Social Care,Physical Support Older People (85+),Adult Services,Third Party Payments,Other establishments,01/05/2019,6297015,515.34,VENDOR,CRESCENT COMMUNITY CARE SERVICES LTD,100118
Portsmouth City Council,PCC,Adult Social Care,Physical Support Older People (85+),Adult Services,Third Party Payments,Other establishments,01/05/2019,6297015,531.72,VENDOR,CRESCENT COMMUNITY CARE SERVICES LTD,100118
Portsmouth City Council,PCC,Adult Social Care,Physical Support Older People (85+),Adult Services,Third Party Payments,Other establishments,01/05/2019,6297015,531.72,VENDOR,CRESCENT COMMUNITY CARE SERVICES LTD,100118
Portsmouth City Council,PCC,Adult Social Care,Physical Support Older People (85+),Adult Services,Third Party Payments,Other establishments,01/05/2019,6297015,32.72,VENDOR,CRESCENT COMMUNITY CARE SERVICES LTD,100118
Portsmouth City Council,PCC,Adult Social Care,Physical Support Older People (85+),Adult Services,Third Party Payments,Other establishments,01/05/2019,6297015,50.64,VENDOR,CRESCENT COMMUNITY CARE SERVICES LTD,100118
Portsmouth City Council,PCC,Adult Social Care,Physical Support Older People (85+),Adult Services,Third Party Payments,Other establishments,01/05/2019,6297015,490.8,VENDOR,CRESCENT COMMUNITY CARE SERVICES LTD,100118
Portsmouth City Council,PCC,Adult Social Care,Physical Support Older People (85+),Adult Services,Third Party Payments,Other establishments,01/05/2019,6297015,506.4,VENDOR,CRESCENT COMMUNITY CARE SERVICES LTD,100118
Portsmouth City Council,PCC,Adult Social Care,Physical Support Older People (85+),Adult Services,Third Party Payments,Other establishments,01/05/2019,6297015,114.52,VENDOR,CRESCENT COMMUNITY CARE SERVICES LTD,100118
Portsmouth City Council,PCC,Adult Social Care,Physical Support Older People (85+),Adult Services,Third Party Payments,Other establishments,01/05/2019,6297015,118.16,VENDOR,CRESCENT COMMUNITY CARE SERVICES LTD,100118
Portsmouth City Council,PCC,Adult Social Care,Physical Support Older People (85+),Adult Services,Third Party Payments,Other establishments,01/05/2019,6297015,85.89,VENDOR,CRESCENT COMMUNITY CARE SERVICES LTD,100118
Portsmouth City Council,PCC,Adult Social Care,Physical Support Older People (85+),Adult Services,Third Party Payments,Other establishments,01/05/2019,6297015,177.24,VENDOR,CRESCENT COMMUNITY CARE SERVICES LTD,100118
Portsmouth City Council,PCC,Adult Social Care,Physical Support Older People (85+),Adult Services,Third Party Payments,Other establishments,01/05/2019,6297015,229.04,VENDOR,CRESCENT COMMUNITY CARE SERVICES LTD,100118
Portsmouth City Council,PCC,Adult Social Care,Physical Support Older People (85+),Adult Services,Third Party Payments,Other establishments,01/05/2019,6297015,236.32,VENDOR,CRESCENT COMMUNITY CARE SERVICES LTD,100118
Portsmouth City Council,PCC,Adult Social Care,Physical Support Older People (85+),Adult Services,Third Party Payments,Other establishments,01/05/2019,6297015,335.38,VENDOR,CRESCENT COMMUNITY CARE SERVICES LTD,100118
Portsmouth City Council,PCC,Adult Social Care,Physical Support Older People (85+),Adult Services,Third Party Payments,Other establishments,01/05/2019,6297015,405.12,VENDOR,CRESCENT COMMUNITY CARE SERVICES LTD,100118
Portsmouth City Council,PCC,Adult Social Care,Physical Support Older People (85+),Adult Services,Third Party Payments,Other establishments,01/05/2019,6297015,114.52,VENDOR,CRESCENT COMMUNITY CARE SERVICES LTD,100118
Portsmouth City Council,PCC,Adult Social Care,Physical Support Older People (85+),Adult Services,Third Party Payments,Other establishments,01/05/2019,6297015,92.84,VENDOR,CRESCENT COMMUNITY CARE SERVICES LTD,100118
Portsmouth City Council,PCC,Adult Social Care,Physical Support Older People (85+),Adult Services,Third Party Payments,Other establishments,01/05/2019,6297015,347.65,VENDOR,CRESCENT COMMUNITY CARE SERVICES LTD,100118
Portsmouth City Council,PCC,Adult Social Care,Physical Support Older People (85+),Adult Services,Third Party Payments,Other establishments,01/05/2019,6297015,358.7,VENDOR,CRESCENT COMMUNITY CARE SERVICES LTD,100118
Portsmouth City Council,PCC,Adult Social Care,Physical Support Older People (85+),Adult Services,Third Party Payments,Other establishments,01/05/2019,6297015,220.86,VENDOR,CRESCENT COMMUNITY CARE SERVICES LTD,100118
Portsmouth City Council,PCC,Adult Social Care,Physical Support Older People (85+),Adult Services,Third Party Payments,Other establishments,01/05/2019,6297015,236.32,VENDOR,CRESCENT COMMUNITY CARE SERVICES LTD,100118
Portsmouth City Council,PCC,Adult Social Care,Physical Support Older People (85+),Adult Services,Third Party Payments,Other establishments,01/05/2019,6297015,114.52,VENDOR,CRESCENT COMMUNITY CARE SERVICES LTD,100118
Portsmouth City Council,PCC,Adult Social Care,Physical Support Older People (85+),Adult Services,Third Party Payments,Other establishments,01/05/2019,6297015,118.16,VENDOR,CRESCENT COMMUNITY CARE SERVICES LTD,100118
Portsmouth City Council,PCC,Adult Social Care,Physical Support Older People (85+),Adult Services,Third Party Payments,Other establishments,01/05/2019,6297015,490.8,VENDOR,CRESCENT COMMUNITY CARE SERVICES LTD,100118
Portsmouth City Council,PCC,Adult Social Care,Physical Support Older People (85+),Adult Services,Third Party Payments,Other establishments,01/05/2019,6297015,497.96,VENDOR,CRESCENT COMMUNITY CARE SERVICES LTD,100118
Portsmouth City Council,PCC,Adult Social Care,Physical Support Older People (85+),Adult Services,Third Party Payments,Other establishments,01/05/2019,6297015,81.8,VENDOR,CRESCENT COMMUNITY CARE SERVICES LTD,100118
Portsmouth City Council,PCC,Adult Social Care,Physical Support Older People (85+),Adult Services,Third Party Payments,Other establishments,01/05/2019,6297015,84.4,VENDOR,CRESCENT COMMUNITY CARE SERVICES LTD,100118
Portsmouth City Council,PCC,Adult Social Care,Physical Support Older People (85+),Adult Services,Third Party Payments,Other establishments,01/05/2019,6297015,572.6,VENDOR,CRESCENT COMMUNITY CARE SERVICES LTD,100118
Portsmouth City Council,PCC,Adult Social Care,Physical Support Older People (85+),Adult Services,Third Party Payments,Other establishments,01/05/2019,6297015,337.6,VENDOR,CRESCENT COMMUNITY CARE SERVICES LTD,100118
Portsmouth City Council,PCC,Adult Social Care,Physical Support Older People (85+),Adult Services,Third Party Payments,Other establishments,01/05/2019,6297015,81.8,VENDOR,CRESCENT COMMUNITY CARE SERVICES LTD,100118
Portsmouth City Council,PCC,Adult Social Care,Physical Support Older People (85+),Adult Services,Third Party Payments,Other establishments,01/05/2019,6297015,50.64,VENDOR,CRESCENT COMMUNITY CARE SERVICES LTD,100118
Portsmouth City Council,PCC,Adult Social Care,Physical Support Older People (85+),Adult Services,Third Party Payments,Other establishments,01/05/2019,6297015,49.08,VENDOR,CRESCENT COMMUNITY CARE SERVICES LTD,100118
Portsmouth City Council,PCC,Adult Social Care,Physical Support Older People (85+),Adult Services,Third Party Payments,Other establishments,01/05/2019,6297015,114.52,VENDOR,CRESCENT COMMUNITY CARE SERVICES LTD,100118
Portsmouth City Council,PCC,Adult Social Care,Physical Support Older People (85+),Adult Services,Third Party Payments,Other establishments,01/05/2019,6297015,118.16,VENDOR,CRESCENT COMMUNITY CARE SERVICES LTD,100118
Portsmouth City Council,PCC,Adult Social Care,Physical Support Older People (85+),Adult Services,Third Party Payments,Other establishments,01/05/2019,6297015,50.64,VENDOR,CRESCENT COMMUNITY CARE SERVICES LTD,100118
Portsmouth City Council,PCC,Adult Social Care,Physical Support Older People (85+),Adult Services,Third Party Payments,Other establishments,01/05/2019,6297015,49.08,VENDOR,CRESCENT COMMUNITY CARE SERVICES LTD,100118
Portsmouth City Council,PCC,Adult Social Care,Physical Support Older People (85+),Adult Services,Third Party Payments,Other establishments,01/05/2019,6297015,171.78,VENDOR,CRESCENT COMMUNITY CARE SERVICES LTD,100118
Portsmouth City Council,PCC,Adult Social Care,Physical Support Older People (85+),Adult Services,Third Party Payments,Other establishments,01/05/2019,6297015,177.24,VENDOR,CRESCENT COMMUNITY CARE SERVICES LTD,100118
Portsmouth City Council,PCC,Adult Social Care,Physical Support Older People (85+),Adult Services,Third Party Payments,Other establishments,01/05/2019,6297015,314.93,VENDOR,CRESCENT COMMUNITY CARE SERVICES LTD,100118
Portsmouth City Council,PCC,Adult Social Care,Physical Support Older People (85+),Adult Services,Third Party Payments,Other establishments,01/05/2019,6297015,295.4,VENDOR,CRESCENT COMMUNITY CARE SERVICES LTD,100118
Portsmouth City Council,PCC,Adult Social Care,Physical Support Older People (85+),Adult Services,Third Party Payments,Other establishments,01/05/2019,6297015,343.56,VENDOR,CRESCENT COMMUNITY CARE SERVICES LTD,100118
Portsmouth City Council,PCC,Adult Social Care,Physical Support Older People (85+),Adult Services,Third Party Payments,Other establishments,01/05/2019,6297015,354.48,VENDOR,CRESCENT COMMUNITY CARE SERVICES LTD,100118
Portsmouth City Council,PCC,Adult Social Care,Physical Support Older People (85+),Adult Services,Third Party Payments,Other establishments,01/05/2019,6297015,320.72,VENDOR,CRESCENT COMMUNITY CARE SERVICES LTD,100118
Portsmouth City Council,PCC,Adult Social Care,Physical Support Older People (85+),Adult Services,Third Party Payments,Other establishments,01/05/2019,6297015,286.3,VENDOR,CRESCENT COMMUNITY CARE SERVICES LTD,100118
Portsmouth City Council,PCC,Adult Social Care,Physical Support Older People (85+),Adult Services,Third Party Payments,Other establishments,01/05/2019,6297015,295.4,VENDOR,CRESCENT COMMUNITY CARE SERVICES LTD,100118
Portsmouth City Council,PCC,Adult Social Care,Physical Support Older People (85+),Adult Services,Third Party Payments,Other establishments,01/05/2019,6297015,310.84,VENDOR,CRESCENT COMMUNITY CARE SERVICES LTD,100118
Portsmouth City Council,PCC,Adult Social Care,Physical Support Older People (85+),Adult Services,Third Party Payments,Other establishments,01/05/2019,6297015,354.48,VENDOR,CRESCENT COMMUNITY CARE SERVICES LTD,100118
Portsmouth City Council,PCC,Adult Social Care,Physical Support Older People (85+),Adult Services,Third Party Payments,Other establishments,01/05/2019,6297015,114.52,VENDOR,CRESCENT COMMUNITY CARE SERVICES LTD,100118
Portsmouth City Council,PCC,Adult Social Care,Physical Support Older People (85+),Adult Services,Third Party Payments,Other establishments,01/05/2019,6297015,118.16,VENDOR,CRESCENT COMMUNITY CARE SERVICES LTD,100118
Portsmouth City Council,PCC,Adult Social Care,Physical Support Older People (85+),Adult Services,Third Party Payments,Other establishments,01/05/2019,6297015,114.52,VENDOR,CRESCENT COMMUNITY CARE SERVICES LTD,100118
Portsmouth City Council,PCC,Adult Social Care,Physical Support Older People (85+),Adult Services,Third Party Payments,Other establishments,01/05/2019,6297015,114.52,VENDOR,CRESCENT COMMUNITY CARE SERVICES LTD,100118
Portsmouth City Council,PCC,Adult Social Care,Physical Support Older People (85+),Adult Services,Third Party Payments,Other establishments,01/05/2019,6297015,118.16,VENDOR,CRESCENT COMMUNITY CARE SERVICES LTD,100118
Portsmouth City Council,PCC,Adult Social Care,Physical Support Older People (85+),Adult Services,Third Party Payments,Other establishments,01/05/2019,6297015,118.16,VENDOR,CRESCENT COMMUNITY CARE SERVICES LTD,100118
Portsmouth City Council,PCC,Adult Social Care,Physical Support Older People (85+),Adult Services,Third Party Payments,Other establishments,01/05/2019,6297015,122.7,VENDOR,CRESCENT COMMUNITY CARE SERVICES LTD,100118
Portsmouth City Council,PCC,Adult Social Care,Physical Support Older People (85+),Adult Services,Third Party Payments,Other establishments,01/05/2019,6297015,126.6,VENDOR,CRESCENT COMMUNITY CARE SERVICES LTD,100118
Portsmouth City Council,PCC,Adult Social Care,Physical Support Older People (85+),Adult Services,Third Party Payments,Other establishments,01/05/2019,6297015,212.68,VENDOR,CRESCENT COMMUNITY CARE SERVICES LTD,100118
Portsmouth City Council,PCC,Adult Social Care,Physical Support Older People (85+),Adult Services,Third Party Payments,Other establishments,01/05/2019,6297015,219.44,VENDOR,CRESCENT COMMUNITY CARE SERVICES LTD,100118
Portsmouth City Council,PCC,Adult Social Care,Physical Support Older People (85+),Adult Services,Third Party Payments,Other establishments,01/05/2019,6297015,458.08,VENDOR,CRESCENT COMMUNITY CARE SERVICES LTD,100118
Portsmouth City Council,PCC,Adult Social Care,Physical Support Older People (85+),Adult Services,Third Party Payments,Other establishments,01/05/2019,6297015,472.64,VENDOR,CRESCENT COMMUNITY CARE SERVICES LTD,100118
Portsmouth City Council,PCC,Adult Social Care,Physical Support Older People (85+),Adult Services,Third Party Payments,Other establishments,01/05/2019,6297015,101.28,VENDOR,CRESCENT COMMUNITY CARE SERVICES LTD,100118
Portsmouth City Council,PCC,Adult Social Care,Physical Support Older People (85+),Adult Services,Third Party Payments,Other establishments,01/05/2019,6297015,101.28,VENDOR,CRESCENT COMMUNITY CARE SERVICES LTD,100118
Portsmouth City Council,PCC,Adult Social Care,Physical Support Older People (85+),Adult Services,Third Party Payments,Other establishments,01/05/2019,6297015,171.78,VENDOR,CRESCENT COMMUNITY CARE SERVICES LTD,100118
Portsmouth City Council,PCC,Adult Social Care,Physical Support Older People (85+),Adult Services,Third Party Payments,Other establishments,01/05/2019,6297015,33.76,VENDOR,CRESCENT COMMUNITY CARE SERVICES LTD,100118
Portsmouth City Council,PCC,Adult Social Care,Physical Support Older People (85+),Adult Services,Third Party Payments,Other establishments,01/05/2019,6297015,59.08,VENDOR,CRESCENT COMMUNITY CARE SERVICES LTD,100118
Portsmouth City Council,PCC,Adult Social Care,Physical Support Older People (85+),Adult Services,Third Party Payments,Other establishments,01/05/2019,6297015,57.26,VENDOR,CRESCENT COMMUNITY CARE SERVICES LTD,100118
Portsmouth City Council,PCC,Adult Social Care,Physical Support Older People (85+),Adult Services,Third Party Payments,Other establishments,01/05/2019,6297015,42.2,VENDOR,CRESCENT COMMUNITY CARE SERVICES LTD,100118
Portsmouth City Council,PCC,Adult Social Care,Physical Support Older People (85+),Adult Services,Third Party Payments,Other establishments,01/05/2019,6297015,40.9,VENDOR,CRESCENT COMMUNITY CARE SERVICES LTD,100118
Portsmouth City Council,PCC,Adult Social Care,Physical Support Older People (85+),Adult Services,Third Party Payments,Other establishments,01/05/2019,6297015,441.72,VENDOR,CRESCENT COMMUNITY CARE SERVICES LTD,100118
Portsmouth City Council,PCC,Adult Social Care,Physical Support Older People (85+),Adult Services,Third Party Payments,Other establishments,01/05/2019,6297015,472.64,VENDOR,CRESCENT COMMUNITY CARE SERVICES LTD,100118
Portsmouth City Council,PCC,Adult Social Care,Physical Support Older People (85+),Adult Services,Third Party Payments,Other establishments,01/05/2019,6297015,368.1,VENDOR,CRESCENT COMMUNITY CARE SERVICES LTD,100118
Portsmouth City Council,PCC,Adult Social Care,Physical Support Older People (85+),Adult Services,Third Party Payments,Other establishments,01/05/2019,6297015,379.8,VENDOR,CRESCENT COMMUNITY CARE SERVICES LTD,100118
Portsmouth City Council,PCC,Adult Social Care,Physical Support Older People (85+),Adult Services,Third Party Payments,Other establishments,01/05/2019,6297015,343.56,VENDOR,CRESCENT COMMUNITY CARE SERVICES LTD,100118
Portsmouth City Council,PCC,Adult Social Care,Physical Support Older People (85+),Adult Services,Third Party Payments,Other establishments,01/05/2019,6297015,354.48,VENDOR,CRESCENT COMMUNITY CARE SERVICES LTD,100118
Portsmouth City Council,PCC,Adult Social Care,Physical Support Older People (85+),Adult Services,Third Party Payments,Other establishments,01/05/2019,6297015,12.27,VENDOR,CRESCENT COMMUNITY CARE SERVICES LTD,100118
Portsmouth City Council,PCC,Adult Social Care,Physical Support Older People (85+),Adult Services,Third Party Payments,Other establishments,01/05/2019,6297015,118.16,VENDOR,CRESCENT COMMUNITY CARE SERVICES LTD,100118
Portsmouth City Council,PCC,Adult Social Care,Physical Support Older People (85+),Adult Services,Third Party Payments,Other establishments,01/05/2019,6297015,50.64,VENDOR,CRESCENT COMMUNITY CARE SERVICES LTD,100118
Portsmouth City Council,PCC,Adult Social Care,Physical Support Older People (85+),Adult Services,Third Party Payments,Other establishments,01/05/2019,6297015,196.32,VENDOR,CRESCENT COMMUNITY CARE SERVICES LTD,100118
Portsmouth City Council,PCC,Adult Social Care,Physical Support Older People (85+),Adult Services,Third Party Payments,Other establishments,01/05/2019,6297015,25.32,VENDOR,CRESCENT COMMUNITY CARE SERVICES LTD,100118
Portsmouth City Council,PCC,Adult Social Care,Physical Support Older People (85+),Adult Services,Third Party Payments,Other establishments,01/05/2019,6297015,24.54,VENDOR,CRESCENT COMMUNITY CARE SERVICES LTD,100118
Portsmouth City Council,PCC,Adult Social Care,Physical Support Older People (85+),Adult Services,Third Party Payments,Other establishments,01/05/2019,6297015,409,VENDOR,CRESCENT COMMUNITY CARE SERVICES LTD,100118
Portsmouth City Council,PCC,Adult Social Care,Physical Support Older People (85+),Adult Services,Third Party Payments,Other establishments,01/05/2019,6297015,409,VENDOR,CRESCENT COMMUNITY CARE SERVICES LTD,100118
Portsmouth City Council,PCC,Adult Social Care,Physical Support Older People (85+),Adult Services,Third Party Payments,Other establishments,01/05/2019,6297015,422,VENDOR,CRESCENT COMMUNITY CARE SERVICES LTD,100118
Portsmouth City Council,PCC,Adult Social Care,Physical Support Older People (85+),Adult Services,Third Party Payments,Other establishments,01/05/2019,6297015,422,VENDOR,CRESCENT COMMUNITY CARE SERVICES LTD,100118
Portsmouth City Council,PCC,Adult Social Care,Physical Support Older People (85+),Adult Services,Third Party Payments,Other establishments,01/05/2019,6297015,229.04,VENDOR,CRESCENT COMMUNITY CARE SERVICES LTD,100118
Portsmouth City Council,PCC,Adult Social Care,Physical Support Older People (85+),Adult Services,Third Party Payments,Other establishments,01/05/2019,6297015,236.32,VENDOR,CRESCENT COMMUNITY CARE SERVICES LTD,100118
